Workbook

Sheet MENU
C4: MENU
C6: Ü | D6: REGRAS REGISTO DADOS
C8: Ü | D8: DADOS GERAIS INSTITUIÇÃO
C10: Ü | D10: DEMONSTRAÇÃO RESULTADOS
C12: Ü | D12: TIPO FINANCIAMENTO
C14: Ü | D14: TIPO INVESTIMENTO
C16: Ü | D16: MEMÓRIA JUSTIFICATIVA
D19: ATENÇÃO!
D21: Deve ler com cuidado as regras de registo antes de iniciar o seu preenchimento. Apenas deve inserir dados nas células em branco. A indicação do responsável pela informação é de preenchimento obrigatório.

Sheet REGRAS REGISTO
AI7: TIPO | AN7: Respostas sociais (xxxx)
C8: I | E8: DADOS GERAIS | AI8: Associação | AN8: 1101-Ama
AI9: Associação Mutualista | AN9: 1102-Ama (Cresce Familiar)
AI10: Casa do Povo | AN10: 1103-Cresce
AI11: Cooperativa | AN11: 1104-Estabelecimento de Educação Pré-Escolar
D12: IDENTIFICAÇÃO IPSS | G12: Registo dos dados que permitem identificar a Instituição. | AI12: Fundação | AN12: 1105-Centro de Atividades de Tempos Livres
AI13: Santa Casa da Misericórdia | AN13: 1201-Intervenção Precoce
D14: DADOS ORÇAMENTO | G14: Registo dos dados que permitem identificar o orçamento apresentado. A indicação dos elementos respeitantes à deliberação de aprovação do orçamento e ao respetivo parecer do órgão fiscalizador permite que estes documentos não sejam efetivamente apresentados, podendo no entanto ser solicitados posteriormente. | AI14: Fundação | AN14: 1105-Centro de Atividades de Tempos Livres
AN15: 1203-Transporte de Pessoas com Deficiência
D16: DADOS ATIVIDADE | G16: Registo de dados relativos à atividade da IPSS, são definidas 3 tipologias distintas (resposta social/estabelecimento com comparticipação, resposta social/estabelecimento sem comparticipação e atividades/protocolos); Para cada uma delas devem ser indicadas as três valências que são expectáveis que venham a obter os maiores resultados líquidos þ e as três com menor valor de resultados líquidos ý. Caso a Instituição tenha mais do que seis itens em cada quadro (resposta social/estabelecimento com comparticipação, resposta social/estabelecimento sem comparticipação e atividades/protocolos) a informação relativa a estes itens deve ser agregada e incluída totalmente no mapa II-DEM RESULTADOS na última coluna "Outras". Para cada resposta deve ser indicado: - o n.º médio de utentes (Número médio de utentes mês - devem ser considerados a totalidade dos utentes, ou seja, os protocolados e não protocolados) - o valor médio da comparticipação (Valor estimado da comparticipação do ISS mês /Número médio de utentes mês) - o valor médio das comparticipações das famílias (Valor estimado da comparticipação do ISS mês /Número médio de utentes mês) - o n.º médio de recursos humanos remunerados - o n.º médio de voluntários Para cada atividade ou protocolo, deve ser identificada a sua designação, devendo ser adotada para o registo dos dados, a mesma metodologia das respostas sociais. | AI16: Fundação | AN16: 1105-Centro de Atividades de Tempos Livres
D18: IDENTIFICAÇÃO TOC | G18: Devem ser registados os dados que permitem identificar a TOC da Instituição. | AI18: VERSÃO | AN18: 1301-Centro de Apoio Familiar e Aconselhamento Parental
AI19: Inicial | AN19: 1302-Equipa de Rua de Apoio a Crianças e Jovens
D20: RESPONSABILIDADE DADOS DECLARADOS | G20: A apresentação do orçamento previsional em formato digital tem como objetivo uma simplificação e otimização do processo de submissão, eliminando todos os documentos em suporte papel, sem prejuízo de igual atribuição de responsabilidade pelos dados declarados. | AI20: 1º Retificativo | AN20: 1303-Acolhimento Familiar para Crianças e Jovens
AI22: 2º Retificativo | AN22: 1304-Centro de Acolhimento Temporário
AI23: 3º Retificativo | AN23: 1305-Lar de Infância e Juventude
AI24: 4º Retificativo | AN24: 1306-Apartamento de Autonomização
AN25: 2101-Serviço de Apoio Domiciliário
C26: II | E26: DEMONSTRAÇÃO RESULTADOS | AN26: 2102-Centro de Convívio
AN27: 2103-Centro de Dia
AN28: 2104-Centro de Noite
AI29: Cooperativa | AN29: 1104-Estabelecimento de Educação Pré-Escolar
D30: Introdução dos resultados globais da Instituição, através do registo: - individualizado dos gastos e ganhos das resposta social/estabelecimento com comparticipação, resposta social/estabelecimento sem comparticipação e atividades/protocolos, registados nos quadros dos dados gerais em que são indicadas as três valências que são expectáveis que venham a obter os maiores resultados líquidos þ e as três com menor valor de resultados líquidos ý . - valor acumulado das restantes resposta social/estabelecimento com comparticipação, resposta social/estabelecimento sem comparticipação e atividades/protocolos, incluído totalmente no mapa II-DEM RESULTADOS na última coluna "Outras". | AI30: Fundação | AN30: 1105-Centro de Atividades de Tempos Livres
AI31: Santa Casa da Misericórdia | AN31: 1201-Intervenção Precoce
AI32: 2º Retificativo | AN32: 1304-Centro de Acolhimento Temporário
AI33: 3º Retificativo | AN33: 1305-Lar de Infância e Juventude
AI34: 4º Retificativo | AN34: 1306-Apartamento de Autonomização
AN35: 2101-Serviço de Apoio Domiciliário
C36: III | E36: FINANCIAMENTO | AN36: 2102-Centro de Convívio
AN37: 2103-Centro de Dia
AN38: 2104-Centro de Noite
AI39: Cooperativa | AN39: 1104-Estabelecimento de Educação Pré-Escolar
D40: Registo dos tipos de financiamento obtidos, nomeadamente: - Financiamento público afeto à exploração - Financiamento público afeto ao investimento - Financiamento privado No financiamento público afeto ao investimento e no financiamento privado, para além dos valores refletidos contabilisticamente, devem ser indicados os fluxos financeiros, isto é, os valores monetários que é expectável receber nesse exercício económico. | AI40: Fundação | AN40: 1105-Centro de Atividades de Tempos Livres
AI43: 3º Retificativo | AN43: 1305-Lar de Infância e Juventude
AI44: 4º Retificativo | AN44: 1306-Apartamento de Autonomização
AN45: 2101-Serviço de Apoio Domiciliário
C46: IV | E46: INVESTIMENTO | AN46: 2102-Centro de Convívio
AN47: 2103-Centro de Dia
AN48: 2104-Centro de Noite
AI49: Cooperativa | AN49: 1104-Estabelecimento de Educação Pré-Escolar
D50: Registo dos investimentos que vão ser realizados no exercício económico, nomeadamente: - Investimentos de médio e longo prazo - Investimento em curso - Investimento de curto prazo | AI50: Fundação | AN50: 1105-Centro de Atividades de Tempos Livres
AI53: 3º Retificativo | AN53: 1305-Lar de Infância e Juventude
AI54: 4º Retificativo | AN54: 1306-Apartamento de Autonomização
AN55: 2101-Serviço de Apoio Domiciliário
C56: V | E56: MEMÓRIA JUSTIFICATIVA | AN56: 2102-Centro de Convívio
AN57: 2103-Centro de Dia
AN58: 2104-Centro de Noite
AI59: Cooperativa | AN59: 1104-Estabelecimento de Educação Pré-Escolar
D60: Registo dos dados que fundamentam a projeção realizada e que se entendem relevantes para a avaliação do orçamento. | AI60: Fundação | AN60: 1105-Centro de Atividades de Tempos Livres
AI63: 3º Retificativo | AN63: 1305-Lar de Infância e Juventude

Sheet I-DADOS GERAIS
AI7: TIPO | AN7: Respostas sociais (xxxx)
C8: 1 | E8: IDENTIFICAÇÃO IPSS | AI8: Associação | AN8: 1101-Ama
AI9: Associação Mutualista | AN9: 1102-Ama (Creche Familiar)
AI10: Casa do Povo | AN10: 1103-Creche
AI11: Cooperativa | AN11: 1104-Estabelecimento de Educação Pré-Escolar
D12: DESIGNAÇÃO | G12: Associação de Solidariedade Social "Os Amigos da Landeira" | AI12: Fundação | AN12: 1105-Centro de Atividades de Tempos Livres
AI13: Santa Casa da Misericórdia | AN13: 1201-Intervenção Precoce
D14: NIF/NIPC | G14: 502065591 | K14: NISS | L14: 20008838749 | O14: TIPO | P14: Associação | AI14: Outra | AN14: 1202-Lar de Apoio
AN15: 1203-Transporte de Pessoas com Deficiência
D16: MORADA DA SEDE | G16: Rua Joaquim Agostinho, nº 4 - Landeira | AI16: VERSÃO | AN16: 1301-Centro de Apoio Familiar e Aconselhamento Parental
AI17: Inicial | AN17: 1302-Equipa de Rua de Apoio a Crianças e Jovens
D18: TELEFONE | G18: 265913211 | K18: FAX | O18: E-MAIL | P18: asslandeira@gmail.com | AI18: 1º Retificativo | AN18: 1303-Acolhimento Familiar para Crianças e Jovens
AI19: 2º Retificativo | AN19: 1304-Centro de Acolhimento Temporário
AI20: 3º Retificativo | AN20: 1305-Lar de Infância e Juventude
AI21: 4º Retificativo | AN21: 1306-Apartamento de Autonomização
AN22: 2101-Serviço de Apoio Domiciliário
C23: 2 | E23: DADOS ORÇAMENTO | AN23: 2102-Centro de Convívio
AN24: 2103-Centro de Dia
AN25: 2104-Centro de Noite
AN26: 2105-Acolhimento Familiar para Pessoas Idosas
D27: ANO ECONÓMICO | G27: 2026 | K27: VERSÃO | L27: Inicial | AI27: PARECER CONSELHO FISCAL | AN27: 2106-Residência
AI28: Favorável | AN28: 2107-Lar de Idosos
D29: ATA ÓRGÃO DELIBERATIVO (ASSEMBLEIA GERAL/CONSELHO ADMINISTRAÇÃO) | AI29: Desfavorável | AN29: 2201-Centro de Atendimento/Acompanhamento e Animação para Pessoas com Deficiência
AI30: Com reservas | AN30: 2202-Serviço de Apoio Domiciliário
D31: DATA | G31: 2025-11-07 | AN31: 2203-Centro de Atividades Ocupacionais
AN32: 2204-Acolhimento Familiar para Pessoas Adultas com Deficiência
D33: MEMBROS PRESENTES NA REUNIÃO | G33: CARGO | I33: Presidente | K33: Secretário | M33: Secretário | O33: Presidente | Q33: Secretário | S33: Tesoureiro | AN33: 2205-Lar Residencial
G34: NIF | I34: 182581632 | K34: 124271634 | M34: 188587829 | O34: 129790281 | Q34: 129443603 | S34: 201640090 | AN34: 2206-Transporte de Pessoas com Deficiência
AN35: 2301-Serviço de Apoio Domiciliário
AN36: 2302-Apoio Domiciliário Integrado
AN37: 2303-Unidade de Apoio Integrado
AN38: 2401-Foro Sócio ocupacional
AN39: 2402-Unidade de Vida Protegida
D40: PARECER ÓRGÃO FISCALIZADOR (CONSELHO FISCAL) | AN40: 2403-Unidade de Vida Autónoma
AI41: CARGO | AN41: 2404-Unidade de Vida Apoiada
D42: DATA | G42: 2025-11-10 | K42: DECISÃO | M42: Favorável | AI42: Presidente | AN42: 2501-Equipa de Rua para Pessoas Sem-Abrigo
AI43: Secretário | AN43: 2502-Atelier Ocupacional
D44: MEMBROS PRESENTES NA REUNIÃO | G44: CARGO | I44: Presidente | K44: Vogal | M44: Vogal | AI44: Tesoureiro | AN44: 3101-Atendimento/Acompanhamento Social
G45: NIF | I45: 199263370 | K45: 101591578 | M45: 130040282 | AI45: Outro | AN45: 3102-Grupo de Autoajuda
AN46: 3103-Centro Comunitário
AN47: 3104-Centro de Férias e Lazer
AI48: CARGO | AN48: 3105-Refeitório/Cantina Social
AI49: Presidente | AN49: 3106-Centro de Apoio à Vida
AI50: Vogal | AN50: 3107-Comunidade de Inserção
C51: 3 | E51: DADOS ATIVIDADE | AI51: Outro | AN51: 3108-Centro de Alojamento Temporário
AN52: 3109-Ajuda Alimentar
AN53: 3201-Centro de Atendimento/Acompanhamento Psicossocial
AN54: 3202-Serviço de Apoio Domiciliário
D55: N.º GLOBAL RESPOSTAS SOCIAIS /ESTABELECIMENTO COMPARTICIPADAS | K55: 4 | M55: N.º ÓRGÃOS SOCIAIS | AN55: 3203-Residência para Pessoas com VIH/SIDA
D56: N.º GLOBAL RESPOSTAS SOCIAIS /ESTABELECIMENTO NÃO COMPARTICIPADAS | M56: REMUNERADOS | AN56: 3301-Equipa de Intervenção Direta
D57: N.º GLOBAL ATIVIDADES/PROTOCOLOS | M57: NÃO REMUNERADOS | O57: 9 | AN57: 3302-Apartamento de Reinserção Social
AN58: 3401-Centro de Atendimento
AN59: 3402-Casa de Abrigo
D60: PRINCIPAIS RESPOSTAS SOCIAIS /ESTABELECIMENTO COMPARTICIPADAS | AN60: 4101-Apoio Domiciliário para Guarda de Crianças
D61: TIPO RESPOSTA SOCIAL | J61: N.º MÉDIO UTENTES (Ano) | K61: VALOR MÉDIO COMPARTICIPAÇÃO (conta 75) | M61: VALOR MÉDIO FAMÍLIAS (conta 72) | O61: RECEITA ANUAL | Q61: N.º MÉDIO RECURSOS HUMANOS (FTE) | S61: N.º MÉDIO VOLUNTÁRIOS (FTE) | AN61: 4102-Apoio em Regime Ambulatório
D62: 1103-Creche | J62: 20 | K62: 8791.48 | M62: 0 | O62: =J62*(K62+M62) -> 175829.6 | S62: 4 | Z62: =+D62 -> 1103-Creche | AE62: =+O62 -> 175829.6 | AN62: 4103-Imprensa Braille
D63: 1104-Estabelecimento de Educação Pré-Escolar | J63: 25 | K63: 3277.68 | M63: 2263.8 | O63: 138537 | S63: 4 | Z63: 1104-Estabelecimento de Educação Pré-Escolar | AE63: 138537 | AN63: 4104-Escola de Cães-guia
D64: 1105-Centro de Atividades de Tempos Livres | J64: 15 | K64: 689.48 | M64: 1184.33 | O64: 28107.15 | S64: 2 | Z64: 1105-Centro de Atividades de Tempos Livres | AE64: 28107.15 | AN64: Outros acordos
D65: 2202-Serviço de Apoio Domiciliário | J65: 3 | K65: 4349.88 | M65: 3708 | O65: 24173.64 | S65: 2 | Z65: 2202-Serviço de Apoio Domiciliário | AE65: 24173.64
O66: 0 | Z66: 0 | AE66: 0
O67: 0 | Z67: 0 | AE67: 0
AN69: 2013
D70: PRINCIPAIS RESPOSTAS SOCIAIS /ESTABELECIMENTO NÃO COMPARTICIPADAS | AN70: 2014
D71: TIPO RESPOSTA SOCIAL | J71: N.º MÉDIO UTENTES (Ano) | K71: VALOR MÉDIO COMPARTICIPAÇÃO (conta 75) | M71: VALOR MÉDIO FAMÍLIAS (conta 72) | O71: RECEITA ANUAL | Q71: N.º MÉDIO RECURSOS HUMANOS (FTE) | S71: N.º MÉDIO VOLUNTÁRIOS (FTE) | AN71: 2015
O72: =J72*(K72+M72) -> 0 | Z72: =+D72 -> 0 | AE72: =+O72 -> 0 | AN72: 2016
O73: 0 | Z73: 0 | AE73: 0 | AN73: 2017
O74: 0 | Z74: 0 | AE74: 0 | AN74: 2018
O75: 0 | Z75: 0 | AE75: 0 | AN75: 2019
O76: 0 | Z76: 0 | AE76: 0 | AN76: 2020
O77: 0 | Z77: 0 | AE77: 0 | AN77: 2021
AN78: 2022
AN79: 2023
D80: ATIVIDADES / PROTOCOLOS | AN80: 2024
D81: TIPO ATIVIDADE | J81: N.º MÉDIO UTENTES (Ano) | K81: VALOR MÉDIO COMPARTICIPAÇÃO (conta 75) | M81: VALOR MÉDIO FAMÍLIAS (conta 72) | O81: RECEITA ANUAL | Q81: N.º MÉDIO RECURSOS HUMANOS (FTE) | S81: N.º MÉDIO VOLUNTÁRIOS (FTE) | AN81: 2025
O82: =J82*(K82+M82) -> 0 | Z82: =+D82 -> 0 | AE82: =+O82 -> 0 | AN82: 2026
O83: 0 | Z83: 0 | AE83: 0 | AN83: 2027
O84: 0 | Z84: 0 | AE84: 0 | AN84: 2028
O85: 0 | Z85: 0 | AE85: 0 | AN85: 2029
O86: 0 | Z86: 0 | AE86: 0 | AN86: 2030
O87: 0 | Z87: 0 | AE87: 0 | AN87: 2031
AN88: 2032
AN89: 2033
AN90: 2034
AN91: 2035
C92: 4 | E92: IDENTIFICAÇÃO TOC | AN92: 2036
D96: NOME | G96: Miguel de Faria Martins Rivera
D98: NIF | G98: 128883790 | K98: TELEFONE | L98: 265913211 | O98: TELEM
D100: N.º MEMBRO OTOC | G100: 8107 | K100: E-MAIL | L100: asslandeira@gmail.com
C105: 5 | E105: RESPONSABILIDADE DADOS DECLARADOS
D109: DECLARAÇÃO
D110: Declaro que a informação correspondente ao orçamento previsional corresponde à verdade, não tendo sido omitidos dados relevantes para a sua apreciação, assumindo a responsabilidade pelos elementos declarados, erros e omissões.
D114: NOME | G114: Custódio Manuel Agostinho Rodrigues
D116: NIF | G116: 129790281 | K116: TELEFONE | L116: 265913211 | O116: TELEM | P116: 965540486
D118: DATA | G118: 2025-11-12 | K118: E-MAIL | L118: asslandeira@gmail.com
B125: NISS | C125: =+L14 -> 20008838749
B126: NIF | C126: =+G14 -> 502065591
B127: TIPO | C127: =+P14 -> Associação
B128: ANO ECONÓMICO | C128: =+G27 -> 2026
B129: VERSÃO | C129: =+L27 -> Inicial
B130: DATA ATA | C130: =+G31 -> 2025-11-07
B131: CARGOS_MEMBROS_ATA_1 | C131: =+I33 -> Presidente
B132: CARGOS_MEMBROS_ATA_2 | C132: =+K33 -> Secretário
B133: CARGOS_MEMBROS_ATA_3 | C133: =+M33 -> Secretário
B134: CARGOS_MEMBROS_ATA_4 | C134: =+O33 -> Presidente
B135: CARGOS_MEMBROS_ATA_5 | C135: =+Q33 -> Secretário
B136: CARGOS_MEMBROS_ATA_6 | C136: =+S33 -> Tesoureiro
B137: NIF_MEMBROS_ATA_1 | C137: =+I34 -> 182581632
B138: NIF_MEMBROS_ATA_2 | C138: =+K34 -> 124271634
B139: NIF_MEMBROS_ATA_3 | C139: =+M45 -> 130040282
B140: NIF_MEMBROS_ATA_4 | C140: =+O34 -> 129790281
B141: NIF_MEMBROS_ATA_5 | C141: =+Q34 -> 129443603
B142: NIF_MEMBROS_ATA_6 | C142: =+S34 -> 201640090
B143: DATA_PARECER_CONSELHO_FISCAL | C143: =+G42 -> 2025-11-10
B144: DECISÃO_PARECER_CONSELHO_FISCAL | C144: =+M42 -> Favorável
B145: CARGOS_MEMBROS_CF_1 | C145: =+I44 -> Presidente
B146: CARGOS_MEMBROS_CF_2 | C146: =+K44 -> Vogal
B147: CARGOS_MEMBROS_CF_3 | C147: =+M44 -> Vogal
B148: CARGOS_MEMBROS_CF_4 | C148: =+O44 -> 0
B149: CARGOS_MEMBROS_CF_5 | C149: =+Q44 -> 0
B150: CARGOS_MEMBROS_CF_6 | C150: =+S44 -> 0
B151: NIF_MEMBROS_CF_1 | C151: =+I45 -> 199263370
B152: NIF_MEMBROS_CF_2 | C152: =+K45 -> 101591578
B153: NIF_MEMBROS_CF_3 | C153: =+M45 -> 130040282
B154: NIF_MEMBROS_CF_4 | C154: =+O45 -> 0
B155: NIF_MEMBROS_CF_5 | C155: =+Q45 -> 0
B156: NIF_MEMBROS_CF_6 | C156: =+S45 -> 0
B157: RS_COMPARTICIPADAS | C157: =+K55 -> 4
B158: RS_NÃOCOMPARTICIPADAS | C158: =+K56 -> 0
B159: ATIVIDADES | C159: =+K57 -> 0
B160: OS_REMUNERADOS | C160: =+O56 -> 0
B161: OS_NÃO REMUNERADOS | C161: =+O57 -> 9
B162: TIPO_RS_1 | C162: =+D62 -> 1103-Creche
B163: N.º MÉDIO UTENTES_1 | C163: =+J62 -> 20
B164: VALOR UNITÁRIO COMPARTICIPAÇÃO_1 | C164: =+K62 -> 8791.48
B165: VALOR MÉDIO UNITÁRIO FAMÍLIAS_1 | C165: =+M62 -> 0
B166: RECEITA_1 | C166: =+O62 -> 175829.6
B167: N.º MÉDIO RECURSOS HUMANOS (FTE)_1 | C167: =+Q62 -> 0
B168: N.º MÉDIO VOLUNTÁRIOS (FTE)_1 | C168: =+S62 -> 4
B169: TIPO_RS_2 | C169: =+D63 -> 1104-Estabelecimento de Educação Pré-Escolar
B170: N.º MÉDIO UTENTES_2 | C170: =+J63 -> 25
B171: VALOR UNITÁRIO COMPARTICIPAÇÃO_2 | C171: =+K63 -> 3277.68
B172: VALOR MÉDIO UNITÁRIO FAMÍLIAS_2 | C172: =+M63 -> 2263.8
B173: RECEITA_2 | C173: =+O63 -> 138537
B174: N.º MÉDIO RECURSOS HUMANOS (FTE)_2 | C174: =+Q63 -> 0
B175: N.º MÉDIO VOLUNTÁRIOS (FTE)_2 | C175: =+S63 -> 4
B176: TIPO_RS_3 | C176: =+D64 -> 1105-Centro de Atividades de Tempos Livres
B177: N.º MÉDIO UTENTES_3 | C177: =+J64 -> 15
B178: VALOR UNITÁRIO COMPARTICIPAÇÃO_3 | C178: =+K64 -> 689.48
B179: VALOR MÉDIO UNITÁRIO FAMÍLIAS_3 | C179: =+M64 -> 1184.33
B180: RECEITA_3 | C180: =+O64 -> 28107.15
B181: N.º MÉDIO RECURSOS HUMANOS (FTE)_3 | C181: =+Q64 -> 0
B182: N.º MÉDIO VOLUNTÁRIOS (FTE)_3 | C182: =+S64 -> 2
B183: TIPO_RS_4 | C183: =+D65 -> 2202-Serviço de Apoio Domiciliário
B184: N.º MÉDIO UTENTES_4 | C184: =+J65 -> 3
B185: VALOR UNITÁRIO COMPARTICIPAÇÃO_4 | C185: =+K65 -> 4349.88
B186: VALOR MÉDIO UNITÁRIO FAMÍLIAS_4 | C186: =+M65 -> 3708
B187: RECEITA_4 | C187: =+O65 -> 24173.64
B188: N.º MÉDIO RECURSOS HUMANOS (FTE)_4 | C188: =+Q65 -> 0
B189: N.º MÉDIO VOLUNTÁRIOS (FTE)_4 | C189: =+S65 -> 2
B190: TIPO_RS_5 | C190: =+D66 -> 0
B191: N.º MÉDIO UTENTES_5 | C191: =+J66 -> 0
B192: VALOR UNITÁRIO COMPARTICIPAÇÃO_5 | C192: =+K66 -> 0
B193: VALOR MÉDIO UNITÁRIO FAMÍLIAS_5 | C193: =+M66 -> 0
B194: RECEITA_5 | C194: =+O66 -> 0
B195: N.º MÉDIO RECURSOS HUMANOS (FTE)_5 | C195: =+Q66 -> 0
B196: N.º MÉDIO VOLUNTÁRIOS (FTE)_5 | C196: =+S66 -> 0
B197: TIPO_RS_6 | C197: =+$D67 -> 0
B198: N.º MÉDIO UTENTES_6 | C198: =+$J67 -> 0
B199: VALOR UNITÁRIO COMPARTICIPAÇÃO_6 | C199: =+$K67 -> 0
B200: VALOR MÉDIO UNITÁRIO FAMÍLIAS_6 | C200: =+$M67 -> 0
B201: RECEITA_6 | C201: =+$O67 -> 0
B202: N.º MÉDIO RECURSOS HUMANOS (FTE)_6 | C202: =+$Q67 -> 0
B203: N.º MÉDIO VOLUNTÁRIOS (FTE)_6 | C203: =+$S67 -> 0
B204: TIPO_RS_7 | C204: =+$D72 -> 0
B205: N.º MÉDIO UTENTES_7 | C205: =+$J72 -> 0
B206: VALOR UNITÁRIO COMPARTICIPAÇÃO_7 | C206: =+$K72 -> 0
B207: VALOR MÉDIO UNITÁRIO FAMÍLIAS_7 | C207: =+$M72 -> 0
B208: RECEITA_7 | C208: =+$O72 -> 0
B209: N.º MÉDIO RECURSOS HUMANOS (FTE)_7 | C209: =+$Q72 -> 0
B210: N.º MÉDIO VOLUNTÁRIOS (FTE)_7 | C210: =+$S72 -> 0
B211: TIPO_RS_8 | C211: =+$D73 -> 0
B212: N.º MÉDIO UTENTES_8 | C212: =+$J73 -> 0
B213: VALOR UNITÁRIO COMPARTICIPAÇÃO_8 | C213: =+$K73 -> 0
B214: VALOR MÉDIO UNITÁRIO FAMÍLIAS_8 | C214: =+$M73 -> 0
B215: RECEITA_8 | C215: =+$O73 -> 0
B216: N.º MÉDIO RECURSOS HUMANOS (FTE)_8 | C216: =+$Q73 -> 0
B217: N.º MÉDIO VOLUNTÁRIOS (FTE)_8 | C217: =+$S73 -> 0
B218: TIPO_RS_9 | C218: =+$D74 -> 0
B219: N.º MÉDIO UTENTES_9 | C219: =+$J74 -> 0
B220: VALOR UNITÁRIO COMPARTICIPAÇÃO_9 | C220: =+$K74 -> 0
B221: VALOR MÉDIO UNITÁRIO FAMÍLIAS_9 | C221: =+$M74 -> 0
B222: RECEITA_9 | C222: =+$O74 -> 0
B223: N.º MÉDIO RECURSOS HUMANOS (FTE)_9 | C223: =+$Q74 -> 0
B224: N.º MÉDIO VOLUNTÁRIOS (FTE)_9 | C224: =+$S74 -> 0
B225: TIPO_RS_10 | C225: =+$D75 -> 0
B226: N.º MÉDIO UTENTES_10 | C226: =+$J75 -> 0
B227: VALOR UNITÁRIO COMPARTICIPAÇÃO_10 | C227: =+$K75 -> 0
B228: VALOR MÉDIO UNITÁRIO FAMÍLIAS_10 | C228: =+$M75 -> 0
B229: RECEITA_10 | C229: =+$O75 -> 0
B230: N.º MÉDIO RECURSOS HUMANOS (FTE)_10 | C230: =+$Q75 -> 0
... 59 more rows

Sheet II-DEM RESULTADOS
G4: DEMONSTRAÇÃO RESULTADOS PREVISIONAIS
C10: CLASSE 7 | F10: RENDIMENTOS
C13: CONTA | F13: RUBRICA | I13: TOTAL | J13: =+'I-DADOS GERAIS'!Z62 -> 1103-Creche | K13: =+'I-DADOS GERAIS'!Z63 -> 1104-Estabelecimento de Educação Pré-Escolar | L13: =+'I-DADOS GERAIS'!Z64 -> 1105-Centro de Atividades de Tempos Livres | M13: =+'I-DADOS GERAIS'!Z65 -> 2202-Serviço de Apoio Domiciliário | N13: =+'I-DADOS GERAIS'!Z66 -> 0 | O13: =+'I-DADOS GERAIS'!Z67 -> 0 | P13: =+'I-DADOS GERAIS'!Z72 -> 0 | Q13: =+'I-DADOS GERAIS'!Z73 -> 0 | R13: =+'I-DADOS GERAIS'!Z74 -> 0 | S13: =+'I-DADOS GERAIS'!Z75 -> 0 | T13: =+'I-DADOS GERAIS'!Z76 -> 0 | U13: =+'I-DADOS GERAIS'!Z77 -> 0 | V13: =+'I-DADOS GERAIS'!Z82 -> 0 | W13: =+'I-DADOS GERAIS'!Z83 -> 0 | X13: =+'I-DADOS GERAIS'!Z84 -> 0 | Y13: =+'I-DADOS GERAIS'!Z85 -> 0 | Z13: =+'I-DADOS GERAIS'!Z86 -> 0 | AA13: =+'I-DADOS GERAIS'!Z87 -> 0 | AB13: OUTROS
C14: 71 | F14: VENDAS | I14: =SUM(J14:AB14) -> 0
C15: 72 | F15: PRESTAÇÕES SERVIÇOS | I15: =SUM(J15:AB15) -> 85484 | J15: =+J16+J17 -> 0 | K15: =+K16+K17 -> 56595 | L15: 17765 | M15: 11124 | N15: 0 | O15: 0 | P15: 0 | Q15: 0 | R15: 0 | S15: 0 | T15: 0 | U15: 0 | V15: 0 | W15: 0 | X15: 0 | Y15: 0 | Z15: 0 | AA15: 0 | AB15: 0
C16: 721 | F16: QUOTAS UTILIZADORES (MATRÍCULAS/MENSALIDADES) | I16: 85484 | K16: 56595 | L16: 17765 | M16: 11124
C17: 722/728 | F17: OUTROS SERVIÇOS | I17: 0
C18: 73 | F18: VARIAÇÃO NOS INVENTÁRIOS DA PRODUÇÃO | I18: 0
C19: 74 | F19: TRABALHOS PARA A PRÓPRIA ENTIDADE | I19: 0
C20: 75 | F20: SUBSÍDIOS, DOAÇÕES E LEGADOS À EXPLORAÇÃO | I20: 286163.34 | J20: =+J21+J24+J25+J26 -> 177079.52 | K20: =+K21+K24+K25+K26 -> 83191.98 | L20: 11592.2 | M20: 14299.64 | N20: 0 | O20: 0 | P20: 0 | Q20: 0 | R20: 0 | S20: 0 | T20: 0 | U20: 0 | V20: 0 | W20: 0 | X20: 0 | Y20: 0 | Z20: 0 | AA20: 0 | AB20: 0
C21: 751 | F21: SUBSÍDIOS ESTADO E OUTROS ENTES PÚBLICOS | I21: 286163.34 | J21: =+J22+J23 -> 177079.52 | K21: =+K22+K23 -> 83191.98 | L21: 11592.2 | M21: 14299.64 | N21: 0 | O21: 0 | P21: 0 | Q21: 0 | R21: 0 | S21: 0 | T21: 0 | U21: 0 | V21: 0 | W21: 0 | X21: 0 | Y21: 0 | Z21: 0 | AA21: 0 | AB21: 0
C22: 7511 | F22: ISS, IP | I22: 281163.34 | J22: 175829.52 | K22: 81941.98 | L22: 10342.2 | M22: 13049.64
C23: 7512 | F23: OUTRAS ENTIDADES PÚBLICAS | I23: 5000 | J23: 1250 | K23: 1250 | L23: 1250 | M23: 1250
C24: 752 | F24: SUBSÍDIOS DE OUTRAS ENTIDADES | I24: 0
C25: 753 | F25: DOAÇÕES E HERANÇAS | I25: 0
C26: 754 | F26: LEGADOS | I26: 0
C27: 76 | F27: REVERSÕES | I27: 0 | J27: =+J28+J29+J30+J31 -> 0 | K27: =+K28+K29+K30+K31 -> 0 | L27: 0 | M27: 0 | N27: 0 | O27: 0 | P27: 0 | Q27: 0 | R27: 0 | S27: 0 | T27: 0 | U27: 0 | V27: 0 | W27: 0 | X27: 0 | Y27: =+Y28+Y29+Y30+Y31 -> 0 | Z27: =+Z28+Z29+Z30+Z31 -> 0 | AA27: =+AA28+AA29+AA30+AA31 -> 0 | AB27: =+AB28+AB29+AB30+AB31 -> 0
C28: 761 | F28: DE DEPRECIAÇÕES E AMORTIZAÇÕES | I28: 0
C29: 762 | F29: DE PERDAS POR IMPARIDADE | I29: 0
C30: 763 | F30: DE PROVISÕES | I30: 0
C31: 764 | F31: DE PROVISÕES ESPECÍFICAS | I31: 0
C32: 77 | F32: GANHOS POR AUMENTOS DE JUSTO VALOR | I32: 0
C33: 78 | F33: OUTROS RENDIMENTOS E GANHOS | I33: 2822.54 | J33: =+J34+J35+J36 -> 625 | K33: =+K34+K35+K36 -> 625 | L33: 625 | M33: 947.54 | N33: 0 | O33: 0 | P33: 0 | Q33: 0 | R33: 0 | S33: 0 | T33: 0 | U33: 0 | V33: 0 | W33: 0 | X33: 0 | Y33: 0 | Z33: 0 | AA33: 0 | AB33: 0
C34: 781 | F34: RENDIMENTOS SUPLEMENTARES | I34: 0
C35: 782 / 787 | F35: OUTROS RENDIMENTOS EM ATIVOS
C36: 788 | F36: OUTROS RENDIMENTOS E GANHOS | I36: 2822.54 | J36: =+J37+J38+J39+J40 -> 625 | K36: =+K37+K38+K39+K40 -> 625 | L36: 625 | M36: 947.54 | N36: 0 | O36: 0 | P36: 0 | Q36: 0 | R36: 0 | S36: 0 | T36: 0 | U36: 0 | V36: 0 | W36: 0 | X36: 0 | Y36: =+Y37+Y38+Y39+Y40 -> 0 | Z36: =+Z37+Z38+Z39+Z40 -> 0 | AA36: =+AA37+AA38+AA39+AA40 -> 0 | AB36: =+AB37+AB38+AB39+AB40 -> 0
C37: 7881 | F37: CORREÇÕES DE PERÍODOS ANTERIORES | I37: 0
C38: 7883 | F38: IMPUTAÇÃO DE SUBSÍDIOS DE INVESTIMENTO | I38: 1622.54 | J38: 325 | K38: 325 | L38: 325 | M38: 647.54
C39: 7882-7884/7887 | F39: RENDIMENTOS E GANHOS EM ATIVOS | I39: 1200 | J39: 300 | K39: 300 | L39: 300 | M39: 300
C40: 7888 | F40: OUTROS NÃO ESPECIFICADOS | I40: 0
C41: 79 | F41: JUROS, DIVIDENDOS E OUTROS RENDIMENTOS SIMILARES | I41: 0
C42: 7 | F42: TOTAL RENDIMENTOS | I42: =+I14+I15+I18+I19+I20+I27+I32+I33+I41 -> 374469.88 | J42: =+J14+J15+J18+J19+J20+J27+J32+J33+J41 -> 177704.52 | K42: 140411.98 | L42: 29982.2 | M42: 26371.18 | N42: 0 | O42: 0 | P42: 0 | Q42: 0 | R42: 0 | S42: 0 | T42: 0 | U42: 0 | V42: 0 | W42: 0 | X42: 0 | Y42: 0 | Z42: 0 | AA42: 0 | AB42: 0
C45: CLASSE 6 | F45: GASTOS
C48: CONTA | F48: RUBRICA | I48: TOTAL | J48: =+J13 -> 1103-Creche | K48: 1104-Estabelecimento de Educação Pré-Escolar | L48: 1105-Centro de Atividades de Tempos Livres | M48: 2202-Serviço de Apoio Domiciliário | N48: 0 | O48: 0 | P48: 0 | Q48: 0 | R48: 0 | S48: 0 | T48: 0 | U48: 0 | V48: 0 | W48: 0 | X48: 0 | Y48: 0 | Z48: 0 | AA48: 0 | AB48: OUTROS
C49: 61 | F49: CUSTO MERCADORIAS E MATÉRIAS CONSUMIDAS | I49: =SUM(J49:AB49) -> 38500 | J49: 13090 | K49: 16170 | L49: 6160 | M49: 3080
C50: 62 | F50: FORNECIMENTOS E SERVIÇOS EXTERNOS | I50: =SUM(J50:AB50) -> 42150 | J50: =+J51+J52+J60+J66+J71+J76 -> 11844.5 | K50: =+K51+K52+K60+K66+K71+K76 -> 13514.5 | L50: 9636 | M50: 7155 | N50: 0 | O50: 0 | P50: 0 | Q50: 0 | R50: 0 | S50: 0 | T50: 0 | U50: 0 | V50: 0 | W50: 0 | X50: 0 | Y50: 0 | Z50: 0 | AA50: 0 | AB50: 0
C51: 621 | F51: SUBCONTRATOS | I51: 0
C52: 622 | F52: SERVIÇOS ESPECIALIZADOS | I52: 6900 | J52: =+J53+J54+J55+J56+J57+J58+J59 -> 2075 | K52: =+K53+K54+K55+K56+K57+K58+K59 -> 2075 | L52: 2075 | M52: 675 | N52: 0 | O52: 0 | P52: 0 | Q52: 0 | R52: 0 | S52: 0 | T52: 0 | U52: 0 | V52: 0 | W52: 0 | X52: 0 | Y52: 0 | Z52: 0 | AA52: 0 | AB52: 0
C53: 6221 | F53: TRABALHOS ESPECIALIZADOS | I53: 0
C54: 6222 | F54: PUBLICIDADE E PROPAGANDA | I54: 0
C55: 6223 | F55: VIGILÂNCIA E SEGURANÇA | I55: 700 | J55: 175 | K55: 175 | L55: 175 | M55: 175
C56: 6224 | F56: HONORÁRIOS | I56: 0
C57: 6225 | F57: COMISSÕES | I57: 0
C58: 6226 | F58: CONSERVAÇÃO E REPARAÇÃO | I58: 4200 | J58: 1400 | K58: 1400 | L58: 1400 | M58: 0
C59: 6228 | F59: OUTROS | I59: 2000 | J59: 500 | K59: 500 | L59: 500 | M59: 500
C60: 623 | F60: MATERIAIS | I60: 11750 | J60: =+J61+J62+J63+J64+J65 -> 2742.5 | K60: =+K61+K62+K63+K64+K65 -> 4082.5 | L60: 2712.5 | M60: 2212.5 | N60: 0 | O60: 0 | P60: 0 | Q60: 0 | R60: 0 | S60: 0 | T60: 0 | U60: 0 | V60: 0 | W60: 0 | X60: 0 | Y60: 0 | Z60: 0 | AA60: 0 | AB60: 0
C61: 6231 | F61: FERRAMENTAS E UTENSÍLIOS DE DESGATE RÁPIDO | I61: 6500 | J61: 1625 | K61: 1625 | L61: 1625 | M61: 1625
C62: 6232 | F62: LIVROS E DOCUMENTAÇÃO TÉCNICA | I62: 0
C63: 6233 | F63: MATERIAL DE ESCRITÓRIO | I63: 2000 | J63: 500 | K63: 880 | L63: 500 | M63: 120
C64: 6234 | F64: ARTIGOS PARA OFERTA | I64: 1750 | J64: 437.5 | K64: 437.5 | L64: 437.5 | M64: 437.5
C65: 6235/6238 | F65: OUTROS | I65: 1500 | J65: 180 | K65: 1140 | L65: 150 | M65: 30
C66: 624 | F66: ENERGIA E FLUIDOS | I66: 11950 | J66: =+J67+J68+J69+J70 -> 3584.5 | K66: =+K67+K68+K69+K70 -> 4164.5 | L66: 1896 | M66: 2305 | N66: 0 | O66: 0 | P66: 0 | Q66: 0 | R66: 0 | S66: 0 | T66: 0 | U66: 0 | V66: 0 | W66: 0 | X66: 0 | Y66: 0 | Z66: 0 | AA66: 0 | AB66: 0
C67: 6241 | F67: ELETRICIDADE | I67: 7500 | J67: 2532 | K67: 2532 | L67: 1291 | M67: 1145
C68: 6242 | F68: COMBUSTÍVEIS | I68: 1200 | J68: 240 | K68: 240 | L68: 240 | M68: 480
C69: 6243 | F69: ÁGUA | I69: 1250 | J69: 312.5 | K69: 312.5 | L69: 225 | M69: 400
C70: 6248 | F70: OUTROS | I70: 2000 | J70: 500 | K70: 1080 | L70: 140 | M70: 280
C71: 625 | F71: DESLOCAÇÕES, ESTADAS E TRANSPORTES | I71: 1500 | J71: =+J72+J73+J74+J75 -> 375 | K71: =+K72+K73+K74+K75 -> 375 | L71: 375 | M71: 375 | N71: 0 | O71: 0 | P71: 0 | Q71: 0 | R71: 0 | S71: 0 | T71: 0 | U71: 0 | V71: 0 | W71: 0 | X71: 0 | Y71: 0 | Z71: 0 | AA71: 0 | AB71: 0
C72: 6251 | F72: DESLOCAÇÕES E ESTADAS | I72: 1500 | J72: 375 | K72: 375 | L72: 375 | M72: 375
C73: 6252 | F73: TRANSPORTES DE PESSOAL | I73: 0
C74: 6253 | F74: TRANSPORTES DE MERCADORIAS | I74: 0
C75: 6258 | F75: OUTROS | I75: 0
C76: 626 | F76: SERVIÇOS DIVERSOS | I76: 10050 | J76: =+J77+J78+J79+J80+J81+J82+J83+J84 -> 3067.5 | K76: =+K77+K78+K79+K80+K81+K82+K83+K84 -> 2817.5 | L76: 2577.5 | M76: 1587.5 | N76: 0 | O76: 0 | P76: 0 | Q76: 0 | R76: 0 | S76: 0 | T76: 0 | U76: 0 | V76: 0 | W76: 0 | X76: 0 | Y76: 0 | Z76: 0 | AA76: 0 | AB76: 0
C77: 6261 | F77: RENDAS E ALUGUERES | I77: 0
C78: 6262 | F78: COMUNICAÇÃO | I78: 3000 | J78: 840 | K78: 840 | L78: 840 | M78: 480
C79: 6263 | F79: SEGUROS | I79: 750 | J79: 187.5 | K79: 187.5 | L79: 187.5 | M79: 187.5
C80: 6264 | F80: ROYALTIES | I80: 0
C81: 6265 | F81: CONTENCIOSO E NOTARIADO | I81: 250 | J81: 250
C82: 6266 | F82: DESPESAS DE REPRESENTAÇÃO | I82: 500 | J82: 125 | K82: 125 | L82: 125 | M82: 125
C83: 6267 | F83: LIMPEZA, HIGIENE E CONFORTO | I83: 4800 | J83: 1440 | K83: 1440 | L83: 1200 | M83: 720
C84: 6268 | F84: OUTROS SERVIÇOS | I84: 750 | J84: 225 | K84: 225 | L84: 225 | M84: 75
C85: 63 | F85: GASTOS COM PESSOAL | I85: 257380.84 | J85: =+J86+J89+J92+J95+J98+J101+J104+J107 -> 97466.72 | K85: =+K86+K89+K92+K95+K98+K101+K104+K107 -> 117849.18 | L85: 23580.27 | M85: 18484.67 | N85: 0 | O85: 0 | P85: 0 | Q85: 0 | R85: 0 | S85: 0 | T85: 0 | U85: 0 | V85: 0 | W85: 0 | X85: 0 | Y85: 0 | Z85: 0 | AA85: 0 | AB85: 0
C86: 631 | F86: REMUNERAÇÕES DOS ÓRGÃOS SOCIAIS | I86: 0 | J86: =+J87+J88 -> 0 | K86: =+K87+K88 -> 0 | L86: 0 | M86: 0 | N86: 0 | O86: 0 | P86: 0 | Q86: 0 | R86: 0 | S86: 0 | T86: 0 | U86: 0 | V86: 0 | W86: 0 | X86: 0 | Y86: 0 | Z86: 0 | AA86: 0 | AB86: 0
C87: 6311 | F87: REMUNERAÇÕES CERTAS | I87: 0
C88: 6312 | F88: REMUNERAÇÕES ADICIONAIS | I88: 0
C89: 632 | F89: REMUNERAÇÕES DO PESSOAL | I89: 208324.48 | J89: =+J90+J91 -> 79163.3 | K89: =+K90+K91 -> 95829.26 | L89: 18749.2 | M89: 14582.72 | N89: 0 | O89: 0 | P89: 0 | Q89: 0 | R89: 0 | S89: 0 | T89: 0 | U89: 0 | V89: 0 | W89: 0 | X89: 0 | Y89: 0 | Z89: 0 | AA89: 0 | AB89: 0
C90: 6321 | F90: REMUNERAÇÕES CERTAS | I90: 208324.48 | J90: 79163.3 | K90: 95829.26 | L90: 18749.2 | M90: 14582.72
C91: 6322 | F91: REMUNERAÇÕES ADICIONAIS | I91: 0
C92: 633 | F92: BENEFÍCIOS PÓS-EMPREGO | I92: 0 | J92: =+J93+J94 -> 0 | K92: =+K93+K94 -> 0 | L92: 0 | M92: 0 | N92: 0 | O92: 0 | P92: 0 | Q92: 0 | R92: 0 | S92: 0 | T92: 0 | U92: 0 | V92: 0 | W92: 0 | X92: 0 | Y92: 0 | Z92: 0 | AA92: 0 | AB92: 0
C93: 6331 | F93: ÓRGÃOS SOCIAIS | I93: 0
C94: 6332 | F94: PESSOAL | I94: 0
C95: 634 | F95: INDEMNIZAÇÕES | I95: 0 | J95: =+J96+J97 -> 0 | K95: =+K96+K97 -> 0 | L95: 0 | M95: 0 | N95: 0 | O95: 0 | P95: 0 | Q95: 0 | R95: 0 | S95: 0 | T95: 0 | U95: 0 | V95: 0 | W95: 0 | X95: 0 | Y95: 0 | Z95: 0 | AA95: 0 | AB95: 0
C96: 6341 | F96: ÓRGÃOS SOCIAIS | I96: 0
C97: 6342 | F97: PESSOAL | I97: 0
C98: 635 | F98: ENCARGOS SOBRE REMUNERAÇÕES | I98: 46456.36 | J98: =+J99+J100 -> 17653.42 | K98: =+K99+K100 -> 21369.92 | L98: 4181.07 | M98: 3251.95 | N98: 0 | O98: 0 | P98: 0 | Q98: 0 | R98: 0 | S98: 0 | T98: 0 | U98: 0 | V98: 0 | W98: 0 | X98: 0 | Y98: 0 | Z98: 0 | AA98: 0 | AB98: 0
C99: 6351 | F99: ÓRGÃOS SOCIAIS | I99: 0
C100: 6352 | F100: PESSOAL | I100: 46456.36 | J100: 17653.42 | K100: 21369.92 | L100: 4181.07 | M100: 3251.95
C101: 636 | F101: SEGUROS ACIDENTES TRABALHO E DOENÇAS PROFISSIONAIS | I101: 1850 | J101: =+J102+J103 -> 462.5 | K101: =+K102+K103 -> 462.5 | L101: 462.5 | M101: 462.5 | N101: 0 | O101: 0 | P101: 0 | Q101: 0 | R101: 0 | S101: 0 | T101: 0 | U101: 0 | V101: 0 | W101: 0 | X101: 0 | Y101: 0 | Z101: 0 | AA101: 0 | AB101: 0
C102: 6361 | F102: ÓRGÃOS SOCIAIS | I102: 0
C103: 6362 | F103: PESSOAL | I103: 1850 | J103: 462.5 | K103: 462.5 | L103: 462.5 | M103: 462.5
C104: 637 | F104: GASTOS DE AÇÃO SOCIAL | I104: 0 | J104: =+J105+J106 -> 0 | K104: =+K105+K106 -> 0 | L104: 0 | M104: 0 | N104: 0 | O104: 0 | P104: 0 | Q104: 0 | R104: 0 | S104: 0 | T104: 0 | U104: 0 | V104: 0 | W104: 0 | X104: 0 | Y104: 0 | Z104: 0 | AA104: 0 | AB104: 0
C105: 6371 | F105: ÓRGÃOS SOCIAIS | I105: 0
C106: 6372 | F106: PESSOAL | I106: 0
C107: 638 | F107: OUTROS GASTOS COM O PESSOAL | I107: 750 | J107: =+J108+J109 -> 187.5 | K107: =+K108+K109 -> 187.5 | L107: 187.5 | M107: 187.5 | N107: 0 | O107: 0 | P107: 0 | Q107: 0 | R107: 0 | S107: 0 | T107: 0 | U107: 0 | V107: 0 | W107: 0 | X107: 0 | Y107: 0 | Z107: 0 | AA107: 0 | AB107: 0
C108: 6381 | F108: ÓRGÃOS SOCIAIS | I108: 0
C109: 6382 | F109: PESSOAL | I109: 750 | J109: 187.5 | K109: 187.5 | L109: 187.5 | M109: 187.5
C110: 64 | F110: GASTOS DE DEPRECIAÇÃO E AMORTIZAÇÃO | I110: 10100 | J110: =+J111+J112+J113 -> 2279 | K110: =+K111+K112+K113 -> 3345 | L110: 1910 | M110: 2566 | N110: 0 | O110: 0 | P110: 0 | Q110: 0 | R110: 0 | S110: 0 | T110: 0 | U110: 0 | V110: 0 | W110: 0 | X110: 0 | Y110: 0 | Z110: 0 | AA110: 0 | AB110: 0
C111: 641 | F111: PROPRIEDADES DE INVESTIMENTO | I111: 0
C112: 642 | F112: ATIVOS FIXOS TANGÍVEIS | I112: 10100 | J112: 2279 | K112: 3345 | L112: 1910 | M112: 2566
C113: 643 | F113: ATIVOS INTANGÍVEIS | I113: 0
C114: 65 | F114: PERDAS POR IMPARIDADE | I114: =SUM(J114:AB114) -> 0 | J114: =+J115+J116+J117 -> 0 | K114: =+K115+K116+K117 -> 0 | L114: 0 | M114: 0 | N114: 0 | O114: 0 | P114: 0 | Q114: 0 | R114: 0 | S114: 0 | T114: 0 | U114: 0 | V114: 0 | W114: 0 | X114: 0 | Y114: 0 | Z114: 0 | AA114: 0 | AB114: 0
C115: 651 | F115: DE DÍVIDAS A RECEBER | I115: 0
C116: 652 | F116: DE INVENTÁRIOS | I116: 0
C117: 653/658 | F117: PERDAS EM OUTROS ATIVOS | I117: 0
C118: 66 | F118: PERDAS POR REDUÇÃO DE JUSTO VALOR | I118: 0
C119: 67 | F119: PROVISÕES DO PERÍODO | I119: 0
C120: 68 | F120: OUTROS GASTOS E PERDAS | I120: 180 | J120: =+J121+J122+J123+J128 -> 45 | K120: =+K121+K122+K123+K128 -> 45 | L120: 45 | M120: 45 | N120: 0 | O120: 0 | P120: 0 | Q120: 0 | R120: 0 | S120: 0 | T120: 0 | U120: 0 | V120: 0 | W120: 0 | X120: 0 | Y120: 0 | Z120: 0 | AA120: 0 | AB120: 0
C121: 681 | F121: IMPOSTOS | I121: 0
C122: 682/687 | F122: OUTROS GASTOS E PERDAS EM ATIVOS | I122: 0
C123: 688 | F123: OUTROS GASTOS E PERDAS | I123: 180 | J123: =+J124+J125+J126+J127 -> 45 | K123: =+K124+K125+K126+K127 -> 45 | L123: 45 | M123: 45 | N123: 0 | O123: 0 | P123: 0 | Q123: 0 | R123: 0 | S123: 0 | T123: 0 | U123: 0 | V123: 0 | W123: 0 | X123: 0 | Y123: 0 | Z123: 0 | AA123: 0 | AB123: 0
C124: 6881 | F124: CORREÇÕES DE PERÍODOS ANTERIORES | I124: 0
C125: 6882 | F125: DONATIVOS | I125: 0
C126: 6883 | F126: QUOTIZAÇÕES | I126: 180 | J126: 45 | K126: 45 | L126: 45 | M126: 45
C127: 6884/6888 | F127: OUTROS GASTOS E PERDAS | I127: 0
C128: 689 | F128: CUSTOS C/ APOIOS FIN. CONCEDIDOS A ASS. OU UTENTES | I128: 0
C129: 69 | F129: GASTOS E PERDAS DE FINANCIAMENTO | I129: 96 | J129: 24 | K129: 24 | L129: 24 | M129: 24
C130: 6 | F130: TOTAL GASTOS | I130: =+I49+I50+I85+I110+I114+I118+I119+I120+I129 -> 348406.84 | J130: =+J49+J50+J85+J110+J114+J118+J119+J120+J129 -> 124749.22 | K130: 150947.68 | L130: 41355.27 | M130: 31354.67 | N130: 0 | O130: 0 | P130: 0 | Q130: 0 | R130: 0 | S130: 0 | T130: 0 | U130: 0 | V130: 0 | W130: 0 | X130: 0 | Y130: 0 | Z130: 0 | AA130: 0 | AB130: 0
C133: CLASSE 8 | F133: RESULTADOS
C136: 85 | F136: RESULTADOS ANTES IMPOSTOS | I136: =+I42-I130 -> 26063.04 | J136: =+J42-J130 -> 52955.3 | K136: -10535.7 | L136: -11373.07 | M136: -4983.49 | N136: 0 | O136: 0 | P136: 0 | Q136: 0 | R136: 0 | S136: 0 | T136: 0 | U136: 0 | V136: 0 | W136: 0 | X136: 0 | Y136: 0 | Z136: 0 | AA136: 0 | AB136: 0
C137: 86 | F137: IMPOSTO RENDIMENTO EXERCÍCIO | I137: =SUM(J137:AB137) -> 0
C138: 88 | F138: RESULTADO LÍQUIDO | I138: =+I136-I137 -> 26063.04 | J138: 52955.3 | K138: -10535.7 | L138: -11373.07 | M138: -4983.49 | N138: 0 | O138: 0 | P138: 0 | Q138: 0 | R138: 0 | S138: 0 | T138: 0 | U138: 0 | V138: 0 | W138: 0 | X138: 0 | Y138: 0 | Z138: 0 | AA138: 0 | AB138: 0

Sheet III- FINANCIAMENTO
G4: FONTES DE FINANCIAMENTO
C9: 1 | E9: FINANCIAMENTO PÚBLICO - COMPONENTE EXPLORAÇÃO
C12: ENTIDADES FINANCIADORAS | F12: RUBRICA FINANCIAMENTO | H12: REGISTO CONTABILÍSTICO
H13: 75 - EXPLORAÇÃO
C14: ISS, IP | F14: ACORDOS DE COOPERAÇÃO
F15: 1101-Ama
F16: 1102-Ama (Cresce Familiar) | G16: 1102-Ama (Cresce Familiar)
F17: 1103-Cresce | G17: 1103-Cresce | H17: 175829.52
F18: 1104-Estabelecimento de Educação Pré-Escolar | G18: 1104-Estabelecimento de Educação Pré-Escolar | H18: 81941.98
F19: 1105-Centro de Atividades de Tempos Livres | G19: 1105-Centro de Atividades de Tempos Livres | H19: 10342.2
F20: 1201-Intervenção Precoce | G20: 1201-Intervenção Precoce
F21: 1202-Lar de Apoio | G21: 1202-Lar de Apoio
F22: 1203-Transporte de Pessoas com Deficiência | G22: 1203-Transporte de Pessoas com Deficiência
F23: 1301-Centro de Apoio Familiar e Aconselhamento Parental | G23: 1301-Centro de Apoio Familiar e Aconselhamento Parental
F24: 1302-Equipa de Rua de Apoio a Crianças e Jovens | G24: 1302-Equipa de Rua de Apoio a Crianças e Jovens
F25: 1303-Acolhimento Familiar para Crianças e Jovens | G25: 1303-Acolhimento Familiar para Crianças e Jovens
F26: 1304-Centro de Acolhimento Temporário | G26: 1304-Centro de Acolhimento Temporário
F27: 1305-Lar de Infância e Juventude | G27: 1305-Lar de Infância e Juventude
F28: 1306-Apartamento de Autonomização | G28: 1306-Apartamento de Autonomização
F29: 2101-Serviço de Apoio Domiciliário | G29: 2101-Serviço de Apoio Domiciliário
F30: 2102-Centro de Convívio | G30: 2102-Centro de Convívio
F31: 2103-Centro de Dia | G31: 2103-Centro de Dia
F32: 2104-Centro de Noite | G32: 2104-Centro de Noite
F33: 2105-Acolhimento Familiar para Pessoas Idosas | G33: 2105-Acolhimento Familiar para Pessoas Idosas
F34: 2106-Residência | G34: 2106-Residência
F35: 2107-Lar de Idosos | G35: 2107-Lar de Idosos
F36: 2201-Centro At./Acomp.Animação Pessoas com Deficiência | G36: 2201-Centro At./Acomp.Animação Pessoas com Deficiência
F37: 2202-Serviço de Apoio Domiciliário | G37: 2202-Serviço de Apoio Domiciliário | H37: 13049.64
F38: 2203-Centro de Atividades Ocupacionais | G38: 2203-Centro de Atividades Ocupacionais
F39: 2204-Acolhimento Familiar para Pessoas Adultas com Deficiência | G39: 2204-Acolhimento Familiar para Pessoas Adultas com Deficiência
F40: 2205-Lar Residencial | G40: 2205-Lar Residencial
F41: 2206-Transporte de Pessoas com Deficiência | G41: 2206-Transporte de Pessoas com Deficiência
F42: 2301-Serviço de Apoio Domiciliário | G42: 2301-Serviço de Apoio Domiciliário
F43: 2302-Apoio Domiciliário Integrado | G43: 2302-Apoio Domiciliário Integrado
F44: 2303-Unidade de Apoio Integrado | G44: 2303-Unidade de Apoio Integrado
F45: 2401-Foro Sócio ocupacional | G45: 2401-Foro Sócio ocupacional
F46: 2402-Unidade de Vida Protegida | G46: 2402-Unidade de Vida Protegida
F47: 2403-Unidade de Vida Autónoma | G47: 2403-Unidade de Vida Autónoma
F48: 2404-Unidade de Vida Apoiada | G48: 2404-Unidade de Vida Apoiada
F49: 2501-Equipa de Rua para Pessoas Sem-Abrigo | G49: 2501-Equipa de Rua para Pessoas Sem-Abrigo
F50: 2502-Atelier Ocupacional | G50: 2502-Atelier Ocupacional
F51: 3101-Atendimento/Acompanhamento Social | G51: 3101-Atendimento/Acompanhamento Social
F52: 3102-Grupo de Autoajuda | G52: 3102-Grupo de Autoajuda
F53: 3103-Centro Comunitário | G53: 3103-Centro Comunitário
F54: 3104-Centro de Férias e Lazer | G54: 3104-Centro de Férias e Lazer
F55: 3105-Refeitório/Cantina Social | G55: 3105-Refeitório/Cantina Social
F56: 3106-Centro de Apoio à Vida | G56: 3106-Centro de Apoio à Vida
F57: 3107-Comunidade de Inserção | G57: 3107-Comunidade de Inserção
F58: 3108-Centro de Alojamento Temporário | G58: 3108-Centro de Alojamento Temporário
F59: 3109-Ajuda Alimentar | G59: 3109-Ajuda Alimentar
F60: 3201-Centro de Atendimento/Acompanhamento Psicossocial | G60: 3201-Centro de Atendimento/Acompanhamento Psicossocial
F61: 3202-Serviço de Apoio Domiciliário | G61: 3202-Serviço de Apoio Domiciliário
F62: 3203-Residência para Pessoas com VIH/SIDA | G62: 3203-Residência para Pessoas com VIH/SIDA
F63: 3301-Equipa de Intervenção Direta | G63: 3301-Equipa de Intervenção Direta
F64: 3302-Apartamento de Reinserção Social | G64: 3302-Apartamento de Reinserção Social
F65: 3401-Centro de Atendimento | G65: 3401-Centro de Atendimento
F66: 3402-Casa de Abrigo | G66: 3402-Casa de Abrigo
F67: 4101-Apoio Domiciliário para Guarda de Crianças | G67: 4101-Apoio Domiciliário para Guarda de Crianças
F68: 4102-Apoio em Regime Ambulatório | G68: 4102-Apoio em Regime Ambulatório
F69: 4103-Imprensa Braille | G69: 4103-Imprensa Braille
F70: 4104-Escola de Cães-guia | G70: 4104-Escola de Cães-guia
F71: Outros acordos | G71: Outros acordos
F72: PROTOCOLOS | G72: PROTOCOLOS
F73: Sensibilizar, Envolver, Renovar, Esperança, Mais (SERE +)
F74: Rendimento Social de Inserção (RSI) | G74: Rendimento Social de Inserção (RSI)
F75: Rede Nacional de Cuidados Continuados Integrados (RNCCI) | G75: Rede Nacional de Cuidados Continuados Integrados (RNCCI)
F76: Linha Nacional Emergência Social (LNES)
F77: Outros protocolos | G77: Outros protocolos
F78: PROGRAMAS | G78: PROGRAMAS
F79: Programa Integrado de Educação e Formação (PIEF) | G79: Programa Integrado de Educação e Formação (PIEF)
F80: Contratos Locais de Desenvolvimento Social (CLDS) | G80: Contratos Locais de Desenvolvimento Social (CLDS)
F81: Prog. de Apoio Integrado a Idosos (PAII) | G81: Programa de Apoio Integrado a Idosos (PAII)
F82: Programa de Idosos em Lar (PILAR)
F83: Programa de Emergência Social/Cantinas Sociais (PES)
F84: Programa de apoio à 1ª Infância (PAPI)
F85: Prog. Comunitário de Ajuda Alimentar a Carenciados (PCAAC) | G85: Programa Comunitário de Ajuda Alimentar a Carenciados (PCAAC)
F86: Prog. de Alargamento da Rede de Equipamentos Sociais (PARES) | G86: Programa de Alargamento da Rede de Equipamentos Sociais (PARES)
F87: Prog. de Apoio ao Investimentos a Respostas Sociais (POPH) | G87: Programa de Apoio ao Investimentos a Respostas Sociais (POPH)
F88: Medida de Apoio à Segurança dos Equipamentos Sociais (MASES) | G88: Medida de Apoio à Segurança dos Equipamentos Sociais (MASES)
F89: Programa Conforto Habitacional Para Pessoas Idosas (PCHI) | G89: Programa Conforto Habitacional Para Pessoas Idosas (PCHI)
F90: Outros programas | G90: Outros programas
F91: FUNDOS | G91: FUNDOS
F92: Reequilíbrio Financeiro | G92: Reequilíbrio Financeiro
F93: Compensação Sócioeconómica | G93: Compensação Sócio-económica
F94: Outros fundos | G94: Outros protocolos
C95: IGFSS | F95: Acordos de Cooperação | G95: Acordos de Cooperação
F96: Protocolos | G96: Protocolos
F97: Programas | G97: Programas
F98: Fundos | G98: Fundos
F99: Outros | G99: Outros
C100: IEFP, IP | F100: Acordos de Cooperação | G100: Acordos de Cooperação
F101: Protocolos | G101: Protocolos
F102: Programas | G102: Programas
F103: Fundos | G103: Fundos
F104: Outros | G104: Outros
C105: Autarquias | E105: Autarquias | F105: Acordos de Cooperação | G105: Acordos de Cooperação
F106: Protocolos | G106: Protocolos
F107: Programas | G107: Programas
F108: Fundos | G108: Fundos
F109: Outros | G109: Outros | H109: 5000
C110: Ministério da Educação | E110: Ministério da Educação | F110: Acordos de Cooperação | G110: Acordos de Cooperação
F111: Protocolos | G111: Protocolos
F112: Programas | G112: Programas
F113: Fundos | G113: Fundos
F114: Outros | G114: Outros
C115: Ministério da Saúde | E115: Ministério da Saúde | F115: Acordos de Cooperação | G115: Acordos de Cooperação
F116: Protocolos | G116: Protocolos
F117: Programas | G117: Programas
F118: Fundos | G118: Fundos
F119: Outros | G119: Outros
C120: Ministéria da Economia | E120: Ministéria da Economia | F120: Acordos de Cooperação | G120: Acordos de Cooperação
F121: Protocolos | G121: Protocolos
F122: Programas | G122: Programas
F123: Fundos | G123: Fundos
F124: Outros | G124: Outros
C125: Outras Entidades Públicas | E125: Outras Entidades Públicas | F125: Acordos de Cooperação | G125: Acordos de Cooperação
F126: Protocolos | G126: Protocolos
F127: Programas | G127: Programas
F128: Fundos | G128: Fundos
F129: Outros | G129: Outros
C130: TOTAL | H130: =SUM(H15:H129) -> 286163.34
C133: 2 | E133: FINANCIAMENTO PÚBLICO - COMPONENTE INVESTIMENTO
C136: ENTIDADES FINANCIADORAS | F136: RUBRICA FINANCIAMENTO | H136: REGISTO CONTABILÍSTICO | I136: FLUXO FINANCEIRO
H137: 59 - INVESTIMENTO
C138: ISS | F138: PROGRAMAS | G138: PROGRAMAS | H138: =SUM(H139:H140) -> 0 | I138: =SUM(I139:I140) -> 0
F139: PIDDAC | G139: PIDDAC
F140: Outros | G140: Outros
F141: FUNDOS | G141: FUNDOS | H141: =SUM(H142:H143) -> 0 | I141: =SUM(I142:I143) -> 0
F142: FSS | G142: FSS
F143: Outros | G143: Outros
F144: OUTROS | G144: OUTROS | H144: =SUM(H145) -> 0 | I144: =SUM(I145) -> 0
F145: Outros | G145: Outros
C146: IGFSS | F146: Programas | G146: Programas
F147: Fundos | G147: Fundos
F148: Outros | G148: Outros
C149: IEFP, IP | F149: Programas | G149: Programas
F150: Fundos | G150: Fundos
F151: Outros | G151: Outros
C152: Autarquias | F152: Programas | G152: Programas
F153: Fundos | G153: Fundos
F154: Outros | G154: Outros
C155: Ministério da Educação | F155: Programas | G155: Programas
F156: Fundos | G156: Fundos
F157: Outros | G157: Outros
C158: Ministério da Saúde | F158: Programas | G158: Programas
F159: Fundos | G159: Fundos
F160: Outros | G160: Outros
C161: Ministéria da Economia | F161: Programas | G161: Programas
F162: Fundos | G162: Fundos
F163: Outros | G163: Outros
C164: Outras Entidades Públicas | F164: Programas | G164: Programas
F165: Fundos | G165: Fundos
F166: Outros | G166: Outros
C167: TOTAL | H167: =SUM(H138,H141,H144,H146:H166) -> 0 | I167: =SUM(I138,I141,I144,I146:I166) -> 0
C170: 3 | E170: FINANCIAMENTO PRIVADO
C173: ENTIDADES FINANCIADORAS | F173: RUBRICA FINANCIAMENTO | H173: REGISTO CONTABILÍSTICO | J173: FLUXO FINANCEIRO
H174: 75 - EXPLORAÇÃO | I174: 59 - INVESTIMENTO

Sheet IV-INVESTIMENTO
F3: INVESTIMENTO
C7: INVESTIMENTO MÉDIO E LONGO PRAZO | F7: VALOR | H7: INVESTIMENTOS EM CURSO | I7: VALOR
C8: Ativos Intangíveis | F8: =+F9+F10+F11+F12+F13+F14 -> 0 | H8: Novas aquisições (compras e prestações serviços)
C9: Bens domínio público | H9: Adiantamentos
C10: Goodwill | H10: Trabalhos própria Entidade
C11: Projetos de desenvolvimento | H11: Transferência para Imobilizado pela conclusão obra (-)
C12: Programas de Computador | H12: TOTAL INVESTIMENTO EM CURSO | I12: =+I8+I9+I10+I11 -> 0
C13: Propriedade Industrial
C14: Outros Ativos intangíveis
C15: Ativos Fixos Tangíveis | F15: =+F16+F17+F18+F19+F20+F21+F22+F23+F24 -> 35000
C16: Bens domínio público | H16: INVESTIMENTOS - CP | I16: VALOR
C17: Bens do Património Histórico e Cultural | H17: Outros ativos Financeiros
C18: Terrenos e Recursos Naturais | H18: Outros passivos Financeiros
C19: Edifícios e Outras Construções | H19: TOTAL INVESTIMENTO - CP | I19: =+I17+I18 -> 0
C20: Equipamento Básico
C21: Equipamento de Transporte | F21: 35000
C22: Equipamento Administrativo
C23: Equipamentos Biológicos
C24: Outros ativos fixos tangíveis
C25: Propriedades de Investimento
C26: Investimentos Financeiros
C27: Outros ativos Financeiros (não correntes detidos para venda)
C28: TOTAL INVESTIMENTO - MLP | F28: =+F8+F15+F25+F26+F27 -> 35000 | H28: TOTAL NOVO INVESTIMENTO: | I28: =+F28+I12+I19 -> 35000

Sheet V-MEMÓRIA JUSTIFICATIVA
AI7: TIPO | AN7: Respostas sociais (xxxx)
C8: # | E8: MEMÓRIA JUSTIFICATIVA | AI8: Associação | AN8: 1101-Ama
AI9: Associação Mutualista | AN9: 1102-Ama (Cresce Familiar)
AI10: Casa do Povo | AN10: 1103-Cresce
AI11: Cooperativa | AN11: 1104-Estabelecimento de Educação Pré-Escolar
K15: ORÇAMENTO 2026
E18: Foram considerados como base para a elaboração deste orçamento, os seguintes documentos:
E20: (&) - Balancetes de 2025 (já disponíveis)
E23: A exemplo dos últimos anos, têm vindo os Orgãos responsáveis desta Instituição com muito
E24: esforço a ajustar a forma adequada para que a mesma continue a sua atividade.
E25: Verificou-se um aumento na liquidez da tesouraria, o que faz com que os Orgãos desta
E26: Instituição continuem a acreditar que a mesma começa a reunir condições para continuar a
E27: prestar serviço aos seus utentes, ainda com mais qualidade.
AI54: Fundação | AN54: 1105-Centro de Atividades de Tempos Livres
AI55: 2º Retificativo | AN55: 1304-Centro de Acolhimento Temporário
AI56: 3º Retificativo | AN56: 1305-Lar de Infância e Juventude

Sheet dados I (hidden)
A1: =+'I-DADOS GERAIS'!B125 -> NISS | B1: =+'I-DADOS GERAIS'!B126 -> NIF | C1: =+'I-DADOS GERAIS'!$B127 -> TIPO | D1: =+'I-DADOS GERAIS'!$B128 -> ANO ECONÓMICO | E1: =+'I-DADOS GERAIS'!$B129 -> VERSÃO | F1: =+'I-DADOS GERAIS'!$B130 -> DATA ATA | G1: =+'I-DADOS GERAIS'!$B131 -> CARGOS_MEMBROS_ATA_1 | H1: =+'I-DADOS GERAIS'!$B132 -> CARGOS_MEMBROS_ATA_2 | I1: =+'I-DADOS GERAIS'!$B133 -> CARGOS_MEMBROS_ATA_3 | J1: =+'I-DADOS GERAIS'!$B134 -> CARGOS_MEMBROS_ATA_4 | K1: =+'I-DADOS GERAIS'!$B135 -> CARGOS_MEMBROS_ATA_5 | L1: =+'I-DADOS GERAIS'!$B136 -> CARGOS_MEMBROS_ATA_6 | M1: =+'I-DADOS GERAIS'!$B137 -> NIF_MEMBROS_ATA_1 | N1: =+'I-DADOS GERAIS'!$B138 -> NIF_MEMBROS_ATA_2 | O1: =+'I-DADOS GERAIS'!$B139 -> NIF_MEMBROS_ATA_3 | P1: =+'I-DADOS GERAIS'!$B140 -> NIF_MEMBROS_ATA_4 | Q1: =+'I-DADOS GERAIS'!$B141 -> NIF_MEMBROS_ATA_5 | R1: =+'I-DADOS GERAIS'!$B142 -> NIF_MEMBROS_ATA_6 | S1: =+'I-DADOS GERAIS'!$B143 -> DATA_PARECER_CONSELHO_FISCAL | T1: =+'I-DADOS GERAIS'!$B144 -> DECISÃO_PARECER_CONSELHO_FISCAL | U1: =+'I-DADOS GERAIS'!$B145 -> CARGOS_MEMBROS_CF_1 | V1: =+'I-DADOS GERAIS'!$B146 -> CARGOS_MEMBROS_CF_2 | W1: =+'I-DADOS GERAIS'!$B147 -> CARGOS_MEMBROS_CF_3 | X1: =+'I-DADOS GERAIS'!$B148 -> CARGOS_MEMBROS_CF_4 | Y1: =+'I-DADOS GERAIS'!$B149 -> CARGOS_MEMBROS_CF_5 | Z1: =+'I-DADOS GERAIS'!$B150 -> CARGOS_MEMBROS_CF_6 | AA1: =+'I-DADOS GERAIS'!$B151 -> NIF_MEMBROS_CF_1 | AB1: =+'I-DADOS GERAIS'!$B152 -> NIF_MEMBROS_CF_2 | AC1: =+'I-DADOS GERAIS'!$B153 -> NIF_MEMBROS_CF_3 | AD1: =+'I-DADOS GERAIS'!$B154 -> NIF_MEMBROS_CF_4 | AE1: =+'I-DADOS GERAIS'!$B155 -> NIF_MEMBROS_CF_5 | AF1: =+'I-DADOS GERAIS'!$B156 -> NIF_MEMBROS_CF_6 | AG1: =+'I-DADOS GERAIS'!$B157 -> RS_COMPARTICIPADAS | AH1: =+'I-DADOS GERAIS'!$B158 -> RS_NÃOCOMPARTICIPADAS | AI1: =+'I-DADOS GERAIS'!$B159 -> ATIVIDADES | AJ1: =+'I-DADOS GERAIS'!$B160 -> OS_REMUNERADOS | AK1: =+'I-DADOS GERAIS'!$B161 -> OS_NÃO REMUNERADOS | AL1: =+'I-DADOS GERAIS'!$B162 -> TIPO_RS_1 | AM1: =+'I-DADOS GERAIS'!$B163 -> N.º MÉDIO UTENTES_1 | AN1: =+'I-DADOS GERAIS'!$B164 -> VALOR UNITÁRIO COMPARTICIPAÇÃO_1 | AO1: =+'I-DADOS GERAIS'!$B165 -> VALOR MÉDIO UNITÁRIO FAMÍLIAS_1 | AP1: =+'I-DADOS GERAIS'!$B166 -> RECEITA_1 | AQ1: =+'I-DADOS GERAIS'!$B167 -> N.º MÉDIO RECURSOS HUMANOS (FTE)_1 | AR1: =+'I-DADOS GERAIS'!$B168 -> N.º MÉDIO VOLUNTÁRIOS (FTE)_1 | AS1: =+'I-DADOS GERAIS'!$B169 -> TIPO_RS_2 | AT1: =+'I-DADOS GERAIS'!$B170 -> N.º MÉDIO UTENTES_2 | AU1: =+'I-DADOS GERAIS'!$B171 -> VALOR UNITÁRIO COMPARTICIPAÇÃO_2 | AV1: =+'I-DADOS GERAIS'!$B172 -> VALOR MÉDIO UNITÁRIO FAMÍLIAS_2 | AW1: =+'I-DADOS GERAIS'!$B173 -> RECEITA_2 | AX1: =+'I-DADOS GERAIS'!$B174 -> N.º MÉDIO RECURSOS HUMANOS (FTE)_2 | AY1: =+'I-DADOS GERAIS'!$B175 -> N.º MÉDIO VOLUNTÁRIOS (FTE)_2 | AZ1: =+'I-DADOS GERAIS'!$B176 -> TIPO_RS_3 | BA1: =+'I-DADOS GERAIS'!$B177 -> N.º MÉDIO UTENTES_3 | BB1: =+'I-DADOS GERAIS'!$B178 -> VALOR UNITÁRIO COMPARTICIPAÇÃO_3 | BC1: =+'I-DADOS GERAIS'!$B179 -> VALOR MÉDIO UNITÁRIO FAMÍLIAS_3 | BD1: =+'I-DADOS GERAIS'!$B180 -> RECEITA_3 | BE1: =+'I-DADOS GERAIS'!$B181 -> N.º MÉDIO RECURSOS HUMANOS (FTE)_3 | BF1: =+'I-DADOS GERAIS'!$B182 -> N.º MÉDIO VOLUNTÁRIOS (FTE)_3 | BG1: =+'I-DADOS GERAIS'!$B183 -> TIPO_RS_4 | BH1: =+'I-DADOS GERAIS'!$B184 -> N.º MÉDIO UTENTES_4 | BI1: =+'I-DADOS GERAIS'!$B185 -> VALOR UNITÁRIO COMPARTICIPAÇÃO_4 | BJ1: =+'I-DADOS GERAIS'!$B186 -> VALOR MÉDIO UNITÁRIO FAMÍLIAS_4 | BK1: =+'I-DADOS GERAIS'!$B187 -> RECEITA_4 | BL1: =+'I-DADOS GERAIS'!$B188 -> N.º MÉDIO RECURSOS HUMANOS (FTE)_4 | BM1: =+'I-DADOS GERAIS'!$B189 -> N.º MÉDIO VOLUNTÁRIOS (FTE)_4 | BN1: =+'I-DADOS GERAIS'!$B190 -> TIPO_RS_5 | BO1: =+'I-DADOS GERAIS'!$B191 -> N.º MÉDIO UTENTES_5 | BP1: =+'I-DADOS GERAIS'!$B192 -> VALOR UNITÁRIO COMPARTICIPAÇÃO_5 | BQ1: =+'I-DADOS GERAIS'!$B193 -> VALOR MÉDIO UNITÁRIO FAMÍLIAS_5 | BR1: =+'I-DADOS GERAIS'!$B194 -> RECEITA_5 | BS1: =+'I-DADOS GERAIS'!$B195 -> N.º MÉDIO RECURSOS HUMANOS (FTE)_5 | BT1: =+'I-DADOS GERAIS'!$B196 -> N.º MÉDIO VOLUNTÁRIOS (FTE)_5 | BU1: =+'I-DADOS GERAIS'!$B197 -> TIPO_RS_6 | BV1: =+'I-DADOS GERAIS'!$B198 -> N.º MÉDIO UTENTES_6 | BW1: =+'I-DADOS GERAIS'!$B199 -> VALOR UNITÁRIO COMPARTICIPAÇÃO_6 | BX1: =+'I-DADOS GERAIS'!$B200 -> VALOR MÉDIO UNITÁRIO FAMÍLIAS_6 | BY1: =+'I-DADOS GERAIS'!$B201 -> RECEITA_6 | BZ1: =+'I-DADOS GERAIS'!$B202 -> N.º MÉDIO RECURSOS HUMANOS (FTE)_6 | CA1: =+'I-DADOS GERAIS'!$B203 -> N.º MÉDIO VOLUNTÁRIOS (FTE)_6 | CB1: =+'I-DADOS GERAIS'!$B204 -> TIPO_RS_7 | CC1: =+'I-DADOS GERAIS'!$B205 -> N.º MÉDIO UTENTES_7 | CD1: =+'I-DADOS GERAIS'!$B206 -> VALOR UNITÁRIO COMPARTICIPAÇÃO_7 | CE1: =+'I-DADOS GERAIS'!$B207 -> VALOR MÉDIO UNITÁRIO FAMÍLIAS_7 | CF1: =+'I-DADOS GERAIS'!$B208 -> RECEITA_7 | CG1: =+'I-DADOS GERAIS'!$B209 -> N.º MÉDIO RECURSOS HUMANOS (FTE)_7 | CH1: =+'I-DADOS GERAIS'!$B210 -> N.º MÉDIO VOLUNTÁRIOS (FTE)_7 | CI1: =+'I-DADOS GERAIS'!$B211 -> TIPO_RS_8 | CJ1: =+'I-DADOS GERAIS'!$B212 -> N.º MÉDIO UTENTES_8 | CK1: =+'I-DADOS GERAIS'!$B213 -> VALOR UNITÁRIO COMPARTICIPAÇÃO_8 | CL1: =+'I-DADOS GERAIS'!$B214 -> VALOR MÉDIO UNITÁRIO FAMÍLIAS_8 | CM1: =+'I-DADOS GERAIS'!$B215 -> RECEITA_8 | CN1: =+'I-DADOS GERAIS'!$B216 -> N.º MÉDIO RECURSOS HUMANOS (FTE)_8 | CO1: =+'I-DADOS GERAIS'!$B217 -> N.º MÉDIO VOLUNTÁRIOS (FTE)_8 | CP1: =+'I-DADOS GERAIS'!$B218 -> TIPO_RS_9 | CQ1: =+'I-DADOS GERAIS'!$B219 -> N.º MÉDIO UTENTES_9 | CR1: =+'I-DADOS GERAIS'!$B220 -> VALOR UNITÁRIO COMPARTICIPAÇÃO_9 | CS1: =+'I-DADOS GERAIS'!$B221 -> VALOR MÉDIO UNITÁRIO FAMÍLIAS_9 | CT1: =+'I-DADOS GERAIS'!$B222 -> RECEITA_9 | CU1: =+'I-DADOS GERAIS'!$B223 -> N.º MÉDIO RECURSOS HUMANOS (FTE)_9 | CV1: =+'I-DADOS GERAIS'!$B224 -> N.º MÉDIO VOLUNTÁRIOS (FTE)_9 | CW1: =+'I-DADOS GERAIS'!$B225 -> TIPO_RS_10 | CX1: =+'I-DADOS GERAIS'!$B226 -> N.º MÉDIO UTENTES_10 | CY1: =+'I-DADOS GERAIS'!$B227 -> VALOR UNITÁRIO COMPARTICIPAÇÃO_10 | CZ1: =+'I-DADOS GERAIS'!$B228 -> VALOR MÉDIO UNITÁRIO FAMÍLIAS_10 | DA1: =+'I-DADOS GERAIS'!$B229 -> RECEITA_10 | DB1: =+'I-DADOS GERAIS'!$B230 -> N.º MÉDIO RECURSOS HUMANOS (FTE)_10 | DC1: =+'I-DADOS GERAIS'!$B231 -> N.º MÉDIO VOLUNTÁRIOS (FTE)_10 | DD1: =+'I-DADOS GERAIS'!$B232 -> TIPO_RS_11 | DE1: =+'I-DADOS GERAIS'!$B233 -> N.º MÉDIO UTENTES_11 | DF1: =+'I-DADOS GERAIS'!$B234 -> VALOR UNITÁRIO COMPARTICIPAÇÃO_11 | DG1: =+'I-DADOS GERAIS'!$B235 -> VALOR MÉDIO UNITÁRIO FAMÍLIAS_11 | DH1: =+'I-DADOS GERAIS'!$B236 -> RECEITA_11 | DI1: =+'I-DADOS GERAIS'!$B237 -> N.º MÉDIO RECURSOS HUMANOS (FTE)_11 | DJ1: =+'I-DADOS GERAIS'!$B238 -> N.º MÉDIO VOLUNTÁRIOS (FTE)_11 | DK1: =+'I-DADOS GERAIS'!$B239 -> TIPO_RS_12 | DL1: =+'I-DADOS GERAIS'!$B240 -> N.º MÉDIO UTENTES_12 | DM1: =+'I-DADOS GERAIS'!$B241 -> VALOR UNITÁRIO COMPARTICIPAÇÃO_12 | DN1: =+'I-DADOS GERAIS'!$B242 -> VALOR MÉDIO UNITÁRIO FAMÍLIAS_12 | DO1: =+'I-DADOS GERAIS'!$B243 -> RECEITA_12 | DP1: =+'I-DADOS GERAIS'!$B244 -> N.º MÉDIO RECURSOS HUMANOS (FTE)_12 | DQ1: =+'I-DADOS GERAIS'!$B245 -> N.º MÉDIO VOLUNTÁRIOS (FTE)_12 | DR1: =+'I-DADOS GERAIS'!$B246 -> TIPO_RS_13 | DS1: =+'I-DADOS GERAIS'!$B247 -> N.º MÉDIO UTENTES_13 | DT1: =+'I-DADOS GERAIS'!$B248 -> VALOR UNITÁRIO COMPARTICIPAÇÃO_13 | DU1: =+'I-DADOS GERAIS'!$B249 -> VALOR MÉDIO UNITÁRIO FAMÍLIAS_13 | DV1: =+'I-DADOS GERAIS'!$B250 -> RECEITA_13 | DW1: =+'I-DADOS GERAIS'!$B251 -> N.º MÉDIO RECURSOS HUMANOS (FTE)_13 | DX1: =+'I-DADOS GERAIS'!$B252 -> N.º MÉDIO VOLUNTÁRIOS (FTE)_13 | DY1: =+'I-DADOS GERAIS'!$B253 -> TIPO_RS_14 | DZ1: =+'I-DADOS GERAIS'!$B254 -> N.º MÉDIO UTENTES_14 | EA1: =+'I-DADOS GERAIS'!$B255 -> VALOR UNITÁRIO COMPARTICIPAÇÃO_14 | EB1: =+'I-DADOS GERAIS'!$B256 -> VALOR MÉDIO UNITÁRIO FAMÍLIAS_14 | EC1: =+'I-DADOS GERAIS'!$B257 -> RECEITA_14 | ED1: =+'I-DADOS GERAIS'!$B258 -> N.º MÉDIO RECURSOS HUMANOS (FTE)_14 | EE1: =+'I-DADOS GERAIS'!$B259 -> N.º MÉDIO VOLUNTÁRIOS (FTE)_14 | EF1: =+'I-DADOS GERAIS'!$B260 -> TIPO_RS_15 | EG1: =+'I-DADOS GERAIS'!$B261 -> N.º MÉDIO UTENTES_15 | EH1: =+'I-DADOS GERAIS'!$B262 -> VALOR UNITÁRIO COMPARTICIPAÇÃO_15 | EI1: =+'I-DADOS GERAIS'!$B263 -> VALOR MÉDIO UNITÁRIO FAMÍLIAS_15 | EJ1: =+'I-DADOS GERAIS'!$B264 -> RECEITA_15 | EK1: =+'I-DADOS GERAIS'!$B265 -> N.º MÉDIO RECURSOS HUMANOS (FTE)_15 | EL1: =+'I-DADOS GERAIS'!$B266 -> N.º MÉDIO VOLUNTÁRIOS (FTE)_15 | EM1: =+'I-DADOS GERAIS'!$B267 -> TIPO_RS_16 | EN1: =+'I-DADOS GERAIS'!$B268 -> N.º MÉDIO UTENTES_16 | EO1: =+'I-DADOS GERAIS'!$B269 -> VALOR UNITÁRIO COMPARTICIPAÇÃO_16 | EP1: =+'I-DADOS GERAIS'!$B270 -> VALOR MÉDIO UNITÁRIO FAMÍLIAS_16 | EQ1: =+'I-DADOS GERAIS'!$B271 -> RECEITA_16 | ER1: =+'I-DADOS GERAIS'!$B272 -> N.º MÉDIO RECURSOS HUMANOS (FTE)_16 | ES1: =+'I-DADOS GERAIS'!$B273 -> N.º MÉDIO VOLUNTÁRIOS (FTE)_16 | ET1: =+'I-DADOS GERAIS'!$B274 -> TIPO_RS_17 | EU1: =+'I-DADOS GERAIS'!$B275 -> N.º MÉDIO UTENTES_17 | EV1: =+'I-DADOS GERAIS'!$B276 -> VALOR UNITÁRIO COMPARTICIPAÇÃO_17 | EW1: =+'I-DADOS GERAIS'!$B277 -> VALOR MÉDIO UNITÁRIO FAMÍLIAS_17 | EX1: =+'I-DADOS GERAIS'!$B278 -> RECEITA_17 | EY1: =+'I-DADOS GERAIS'!$B279 -> N.º MÉDIO RECURSOS HUMANOS (FTE)_17 | EZ1: =+'I-DADOS GERAIS'!$B280 -> N.º MÉDIO VOLUNTÁRIOS (FTE)_17 | FA1: =+'I-DADOS GERAIS'!$B281 -> TIPO_RS_18 | FB1: =+'I-DADOS GERAIS'!$B282 -> N.º MÉDIO UTENTES_18 | FC1: =+'I-DADOS GERAIS'!$B283 -> VALOR UNITÁRIO COMPARTICIPAÇÃO_18 | FD1: =+'I-DADOS GERAIS'!$B284 -> VALOR MÉDIO UNITÁRIO FAMÍLIAS_18 | FE1: =+'I-DADOS GERAIS'!$B285 -> RECEITA_18 | FF1: =+'I-DADOS GERAIS'!$B286 -> N.º MÉDIO RECURSOS HUMANOS (FTE)_18 | FG1: =+'I-DADOS GERAIS'!$B287 -> N.º MÉDIO VOLUNTÁRIOS (FTE)_18 | FH1: =+'I-DADOS GERAIS'!$B288 -> NIF_TOC | FI1: =+'I-DADOS GERAIS'!$B289 -> NIF_RESPONSÁVEL
A2: =+'I-DADOS GERAIS'!$C125 -> 20008838749 | B2: =+'I-DADOS GERAIS'!$C126 -> 502065591 | C2: =+'I-DADOS GERAIS'!$C127 -> Associação | D2: =+'I-DADOS GERAIS'!$C128 -> 2026 | E2: =+'I-DADOS GERAIS'!$C129 -> Inicial | F2: =+'I-DADOS GERAIS'!$C130 -> 45968 | G2: =+'I-DADOS GERAIS'!$C131 -> Presidente | H2: =+'I-DADOS GERAIS'!$C132 -> Secretário | I2: =+'I-DADOS GERAIS'!$C133 -> Secretário | J2: =+'I-DADOS GERAIS'!$C134 -> Presidente | K2: =+'I-DADOS GERAIS'!$C135 -> Secretário | L2: =+'I-DADOS GERAIS'!$C136 -> Tesoureiro | M2: =+'I-DADOS GERAIS'!$C137 -> 182581632 | N2: =+'I-DADOS GERAIS'!$C138 -> 124271634 | O2: =+'I-DADOS GERAIS'!$C139 -> 130040282 | P2: =+'I-DADOS GERAIS'!$C140 -> 129790281 | Q2: =+'I-DADOS GERAIS'!$C141 -> 129443603 | R2: =+'I-DADOS GERAIS'!$C142 -> 201640090 | S2: =+'I-DADOS GERAIS'!$C143 -> 45971 | T2: =+'I-DADOS GERAIS'!$C144 -> Favorável | U2: =+'I-DADOS GERAIS'!$C145 -> Presidente | V2: =+'I-DADOS GERAIS'!$C146 -> Vogal | W2: =+'I-DADOS GERAIS'!$C147 -> Vogal | X2: =+'I-DADOS GERAIS'!$C148 -> 0 | Y2: =+'I-DADOS GERAIS'!$C149 -> 0 | Z2: =+'I-DADOS GERAIS'!$C150 -> 0 | AA2: =+'I-DADOS GERAIS'!$C151 -> 199263370 | AB2: =+'I-DADOS GERAIS'!$C152 -> 101591578 | AC2: =+'I-DADOS GERAIS'!$C153 -> 130040282 | AD2: =+'I-DADOS GERAIS'!$C154 -> 0 | AE2: =+'I-DADOS GERAIS'!$C155 -> 0 | AF2: =+'I-DADOS GERAIS'!$C156 -> 0 | AG2: =+'I-DADOS GERAIS'!$C157 -> 4 | AH2: =+'I-DADOS GERAIS'!$C158 -> 0 | AI2: =+'I-DADOS GERAIS'!$C159 -> 0 | AJ2: =+'I-DADOS GERAIS'!$C160 -> 0 | AK2: =+'I-DADOS GERAIS'!$C161 -> 9 | AL2: =+'I-DADOS GERAIS'!$C162 -> 1103-Creche | AM2: =+'I-DADOS GERAIS'!$C163 -> 20 | AN2: =+'I-DADOS GERAIS'!$C164 -> 8791.48 | AO2: =+'I-DADOS GERAIS'!$C165 -> 0 | AP2: =+'I-DADOS GERAIS'!$C166 -> 175829.6 | AQ2: =+'I-DADOS GERAIS'!$C167 -> 0 | AR2: =+'I-DADOS GERAIS'!$C168 -> 4 | AS2: =+'I-DADOS GERAIS'!$C169 -> 1104-Estabelecimento de Educação Pré-Escolar | AT2: =+'I-DADOS GERAIS'!$C170 -> 25 | AU2: =+'I-DADOS GERAIS'!$C171 -> 3277.68 | AV2: =+'I-DADOS GERAIS'!$C172 -> 2263.8 | AW2: =+'I-DADOS GERAIS'!$C173 -> 138537 | AX2: =+'I-DADOS GERAIS'!$C174 -> 0 | AY2: =+'I-DADOS GERAIS'!$C175 -> 4 | AZ2: =+'I-DADOS GERAIS'!$C176 -> 1105-Centro de Atividades de Tempos Livres | BA2: =+'I-DADOS GERAIS'!$C177 -> 15 | BB2: =+'I-DADOS GERAIS'!$C178 -> 689.48 | BC2: =+'I-DADOS GERAIS'!$C179 -> 1184.33 | BD2: =+'I-DADOS GERAIS'!$C180 -> 28107.15 | BE2: =+'I-DADOS GERAIS'!$C181 -> 0 | BF2: =+'I-DADOS GERAIS'!$C182 -> 2 | BG2: =+'I-DADOS GERAIS'!$C183 -> 2202-Serviço de Apoio Domiciliário | BH2: =+'I-DADOS GERAIS'!$C184 -> 3 | BI2: =+'I-DADOS GERAIS'!$C185 -> 4349.88 | BJ2: =+'I-DADOS GERAIS'!$C186 -> 3708 | BK2: =+'I-DADOS GERAIS'!$C187 -> 24173.64 | BL2: =+'I-DADOS GERAIS'!$C188 -> 0 | BM2: =+'I-DADOS GERAIS'!$C189 -> 2 | BN2: =+'I-DADOS GERAIS'!$C190 -> 0 | BO2: =+'I-DADOS GERAIS'!$C191 -> 0 | BP2: =+'I-DADOS GERAIS'!$C192 -> 0 | BQ2: =+'I-DADOS GERAIS'!$C193 -> 0 | BR2: =+'I-DADOS GERAIS'!$C194 -> 0 | BS2: =+'I-DADOS GERAIS'!$C195 -> 0 | BT2: =+'I-DADOS GERAIS'!$C196 -> 0 | BU2: =+'I-DADOS GERAIS'!$C197 -> 0 | BV2: =+'I-DADOS GERAIS'!$C198 -> 0 | BW2: =+'I-DADOS GERAIS'!$C199 -> 0 | BX2: =+'I-DADOS GERAIS'!$C200 -> 0 | BY2: =+'I-DADOS GERAIS'!$C201 -> 0 | BZ2: =+'I-DADOS GERAIS'!$C202 -> 0 | CA2: =+'I-DADOS GERAIS'!$C203 -> 0 | CB2: =+'I-DADOS GERAIS'!$C204 -> 0 | CC2: =+'I-DADOS GERAIS'!$C205 -> 0 | CD2: =+'I-DADOS GERAIS'!$C206 -> 0 | CE2: =+'I-DADOS GERAIS'!$C207 -> 0 | CF2: =+'I-DADOS GERAIS'!$C208 -> 0 | CG2: =+'I-DADOS GERAIS'!$C209 -> 0 | CH2: =+'I-DADOS GERAIS'!$C210 -> 0 | CI2: =+'I-DADOS GERAIS'!$C211 -> 0 | CJ2: =+'I-DADOS GERAIS'!$C212 -> 0 | CK2: =+'I-DADOS GERAIS'!$C213 -> 0 | CL2: =+'I-DADOS GERAIS'!$C214 -> 0 | CM2: =+'I-DADOS GERAIS'!$C215 -> 0 | CN2: =+'I-DADOS GERAIS'!$C216 -> 0 | CO2: =+'I-DADOS GERAIS'!$C217 -> 0 | CP2: =+'I-DADOS GERAIS'!$C218 -> 0 | CQ2: =+'I-DADOS GERAIS'!$C219 -> 0 | CR2: =+'I-DADOS GERAIS'!$C220 -> 0 | CS2: =+'I-DADOS GERAIS'!$C221 -> 0 | CT2: =+'I-DADOS GERAIS'!$C222 -> 0 | CU2: =+'I-DADOS GERAIS'!$C223 -> 0 | CV2: =+'I-DADOS GERAIS'!$C224 -> 0 | CW2: =+'I-DADOS GERAIS'!$C225 -> 0 | CX2: =+'I-DADOS GERAIS'!$C226 -> 0 | CY2: =+'I-DADOS GERAIS'!$C227 -> 0 | CZ2: =+'I-DADOS GERAIS'!$C228 -> 0 | DA2: =+'I-DADOS GERAIS'!$C229 -> 0 | DB2: =+'I-DADOS GERAIS'!$C230 -> 0 | DC2: =+'I-DADOS GERAIS'!$C231 -> 0 | DD2: =+'I-DADOS GERAIS'!$C232 -> 0 | DE2: =+'I-DADOS GERAIS'!$C233 -> 0 | DF2: =+'I-DADOS GERAIS'!$C234 -> 0 | DG2: =+'I-DADOS GERAIS'!$C235 -> 0 | DH2: =+'I-DADOS GERAIS'!$C236 -> 0 | DI2: =+'I-DADOS GERAIS'!$C237 -> 0 | DJ2: =+'I-DADOS GERAIS'!$C238 -> 0 | DK2: =+'I-DADOS GERAIS'!$C239 -> 0 | DL2: =+'I-DADOS GERAIS'!$C240 -> 0 | DM2: =+'I-DADOS GERAIS'!$C241 -> 0 | DN2: =+'I-DADOS GERAIS'!$C242 -> 0 | DO2: =+'I-DADOS GERAIS'!$C243 -> 0 | DP2: =+'I-DADOS GERAIS'!$C244 -> 0 | DQ2: =+'I-DADOS GERAIS'!$C245 -> 0 | DR2: =+'I-DADOS GERAIS'!$C246 -> 0 | DS2: =+'I-DADOS GERAIS'!$C247 -> 0 | DT2: =+'I-DADOS GERAIS'!$C248 -> 0 | DU2: =+'I-DADOS GERAIS'!$C249 -> 0 | DV2: =+'I-DADOS GERAIS'!$C250 -> 0 | DW2: =+'I-DADOS GERAIS'!$C251 -> 0 | DX2: =+'I-DADOS GERAIS'!$C252 -> 0 | DY2: =+'I-DADOS GERAIS'!$C253 -> 0 | DZ2: =+'I-DADOS GERAIS'!$C254 -> 0 | EA2: =+'I-DADOS GERAIS'!$C255 -> 0 | EB2: =+'I-DADOS GERAIS'!$C256 -> 0 | EC2: =+'I-DADOS GERAIS'!$C257 -> 0 | ED2: =+'I-DADOS GERAIS'!$C258 -> 0 | EE2: =+'I-DADOS GERAIS'!$C259 -> 0 | EF2: =+'I-DADOS GERAIS'!$C260 -> 0 | EG2: =+'I-DADOS GERAIS'!$C261 -> 0 | EH2: =+'I-DADOS GERAIS'!$C262 -> 0 | EI2: =+'I-DADOS GERAIS'!$C263 -> 0 | EJ2: =+'I-DADOS GERAIS'!$C264 -> 0 | EK2: =+'I-DADOS GERAIS'!$C265 -> 0 | EL2: =+'I-DADOS GERAIS'!$C266 -> 0 | EM2: =+'I-DADOS GERAIS'!$C267 -> 0 | EN2: =+'I-DADOS GERAIS'!$C268 -> 0 | EO2: =+'I-DADOS GERAIS'!$C269 -> 0 | EP2: =+'I-DADOS GERAIS'!$C270 -> 0 | EQ2: =+'I-DADOS GERAIS'!$C271 -> 0 | ER2: =+'I-DADOS GERAIS'!$C272 -> 0 | ES2: =+'I-DADOS GERAIS'!$C273 -> 0 | ET2: =+'I-DADOS GERAIS'!$C274 -> 0 | EU2: =+'I-DADOS GERAIS'!$C275 -> 0 | EV2: =+'I-DADOS GERAIS'!$C276 -> 0 | EW2: =+'I-DADOS GERAIS'!$C277 -> 0 | EX2: =+'I-DADOS GERAIS'!$C278 -> 0 | EY2: =+'I-DADOS GERAIS'!$C279 -> 0 | EZ2: =+'I-DADOS GERAIS'!$C280 -> 0 | FA2: =+'I-DADOS GERAIS'!$C281 -> 0 | FB2: =+'I-DADOS GERAIS'!$C282 -> 0 | FC2: =+'I-DADOS GERAIS'!$C283 -> 0 | FD2: =+'I-DADOS GERAIS'!$C284 -> 0 | FE2: =+'I-DADOS GERAIS'!$C285 -> 0 | FF2: =+'I-DADOS GERAIS'!$C286 -> 0 | FG2: =+'I-DADOS GERAIS'!$C287 -> 0 | FH2: =+'I-DADOS GERAIS'!$C288 -> 128883790 | FI2: =+'I-DADOS GERAIS'!$C289 -> 129790281

Sheet dados II (hidden)
A1: NISS | B1: NIF | C1: CONTA | D1: DESCRIÇÃO | E1: TOTAL | F1: RS_COMP_1 | G1: RS_COMP_2 | H1: RS_COMP_3 | I1: RS_COMP_4 | J1: RS_COMP_5 | K1: RS_COMP_6 | L1: RS_NÃOCOMP_1 | M1: RS_NÃOCOMP_2 | N1: RS_NÃOCOMP_3 | O1: RS_NÃOCOMP_4 | P1: RS_NÃOCOMP_5 | Q1: RS_NÃOCOMP_6 | R1: A_1 | S1: A_2 | T1: A_3 | U1: A_4 | V1: A_5 | W1: A_6 | X1: OUTRAS
A2: =+'dados I'!$A$2 -> 20008838749 | B2: =+'dados I'!$B$2 -> 502065591 | C2: ='II-DEM RESULTADOS'!C14 -> 71 | D2: ='II-DEM RESULTADOS'!F14 -> VENDAS | E2: ='II-DEM RESULTADOS'!I14 -> 0 | F2: ='II-DEM RESULTADOS'!J14 -> 0 | G2: ='II-DEM RESULTADOS'!K14 -> 0 | H2: ='II-DEM RESULTADOS'!L14 -> 0 | I2: ='II-DEM RESULTADOS'!M14 -> 0 | J2: ='II-DEM RESULTADOS'!N14 -> 0 | K2: ='II-DEM RESULTADOS'!O14 -> 0 | L2: ='II-DEM RESULTADOS'!P14 -> 0 | M2: ='II-DEM RESULTADOS'!Q14 -> 0 | N2: ='II-DEM RESULTADOS'!R14 -> 0 | O2: ='II-DEM RESULTADOS'!S14 -> 0 | P2: ='II-DEM RESULTADOS'!T14 -> 0 | Q2: ='II-DEM RESULTADOS'!U14 -> 0 | R2: ='II-DEM RESULTADOS'!V14 -> 0 | S2: ='II-DEM RESULTADOS'!W14 -> 0 | T2: ='II-DEM RESULTADOS'!X14 -> 0 | U2: ='II-DEM RESULTADOS'!Y14 -> 0 | V2: ='II-DEM RESULTADOS'!Z14 -> 0 | W2: ='II-DEM RESULTADOS'!AA14 -> 0 | X2: ='II-DEM RESULTADOS'!AB14 -> 0
A3: =+'dados I'!$A$2 -> 20008838749 | B3: =+'dados I'!$B$2 -> 502065591 | C3: ='II-DEM RESULTADOS'!C15 -> 72 | D3: ='II-DEM RESULTADOS'!F15 -> PRESTAÇÕES SERVIÇOS | E3: ='II-DEM RESULTADOS'!I15 -> 85484 | F3: ='II-DEM RESULTADOS'!J15 -> 0 | G3: ='II-DEM RESULTADOS'!K15 -> 56595 | H3: ='II-DEM RESULTADOS'!L15 -> 17765 | I3: ='II-DEM RESULTADOS'!M15 -> 11124 | J3: ='II-DEM RESULTADOS'!N15 -> 0 | K3: ='II-DEM RESULTADOS'!O15 -> 0 | L3: ='II-DEM RESULTADOS'!P15 -> 0 | M3: ='II-DEM RESULTADOS'!Q15 -> 0 | N3: ='II-DEM RESULTADOS'!R15 -> 0 | O3: ='II-DEM RESULTADOS'!S15 -> 0 | P3: ='II-DEM RESULTADOS'!T15 -> 0 | Q3: ='II-DEM RESULTADOS'!U15 -> 0 | R3: ='II-DEM RESULTADOS'!V15 -> 0 | S3: ='II-DEM RESULTADOS'!W15 -> 0 | T3: ='II-DEM RESULTADOS'!X15 -> 0 | U3: ='II-DEM RESULTADOS'!Y15 -> 0 | V3: ='II-DEM RESULTADOS'!Z15 -> 0 | W3: ='II-DEM RESULTADOS'!AA15 -> 0 | X3: ='II-DEM RESULTADOS'!AB15 -> 0
A4: =+'dados I'!$A$2 -> 20008838749 | B4: =+'dados I'!$B$2 -> 502065591 | C4: ='II-DEM RESULTADOS'!C16 -> 721 | D4: ='II-DEM RESULTADOS'!F16 -> QUOTAS UTILIZADORES (MATRÍCULAS/MENSALIDADES) | E4: ='II-DEM RESULTADOS'!I16 -> 85484 | F4: ='II-DEM RESULTADOS'!J16 -> 0 | G4: ='II-DEM RESULTADOS'!K16 -> 56595 | H4: ='II-DEM RESULTADOS'!L16 -> 17765 | I4: ='II-DEM RESULTADOS'!M16 -> 11124 | J4: ='II-DEM RESULTADOS'!N16 -> 0 | K4: ='II-DEM RESULTADOS'!O16 -> 0 | L4: ='II-DEM RESULTADOS'!P16 -> 0 | M4: ='II-DEM RESULTADOS'!Q16 -> 0 | N4: ='II-DEM RESULTADOS'!R16 -> 0 | O4: ='II-DEM RESULTADOS'!S16 -> 0 | P4: ='II-DEM RESULTADOS'!T16 -> 0 | Q4: ='II-DEM RESULTADOS'!U16 -> 0 | R4: ='II-DEM RESULTADOS'!V16 -> 0 | S4: ='II-DEM RESULTADOS'!W16 -> 0 | T4: ='II-DEM RESULTADOS'!X16 -> 0 | U4: ='II-DEM RESULTADOS'!Y16 -> 0 | V4: ='II-DEM RESULTADOS'!Z16 -> 0 | W4: ='II-DEM RESULTADOS'!AA16 -> 0 | X4: ='II-DEM RESULTADOS'!AB16 -> 0
A5: =+'dados I'!$A$2 -> 20008838749 | B5: =+'dados I'!$B$2 -> 502065591 | C5: ='II-DEM RESULTADOS'!C17 -> 722/728 | D5: ='II-DEM RESULTADOS'!F17 -> OUTROS SERVIÇOS | E5: ='II-DEM RESULTADOS'!I17 -> 0 | F5: ='II-DEM RESULTADOS'!J17 -> 0 | G5: ='II-DEM RESULTADOS'!K17 -> 0 | H5: ='II-DEM RESULTADOS'!L17 -> 0 | I5: ='II-DEM RESULTADOS'!M17 -> 0 | J5: ='II-DEM RESULTADOS'!N17 -> 0 | K5: ='II-DEM RESULTADOS'!O17 -> 0 | L5: ='II-DEM RESULTADOS'!P17 -> 0 | M5: ='II-DEM RESULTADOS'!Q17 -> 0 | N5: ='II-DEM RESULTADOS'!R17 -> 0 | O5: ='II-DEM RESULTADOS'!S17 -> 0 | P5: ='II-DEM RESULTADOS'!T17 -> 0 | Q5: ='II-DEM RESULTADOS'!U17 -> 0 | R5: ='II-DEM RESULTADOS'!V17 -> 0 | S5: ='II-DEM RESULTADOS'!W17 -> 0 | T5: ='II-DEM RESULTADOS'!X17 -> 0 | U5: ='II-DEM RESULTADOS'!Y17 -> 0 | V5: ='II-DEM RESULTADOS'!Z17 -> 0 | W5: ='II-DEM RESULTADOS'!AA17 -> 0 | X5: ='II-DEM RESULTADOS'!AB17 -> 0
A6: =+'dados I'!$A$2 -> 20008838749 | B6: =+'dados I'!$B$2 -> 502065591 | C6: ='II-DEM RESULTADOS'!C18 -> 73 | D6: ='II-DEM RESULTADOS'!F18 -> VARIAÇÃO NOS INVENTÁRIOS DA PRODUÇÃO | E6: ='II-DEM RESULTADOS'!I18 -> 0 | F6: ='II-DEM RESULTADOS'!J18 -> 0 | G6: ='II-DEM RESULTADOS'!K18 -> 0 | H6: ='II-DEM RESULTADOS'!L18 -> 0 | I6: ='II-DEM RESULTADOS'!M18 -> 0 | J6: ='II-DEM RESULTADOS'!N18 -> 0 | K6: ='II-DEM RESULTADOS'!O18 -> 0 | L6: ='II-DEM RESULTADOS'!P18 -> 0 | M6: ='II-DEM RESULTADOS'!Q18 -> 0 | N6: ='II-DEM RESULTADOS'!R18 -> 0 | O6: ='II-DEM RESULTADOS'!S18 -> 0 | P6: ='II-DEM RESULTADOS'!T18 -> 0 | Q6: ='II-DEM RESULTADOS'!U18 -> 0 | R6: ='II-DEM RESULTADOS'!V18 -> 0 | S6: ='II-DEM RESULTADOS'!W18 -> 0 | T6: ='II-DEM RESULTADOS'!X18 -> 0 | U6: ='II-DEM RESULTADOS'!Y18 -> 0 | V6: ='II-DEM RESULTADOS'!Z18 -> 0 | W6: ='II-DEM RESULTADOS'!AA18 -> 0 | X6: ='II-DEM RESULTADOS'!AB18 -> 0
A7: =+'dados I'!$A$2 -> 20008838749 | B7: =+'dados I'!$B$2 -> 502065591 | C7: ='II-DEM RESULTADOS'!C19 -> 74 | D7: ='II-DEM RESULTADOS'!F19 -> TRABALHOS PARA A PRÓPRIA ENTIDADE | E7: ='II-DEM RESULTADOS'!I19 -> 0 | F7: ='II-DEM RESULTADOS'!J19 -> 0 | G7: ='II-DEM RESULTADOS'!K19 -> 0 | H7: ='II-DEM RESULTADOS'!L19 -> 0 | I7: ='II-DEM RESULTADOS'!M19 -> 0 | J7: ='II-DEM RESULTADOS'!N19 -> 0 | K7: ='II-DEM RESULTADOS'!O19 -> 0 | L7: ='II-DEM RESULTADOS'!P19 -> 0 | M7: ='II-DEM RESULTADOS'!Q19 -> 0 | N7: ='II-DEM RESULTADOS'!R19 -> 0 | O7: ='II-DEM RESULTADOS'!S19 -> 0 | P7: ='II-DEM RESULTADOS'!T19 -> 0 | Q7: ='II-DEM RESULTADOS'!U19 -> 0 | R7: ='II-DEM RESULTADOS'!V19 -> 0 | S7: ='II-DEM RESULTADOS'!W19 -> 0 | T7: ='II-DEM RESULTADOS'!X19 -> 0 | U7: ='II-DEM RESULTADOS'!Y19 -> 0 | V7: ='II-DEM RESULTADOS'!Z19 -> 0 | W7: ='II-DEM RESULTADOS'!AA19 -> 0 | X7: ='II-DEM RESULTADOS'!AB19 -> 0
A8: =+'dados I'!$A$2 -> 20008838749 | B8: =+'dados I'!$B$2 -> 502065591 | C8: ='II-DEM RESULTADOS'!C20 -> 75 | D8: ='II-DEM RESULTADOS'!F20 -> SUBSÍDIOS, DOAÇÕES E LEGADOS À EXPLORAÇÃO | E8: ='II-DEM RESULTADOS'!I20 -> 286163.34 | F8: ='II-DEM RESULTADOS'!J20 -> 177079.52 | G8: ='II-DEM RESULTADOS'!K20 -> 83191.98 | H8: ='II-DEM RESULTADOS'!L20 -> 11592.2 | I8: ='II-DEM RESULTADOS'!M20 -> 14299.64 | J8: ='II-DEM RESULTADOS'!N20 -> 0 | K8: ='II-DEM RESULTADOS'!O20 -> 0 | L8: ='II-DEM RESULTADOS'!P20 -> 0 | M8: ='II-DEM RESULTADOS'!Q20 -> 0 | N8: ='II-DEM RESULTADOS'!R20 -> 0 | O8: ='II-DEM RESULTADOS'!S20 -> 0 | P8: ='II-DEM RESULTADOS'!T20 -> 0 | Q8: ='II-DEM RESULTADOS'!U20 -> 0 | R8: ='II-DEM RESULTADOS'!V20 -> 0 | S8: ='II-DEM RESULTADOS'!W20 -> 0 | T8: ='II-DEM RESULTADOS'!X20 -> 0 | U8: ='II-DEM RESULTADOS'!Y20 -> 0 | V8: ='II-DEM RESULTADOS'!Z20 -> 0 | W8: ='II-DEM RESULTADOS'!AA20 -> 0 | X8: ='II-DEM RESULTADOS'!AB20 -> 0
A9: =+'dados I'!$A$2 -> 20008838749 | B9: =+'dados I'!$B$2 -> 502065591 | C9: ='II-DEM RESULTADOS'!C21 -> 751 | D9: ='II-DEM RESULTADOS'!F21 -> SUBSÍDIOS ESTADO E OUTROS ENTES PÚBLICOS | E9: ='II-DEM RESULTADOS'!I21 -> 286163.34 | F9: ='II-DEM RESULTADOS'!J21 -> 177079.52 | G9: ='II-DEM RESULTADOS'!K21 -> 83191.98 | H9: ='II-DEM RESULTADOS'!L21 -> 11592.2 | I9: ='II-DEM RESULTADOS'!M21 -> 14299.64 | J9: ='II-DEM RESULTADOS'!N21 -> 0 | K9: ='II-DEM RESULTADOS'!O21 -> 0 | L9: ='II-DEM RESULTADOS'!P21 -> 0 | M9: ='II-DEM RESULTADOS'!Q21 -> 0 | N9: ='II-DEM RESULTADOS'!R21 -> 0 | O9: ='II-DEM RESULTADOS'!S21 -> 0 | P9: ='II-DEM RESULTADOS'!T21 -> 0 | Q9: ='II-DEM RESULTADOS'!U21 -> 0 | R9: ='II-DEM RESULTADOS'!V21 -> 0 | S9: ='II-DEM RESULTADOS'!W21 -> 0 | T9: ='II-DEM RESULTADOS'!X21 -> 0 | U9: ='II-DEM RESULTADOS'!Y21 -> 0 | V9: ='II-DEM RESULTADOS'!Z21 -> 0 | W9: ='II-DEM RESULTADOS'!AA21 -> 0 | X9: ='II-DEM RESULTADOS'!AB21 -> 0
A10: =+'dados I'!$A$2 -> 20008838749 | B10: =+'dados I'!$B$2 -> 502065591 | C10: ='II-DEM RESULTADOS'!C22 -> 7511 | D10: ='II-DEM RESULTADOS'!F22 -> ISS, IP | E10: ='II-DEM RESULTADOS'!I22 -> 281163.34 | F10: ='II-DEM RESULTADOS'!J22 -> 175829.52 | G10: ='II-DEM RESULTADOS'!K22 -> 81941.98 | H10: ='II-DEM RESULTADOS'!L22 -> 10342.2 | I10: ='II-DEM RESULTADOS'!M22 -> 13049.64 | J10: ='II-DEM RESULTADOS'!N22 -> 0 | K10: ='II-DEM RESULTADOS'!O22 -> 0 | L10: ='II-DEM RESULTADOS'!P22 -> 0 | M10: ='II-DEM RESULTADOS'!Q22 -> 0 | N10: ='II-DEM RESULTADOS'!R22 -> 0 | O10: ='II-DEM RESULTADOS'!S22 -> 0 | P10: ='II-DEM RESULTADOS'!T22 -> 0 | Q10: ='II-DEM RESULTADOS'!U22 -> 0 | R10: ='II-DEM RESULTADOS'!V22 -> 0 | S10: ='II-DEM RESULTADOS'!W22 -> 0 | T10: ='II-DEM RESULTADOS'!X22 -> 0 | U10: ='II-DEM RESULTADOS'!Y22 -> 0 | V10: ='II-DEM RESULTADOS'!Z22 -> 0 | W10: ='II-DEM RESULTADOS'!AA22 -> 0 | X10: ='II-DEM RESULTADOS'!AB22 -> 0
A11: =+'dados I'!$A$2 -> 20008838749 | B11: =+'dados I'!$B$2 -> 502065591 | C11: ='II-DEM RESULTADOS'!C23 -> 7512 | D11: ='II-DEM RESULTADOS'!F23 -> OUTRAS ENTIDADES PÚBLICAS | E11: ='II-DEM RESULTADOS'!I23 -> 5000 | F11: ='II-DEM RESULTADOS'!J23 -> 1250 | G11: ='II-DEM RESULTADOS'!K23 -> 1250 | H11: ='II-DEM RESULTADOS'!L23 -> 1250 | I11: ='II-DEM RESULTADOS'!M23 -> 1250 | J11: ='II-DEM RESULTADOS'!N23 -> 0 | K11: ='II-DEM RESULTADOS'!O23 -> 0 | L11: ='II-DEM RESULTADOS'!P23 -> 0 | M11: ='II-DEM RESULTADOS'!Q23 -> 0 | N11: ='II-DEM RESULTADOS'!R23 -> 0 | O11: ='II-DEM RESULTADOS'!S23 -> 0 | P11: ='II-DEM RESULTADOS'!T23 -> 0 | Q11: ='II-DEM RESULTADOS'!U23 -> 0 | R11: ='II-DEM RESULTADOS'!V23 -> 0 | S11: ='II-DEM RESULTADOS'!W23 -> 0 | T11: ='II-DEM RESULTADOS'!X23 -> 0 | U11: ='II-DEM RESULTADOS'!Y23 -> 0 | V11: ='II-DEM RESULTADOS'!Z23 -> 0 | W11: ='II-DEM RESULTADOS'!AA23 -> 0 | X11: ='II-DEM RESULTADOS'!AB23 -> 0
A12: =+'dados I'!$A$2 -> 20008838749 | B12: =+'dados I'!$B$2 -> 502065591 | C12: ='II-DEM RESULTADOS'!C24 -> 752 | D12: ='II-DEM RESULTADOS'!F24 -> SUBSÍDIOS DE OUTRAS ENTIDADES | E12: ='II-DEM RESULTADOS'!I24 -> 0 | F12: ='II-DEM RESULTADOS'!J24 -> 0 | G12: ='II-DEM RESULTADOS'!K24 -> 0 | H12: ='II-DEM RESULTADOS'!L24 -> 0 | I12: ='II-DEM RESULTADOS'!M24 -> 0 | J12: ='II-DEM RESULTADOS'!N24 -> 0 | K12: ='II-DEM RESULTADOS'!O24 -> 0 | L12: ='II-DEM RESULTADOS'!P24 -> 0 | M12: ='II-DEM RESULTADOS'!Q24 -> 0 | N12: ='II-DEM RESULTADOS'!R24 -> 0 | O12: ='II-DEM RESULTADOS'!S24 -> 0 | P12: ='II-DEM RESULTADOS'!T24 -> 0 | Q12: ='II-DEM RESULTADOS'!U24 -> 0 | R12: ='II-DEM RESULTADOS'!V24 -> 0 | S12: ='II-DEM RESULTADOS'!W24 -> 0 | T12: ='II-DEM RESULTADOS'!X24 -> 0 | U12: ='II-DEM RESULTADOS'!Y24 -> 0 | V12: ='II-DEM RESULTADOS'!Z24 -> 0 | W12: ='II-DEM RESULTADOS'!AA24 -> 0 | X12: ='II-DEM RESULTADOS'!AB24 -> 0
A13: =+'dados I'!$A$2 -> 20008838749 | B13: =+'dados I'!$B$2 -> 502065591 | C13: ='II-DEM RESULTADOS'!C25 -> 753 | D13: ='II-DEM RESULTADOS'!F25 -> DOAÇÕES E HERANÇAS | E13: ='II-DEM RESULTADOS'!I25 -> 0 | F13: ='II-DEM RESULTADOS'!J25 -> 0 | G13: ='II-DEM RESULTADOS'!K25 -> 0 | H13: ='II-DEM RESULTADOS'!L25 -> 0 | I13: ='II-DEM RESULTADOS'!M25 -> 0 | J13: ='II-DEM RESULTADOS'!N25 -> 0 | K13: ='II-DEM RESULTADOS'!O25 -> 0 | L13: ='II-DEM RESULTADOS'!P25 -> 0 | M13: ='II-DEM RESULTADOS'!Q25 -> 0 | N13: ='II-DEM RESULTADOS'!R25 -> 0 | O13: ='II-DEM RESULTADOS'!S25 -> 0 | P13: ='II-DEM RESULTADOS'!T25 -> 0 | Q13: ='II-DEM RESULTADOS'!U25 -> 0 | R13: ='II-DEM RESULTADOS'!V25 -> 0 | S13: ='II-DEM RESULTADOS'!W25 -> 0 | T13: ='II-DEM RESULTADOS'!X25 -> 0 | U13: ='II-DEM RESULTADOS'!Y25 -> 0 | V13: ='II-DEM RESULTADOS'!Z25 -> 0 | W13: ='II-DEM RESULTADOS'!AA25 -> 0 | X13: ='II-DEM RESULTADOS'!AB25 -> 0
A14: =+'dados I'!$A$2 -> 20008838749 | B14: =+'dados I'!$B$2 -> 502065591 | C14: ='II-DEM RESULTADOS'!C26 -> 754 | D14: ='II-DEM RESULTADOS'!F26 -> LEGADOS | E14: ='II-DEM RESULTADOS'!I26 -> 0 | F14: ='II-DEM RESULTADOS'!J26 -> 0 | G14: ='II-DEM RESULTADOS'!K26 -> 0 | H14: ='II-DEM RESULTADOS'!L26 -> 0 | I14: ='II-DEM RESULTADOS'!M26 -> 0 | J14: ='II-DEM RESULTADOS'!N26 -> 0 | K14: ='II-DEM RESULTADOS'!O26 -> 0 | L14: ='II-DEM RESULTADOS'!P26 -> 0 | M14: ='II-DEM RESULTADOS'!Q26 -> 0 | N14: ='II-DEM RESULTADOS'!R26 -> 0 | O14: ='II-DEM RESULTADOS'!S26 -> 0 | P14: ='II-DEM RESULTADOS'!T26 -> 0 | Q14: ='II-DEM RESULTADOS'!U26 -> 0 | R14: ='II-DEM RESULTADOS'!V26 -> 0 | S14: ='II-DEM RESULTADOS'!W26 -> 0 | T14: ='II-DEM RESULTADOS'!X26 -> 0 | U14: ='II-DEM RESULTADOS'!Y26 -> 0 | V14: ='II-DEM RESULTADOS'!Z26 -> 0 | W14: ='II-DEM RESULTADOS'!AA26 -> 0 | X14: ='II-DEM RESULTADOS'!AB26 -> 0
A15: =+'dados I'!$A$2 -> 20008838749 | B15: =+'dados I'!$B$2 -> 502065591 | C15: ='II-DEM RESULTADOS'!C27 -> 76 | D15: ='II-DEM RESULTADOS'!F27 -> REVERSÕES | E15: ='II-DEM RESULTADOS'!I27 -> 0 | F15: ='II-DEM RESULTADOS'!J27 -> 0 | G15: ='II-DEM RESULTADOS'!K27 -> 0 | H15: ='II-DEM RESULTADOS'!L27 -> 0 | I15: ='II-DEM RESULTADOS'!M27 -> 0 | J15: ='II-DEM RESULTADOS'!N27 -> 0 | K15: ='II-DEM RESULTADOS'!O27 -> 0 | L15: ='II-DEM RESULTADOS'!P27 -> 0 | M15: ='II-DEM RESULTADOS'!Q27 -> 0 | N15: ='II-DEM RESULTADOS'!R27 -> 0 | O15: ='II-DEM RESULTADOS'!S27 -> 0 | P15: ='II-DEM RESULTADOS'!T27 -> 0 | Q15: ='II-DEM RESULTADOS'!U27 -> 0 | R15: ='II-DEM RESULTADOS'!V27 -> 0 | S15: ='II-DEM RESULTADOS'!W27 -> 0 | T15: ='II-DEM RESULTADOS'!X27 -> 0 | U15: ='II-DEM RESULTADOS'!Y27 -> 0 | V15: ='II-DEM RESULTADOS'!Z27 -> 0 | W15: ='II-DEM RESULTADOS'!AA27 -> 0 | X15: ='II-DEM RESULTADOS'!AB27 -> 0
A16: =+'dados I'!$A$2 -> 20008838749 | B16: =+'dados I'!$B$2 -> 502065591 | C16: ='II-DEM RESULTADOS'!C28 -> 761 | D16: ='II-DEM RESULTADOS'!F28 -> DE DEPRECIAÇÕES E AMORTIZAÇÕES | E16: ='II-DEM RESULTADOS'!I28 -> 0 | F16: ='II-DEM RESULTADOS'!J28 -> 0 | G16: ='II-DEM RESULTADOS'!K28 -> 0 | H16: ='II-DEM RESULTADOS'!L28 -> 0 | I16: ='II-DEM RESULTADOS'!M28 -> 0 | J16: ='II-DEM RESULTADOS'!N28 -> 0 | K16: ='II-DEM RESULTADOS'!O28 -> 0 | L16: ='II-DEM RESULTADOS'!P28 -> 0 | M16: ='II-DEM RESULTADOS'!Q28 -> 0 | N16: ='II-DEM RESULTADOS'!R28 -> 0 | O16: ='II-DEM RESULTADOS'!S28 -> 0 | P16: ='II-DEM RESULTADOS'!T28 -> 0 | Q16: ='II-DEM RESULTADOS'!U28 -> 0 | R16: ='II-DEM RESULTADOS'!V28 -> 0 | S16: ='II-DEM RESULTADOS'!W28 -> 0 | T16: ='II-DEM RESULTADOS'!X28 -> 0 | U16: ='II-DEM RESULTADOS'!Y28 -> 0 | V16: ='II-DEM RESULTADOS'!Z28 -> 0 | W16: ='II-DEM RESULTADOS'!AA28 -> 0 | X16: ='II-DEM RESULTADOS'!AB28 -> 0
A17: =+'dados I'!$A$2 -> 20008838749 | B17: =+'dados I'!$B$2 -> 502065591 | C17: ='II-DEM RESULTADOS'!C29 -> 762 | D17: ='II-DEM RESULTADOS'!F29 -> DE PERDAS POR IMPARIDADE | E17: ='II-DEM RESULTADOS'!I29 -> 0 | F17: ='II-DEM RESULTADOS'!J29 -> 0 | G17: ='II-DEM RESULTADOS'!K29 -> 0 | H17: ='II-DEM RESULTADOS'!L29 -> 0 | I17: ='II-DEM RESULTADOS'!M29 -> 0 | J17: ='II-DEM RESULTADOS'!N29 -> 0 | K17: ='II-DEM RESULTADOS'!O29 -> 0 | L17: ='II-DEM RESULTADOS'!P29 -> 0 | M17: ='II-DEM RESULTADOS'!Q29 -> 0 | N17: ='II-DEM RESULTADOS'!R29 -> 0 | O17: ='II-DEM RESULTADOS'!S29 -> 0 | P17: ='II-DEM RESULTADOS'!T29 -> 0 | Q17: ='II-DEM RESULTADOS'!U29 -> 0 | R17: ='II-DEM RESULTADOS'!V29 -> 0 | S17: ='II-DEM RESULTADOS'!W29 -> 0 | T17: ='II-DEM RESULTADOS'!X29 -> 0 | U17: ='II-DEM RESULTADOS'!Y29 -> 0 | V17: ='II-DEM RESULTADOS'!Z29 -> 0 | W17: ='II-DEM RESULTADOS'!AA29 -> 0 | X17: ='II-DEM RESULTADOS'!AB29 -> 0
A18: =+'dados I'!$A$2 -> 20008838749 | B18: =+'dados I'!$B$2 -> 502065591 | C18: ='II-DEM RESULTADOS'!C30 -> 763 | D18: ='II-DEM RESULTADOS'!F30 -> DE PROVISÕES | E18: ='II-DEM RESULTADOS'!I30 -> 0 | F18: ='II-DEM RESULTADOS'!J30 -> 0 | G18: ='II-DEM RESULTADOS'!K30 -> 0 | H18: ='II-DEM RESULTADOS'!L30 -> 0 | I18: ='II-DEM RESULTADOS'!M30 -> 0 | J18: ='II-DEM RESULTADOS'!N30 -> 0 | K18: ='II-DEM RESULTADOS'!O30 -> 0 | L18: ='II-DEM RESULTADOS'!P30 -> 0 | M18: ='II-DEM RESULTADOS'!Q30 -> 0 | N18: ='II-DEM RESULTADOS'!R30 -> 0 | O18: ='II-DEM RESULTADOS'!S30 -> 0 | P18: ='II-DEM RESULTADOS'!T30 -> 0 | Q18: ='II-DEM RESULTADOS'!U30 -> 0 | R18: ='II-DEM RESULTADOS'!V30 -> 0 | S18: ='II-DEM RESULTADOS'!W30 -> 0 | T18: ='II-DEM RESULTADOS'!X30 -> 0 | U18: ='II-DEM RESULTADOS'!Y30 -> 0 | V18: ='II-DEM RESULTADOS'!Z30 -> 0 | W18: ='II-DEM RESULTADOS'!AA30 -> 0 | X18: ='II-DEM RESULTADOS'!AB30 -> 0
A19: =+'dados I'!$A$2 -> 20008838749 | B19: =+'dados I'!$B$2 -> 502065591 | C19: ='II-DEM RESULTADOS'!C31 -> 764 | D19: ='II-DEM RESULTADOS'!F31 -> DE PROVISÕES ESPECÍFICAS | E19: ='II-DEM RESULTADOS'!I31 -> 0 | F19: ='II-DEM RESULTADOS'!J31 -> 0 | G19: ='II-DEM RESULTADOS'!K31 -> 0 | H19: ='II-DEM RESULTADOS'!L31 -> 0 | I19: ='II-DEM RESULTADOS'!M31 -> 0 | J19: ='II-DEM RESULTADOS'!N31 -> 0 | K19: ='II-DEM RESULTADOS'!O31 -> 0 | L19: ='II-DEM RESULTADOS'!P31 -> 0 | M19: ='II-DEM RESULTADOS'!Q31 -> 0 | N19: ='II-DEM RESULTADOS'!R31 -> 0 | O19: ='II-DEM RESULTADOS'!S31 -> 0 | P19: ='II-DEM RESULTADOS'!T31 -> 0 | Q19: ='II-DEM RESULTADOS'!U31 -> 0 | R19: ='II-DEM RESULTADOS'!V31 -> 0 | S19: ='II-DEM RESULTADOS'!W31 -> 0 | T19: ='II-DEM RESULTADOS'!X31 -> 0 | U19: ='II-DEM RESULTADOS'!Y31 -> 0 | V19: ='II-DEM RESULTADOS'!Z31 -> 0 | W19: ='II-DEM RESULTADOS'!AA31 -> 0 | X19: ='II-DEM RESULTADOS'!AB31 -> 0
A20: =+'dados I'!$A$2 -> 20008838749 | B20: =+'dados I'!$B$2 -> 502065591 | C20: ='II-DEM RESULTADOS'!C32 -> 77 | D20: ='II-DEM RESULTADOS'!F32 -> GANHOS POR AUMENTOS DE JUSTO VALOR | E20: ='II-DEM RESULTADOS'!I32 -> 0 | F20: ='II-DEM RESULTADOS'!J32 -> 0 | G20: ='II-DEM RESULTADOS'!K32 -> 0 | H20: ='II-DEM RESULTADOS'!L32 -> 0 | I20: ='II-DEM RESULTADOS'!M32 -> 0 | J20: ='II-DEM RESULTADOS'!N32 -> 0 | K20: ='II-DEM RESULTADOS'!O32 -> 0 | L20: ='II-DEM RESULTADOS'!P32 -> 0 | M20: ='II-DEM RESULTADOS'!Q32 -> 0 | N20: ='II-DEM RESULTADOS'!R32 -> 0 | O20: ='II-DEM RESULTADOS'!S32 -> 0 | P20: ='II-DEM RESULTADOS'!T32 -> 0 | Q20: ='II-DEM RESULTADOS'!U32 -> 0 | R20: ='II-DEM RESULTADOS'!V32 -> 0 | S20: ='II-DEM RESULTADOS'!W32 -> 0 | T20: ='II-DEM RESULTADOS'!X32 -> 0 | U20: ='II-DEM RESULTADOS'!Y32 -> 0 | V20: ='II-DEM RESULTADOS'!Z32 -> 0 | W20: ='II-DEM RESULTADOS'!AA32 -> 0 | X20: ='II-DEM RESULTADOS'!AB32 -> 0
A21: =+'dados I'!$A$2 -> 20008838749 | B21: =+'dados I'!$B$2 -> 502065591 | C21: ='II-DEM RESULTADOS'!C33 -> 78 | D21: ='II-DEM RESULTADOS'!F33 -> OUTROS RENDIMENTOS E GANHOS | E21: ='II-DEM RESULTADOS'!I33 -> 2822.54 | F21: ='II-DEM RESULTADOS'!J33 -> 625 | G21: ='II-DEM RESULTADOS'!K33 -> 625 | H21: ='II-DEM RESULTADOS'!L33 -> 625 | I21: ='II-DEM RESULTADOS'!M33 -> 947.54 | J21: ='II-DEM RESULTADOS'!N33 -> 0 | K21: ='II-DEM RESULTADOS'!O33 -> 0 | L21: ='II-DEM RESULTADOS'!P33 -> 0 | M21: ='II-DEM RESULTADOS'!Q33 -> 0 | N21: ='II-DEM RESULTADOS'!R33 -> 0 | O21: ='II-DEM RESULTADOS'!S33 -> 0 | P21: ='II-DEM RESULTADOS'!T33 -> 0 | Q21: ='II-DEM RESULTADOS'!U33 -> 0 | R21: ='II-DEM RESULTADOS'!V33 -> 0 | S21: ='II-DEM RESULTADOS'!W33 -> 0 | T21: ='II-DEM RESULTADOS'!X33 -> 0 | U21: ='II-DEM RESULTADOS'!Y33 -> 0 | V21: ='II-DEM RESULTADOS'!Z33 -> 0 | W21: ='II-DEM RESULTADOS'!AA33 -> 0 | X21: ='II-DEM RESULTADOS'!AB33 -> 0
A22: =+'dados I'!$A$2 -> 20008838749 | B22: =+'dados I'!$B$2 -> 502065591 | C22: ='II-DEM RESULTADOS'!C34 -> 781 | D22: ='II-DEM RESULTADOS'!F34 -> RENDIMENTOS SUPLEMENTARES | E22: ='II-DEM RESULTADOS'!I34 -> 0 | F22: ='II-DEM RESULTADOS'!J34 -> 0 | G22: ='II-DEM RESULTADOS'!K34 -> 0 | H22: ='II-DEM RESULTADOS'!L34 -> 0 | I22: ='II-DEM RESULTADOS'!M34 -> 0 | J22: ='II-DEM RESULTADOS'!N34 -> 0 | K22: ='II-DEM RESULTADOS'!O34 -> 0 | L22: ='II-DEM RESULTADOS'!P34 -> 0 | M22: ='II-DEM RESULTADOS'!Q34 -> 0 | N22: ='II-DEM RESULTADOS'!R34 -> 0 | O22: ='II-DEM RESULTADOS'!S34 -> 0 | P22: ='II-DEM RESULTADOS'!T34 -> 0 | Q22: ='II-DEM RESULTADOS'!U34 -> 0 | R22: ='II-DEM RESULTADOS'!V34 -> 0 | S22: ='II-DEM RESULTADOS'!W34 -> 0 | T22: ='II-DEM RESULTADOS'!X34 -> 0 | U22: ='II-DEM RESULTADOS'!Y34 -> 0 | V22: ='II-DEM RESULTADOS'!Z34 -> 0 | W22: ='II-DEM RESULTADOS'!AA34 -> 0 | X22: ='II-DEM RESULTADOS'!AB34 -> 0
A23: =+'dados I'!$A$2 -> 20008838749 | B23: =+'dados I'!$B$2 -> 502065591 | C23: ='II-DEM RESULTADOS'!C36 -> 788 | D23: ='II-DEM RESULTADOS'!F36 -> OUTROS RENDIMENTOS E GANHOS | E23: ='II-DEM RESULTADOS'!I36 -> 2822.54 | F23: ='II-DEM RESULTADOS'!J36 -> 625 | G23: ='II-DEM RESULTADOS'!K36 -> 625 | H23: ='II-DEM RESULTADOS'!L36 -> 625 | I23: ='II-DEM RESULTADOS'!M36 -> 947.54 | J23: ='II-DEM RESULTADOS'!N36 -> 0 | K23: ='II-DEM RESULTADOS'!O36 -> 0 | L23: ='II-DEM RESULTADOS'!P36 -> 0 | M23: ='II-DEM RESULTADOS'!Q36 -> 0 | N23: ='II-DEM RESULTADOS'!R36 -> 0 | O23: ='II-DEM RESULTADOS'!S36 -> 0 | P23: ='II-DEM RESULTADOS'!T36 -> 0 | Q23: ='II-DEM RESULTADOS'!U36 -> 0 | R23: ='II-DEM RESULTADOS'!V36 -> 0 | S23: ='II-DEM RESULTADOS'!W36 -> 0 | T23: ='II-DEM RESULTADOS'!X36 -> 0 | U23: ='II-DEM RESULTADOS'!Y36 -> 0 | V23: ='II-DEM RESULTADOS'!Z36 -> 0 | W23: ='II-DEM RESULTADOS'!AA36 -> 0 | X23: ='II-DEM RESULTADOS'!AB36 -> 0
A24: =+'dados I'!$A$2 -> 20008838749 | B24: =+'dados I'!$B$2 -> 502065591 | C24: ='II-DEM RESULTADOS'!C37 -> 7881 | D24: ='II-DEM RESULTADOS'!F37 -> CORREÇÕES DE PERÍODOS ANTERIORES | E24: ='II-DEM RESULTADOS'!I37 -> 0 | F24: ='II-DEM RESULTADOS'!J37 -> 0 | G24: ='II-DEM RESULTADOS'!K37 -> 0 | H24: ='II-DEM RESULTADOS'!L37 -> 0 | I24: ='II-DEM RESULTADOS'!M37 -> 0 | J24: ='II-DEM RESULTADOS'!N37 -> 0 | K24: ='II-DEM RESULTADOS'!O37 -> 0 | L24: ='II-DEM RESULTADOS'!P37 -> 0 | M24: ='II-DEM RESULTADOS'!Q37 -> 0 | N24: ='II-DEM RESULTADOS'!R37 -> 0 | O24: ='II-DEM RESULTADOS'!S37 -> 0 | P24: ='II-DEM RESULTADOS'!T37 -> 0 | Q24: ='II-DEM RESULTADOS'!U37 -> 0 | R24: ='II-DEM RESULTADOS'!V37 -> 0 | S24: ='II-DEM RESULTADOS'!W37 -> 0 | T24: ='II-DEM RESULTADOS'!X37 -> 0 | U24: ='II-DEM RESULTADOS'!Y37 -> 0 | V24: ='II-DEM RESULTADOS'!Z37 -> 0 | W24: ='II-DEM RESULTADOS'!AA37 -> 0 | X24: ='II-DEM RESULTADOS'!AB37 -> 0
A25: =+'dados I'!$A$2 -> 20008838749 | B25: =+'dados I'!$B$2 -> 502065591 | C25: ='II-DEM RESULTADOS'!C38 -> 7883 | D25: ='II-DEM RESULTADOS'!F38 -> IMPUTAÇÃO DE SUBSÍDIOS DE INVESTIMENTO | E25: ='II-DEM RESULTADOS'!I38 -> 1622.54 | F25: ='II-DEM RESULTADOS'!J38 -> 325 | G25: ='II-DEM RESULTADOS'!K38 -> 325 | H25: ='II-DEM RESULTADOS'!L38 -> 325 | I25: ='II-DEM RESULTADOS'!M38 -> 647.54 | J25: ='II-DEM RESULTADOS'!N38 -> 0 | K25: ='II-DEM RESULTADOS'!O38 -> 0 | L25: ='II-DEM RESULTADOS'!P38 -> 0 | M25: ='II-DEM RESULTADOS'!Q38 -> 0 | N25: ='II-DEM RESULTADOS'!R38 -> 0 | O25: ='II-DEM RESULTADOS'!S38 -> 0 | P25: ='II-DEM RESULTADOS'!T38 -> 0 | Q25: ='II-DEM RESULTADOS'!U38 -> 0 | R25: ='II-DEM RESULTADOS'!V38 -> 0 | S25: ='II-DEM RESULTADOS'!W38 -> 0 | T25: ='II-DEM RESULTADOS'!X38 -> 0 | U25: ='II-DEM RESULTADOS'!Y38 -> 0 | V25: ='II-DEM RESULTADOS'!Z38 -> 0 | W25: ='II-DEM RESULTADOS'!AA38 -> 0 | X25: ='II-DEM RESULTADOS'!AB38 -> 0
A26: =+'dados I'!$A$2 -> 20008838749 | B26: =+'dados I'!$B$2 -> 502065591 | C26: ='II-DEM RESULTADOS'!C39 -> 7882-7884/7887 | D26: ='II-DEM RESULTADOS'!F39 -> RENDIMENTOS E GANHOS EM ATIVOS | E26: ='II-DEM RESULTADOS'!I39 -> 1200 | F26: ='II-DEM RESULTADOS'!J39 -> 300 | G26: ='II-DEM RESULTADOS'!K39 -> 300 | H26: ='II-DEM RESULTADOS'!L39 -> 300 | I26: ='II-DEM RESULTADOS'!M39 -> 300 | J26: ='II-DEM RESULTADOS'!N39 -> 0 | K26: ='II-DEM RESULTADOS'!O39 -> 0 | L26: ='II-DEM RESULTADOS'!P39 -> 0 | M26: ='II-DEM RESULTADOS'!Q39 -> 0 | N26: ='II-DEM RESULTADOS'!R39 -> 0 | O26: ='II-DEM RESULTADOS'!S39 -> 0 | P26: ='II-DEM RESULTADOS'!T39 -> 0 | Q26: ='II-DEM RESULTADOS'!U39 -> 0 | R26: ='II-DEM RESULTADOS'!V39 -> 0 | S26: ='II-DEM RESULTADOS'!W39 -> 0 | T26: ='II-DEM RESULTADOS'!X39 -> 0 | U26: ='II-DEM RESULTADOS'!Y39 -> 0 | V26: ='II-DEM RESULTADOS'!Z39 -> 0 | W26: ='II-DEM RESULTADOS'!AA39 -> 0 | X26: ='II-DEM RESULTADOS'!AB39 -> 0
A27: =+'dados I'!$A$2 -> 20008838749 | B27: =+'dados I'!$B$2 -> 502065591 | C27: ='II-DEM RESULTADOS'!C40 -> 7888 | D27: ='II-DEM RESULTADOS'!F40 -> OUTROS NÃO ESPECIFICADOS | E27: ='II-DEM RESULTADOS'!I40 -> 0 | F27: ='II-DEM RESULTADOS'!J40 -> 0 | G27: ='II-DEM RESULTADOS'!K40 -> 0 | H27: ='II-DEM RESULTADOS'!L40 -> 0 | I27: ='II-DEM RESULTADOS'!M40 -> 0 | J27: ='II-DEM RESULTADOS'!N40 -> 0 | K27: ='II-DEM RESULTADOS'!O40 -> 0 | L27: ='II-DEM RESULTADOS'!P40 -> 0 | M27: ='II-DEM RESULTADOS'!Q40 -> 0 | N27: ='II-DEM RESULTADOS'!R40 -> 0 | O27: ='II-DEM RESULTADOS'!S40 -> 0 | P27: ='II-DEM RESULTADOS'!T40 -> 0 | Q27: ='II-DEM RESULTADOS'!U40 -> 0 | R27: ='II-DEM RESULTADOS'!V40 -> 0 | S27: ='II-DEM RESULTADOS'!W40 -> 0 | T27: ='II-DEM RESULTADOS'!X40 -> 0 | U27: ='II-DEM RESULTADOS'!Y40 -> 0 | V27: ='II-DEM RESULTADOS'!Z40 -> 0 | W27: ='II-DEM RESULTADOS'!AA40 -> 0 | X27: ='II-DEM RESULTADOS'!AB40 -> 0
A28: =+'dados I'!$A$2 -> 20008838749 | B28: =+'dados I'!$B$2 -> 502065591 | C28: ='II-DEM RESULTADOS'!C41 -> 79 | D28: ='II-DEM RESULTADOS'!F41 -> JUROS, DIVIDENDOS E OUTROS RENDIMENTOS SIMILARES | E28: ='II-DEM RESULTADOS'!I41 -> 0 | F28: ='II-DEM RESULTADOS'!J41 -> 0 | G28: ='II-DEM RESULTADOS'!K41 -> 0 | H28: ='II-DEM RESULTADOS'!L41 -> 0 | I28: ='II-DEM RESULTADOS'!M41 -> 0 | J28: ='II-DEM RESULTADOS'!N41 -> 0 | K28: ='II-DEM RESULTADOS'!O41 -> 0 | L28: ='II-DEM RESULTADOS'!P41 -> 0 | M28: ='II-DEM RESULTADOS'!Q41 -> 0 | N28: ='II-DEM RESULTADOS'!R41 -> 0 | O28: ='II-DEM RESULTADOS'!S41 -> 0 | P28: ='II-DEM RESULTADOS'!T41 -> 0 | Q28: ='II-DEM RESULTADOS'!U41 -> 0 | R28: ='II-DEM RESULTADOS'!V41 -> 0 | S28: ='II-DEM RESULTADOS'!W41 -> 0 | T28: ='II-DEM RESULTADOS'!X41 -> 0 | U28: ='II-DEM RESULTADOS'!Y41 -> 0 | V28: ='II-DEM RESULTADOS'!Z41 -> 0 | W28: ='II-DEM RESULTADOS'!AA41 -> 0 | X28: ='II-DEM RESULTADOS'!AB41 -> 0
A29: =+'dados I'!$A$2 -> 20008838749 | B29: =+'dados I'!$B$2 -> 502065591 | C29: ='II-DEM RESULTADOS'!C42 -> 7 | D29: ='II-DEM RESULTADOS'!F42 -> TOTAL RENDIMENTOS | E29: ='II-DEM RESULTADOS'!I42 -> 374469.88 | F29: ='II-DEM RESULTADOS'!J42 -> 177704.52 | G29: ='II-DEM RESULTADOS'!K42 -> 140411.98 | H29: ='II-DEM RESULTADOS'!L42 -> 29982.2 | I29: ='II-DEM RESULTADOS'!M42 -> 26371.18 | J29: ='II-DEM RESULTADOS'!N42 -> 0 | K29: ='II-DEM RESULTADOS'!O42 -> 0 | L29: ='II-DEM RESULTADOS'!P42 -> 0 | M29: ='II-DEM RESULTADOS'!Q42 -> 0 | N29: ='II-DEM RESULTADOS'!R42 -> 0 | O29: ='II-DEM RESULTADOS'!S42 -> 0 | P29: ='II-DEM RESULTADOS'!T42 -> 0 | Q29: ='II-DEM RESULTADOS'!U42 -> 0 | R29: ='II-DEM RESULTADOS'!V42 -> 0 | S29: ='II-DEM RESULTADOS'!W42 -> 0 | T29: ='II-DEM RESULTADOS'!X42 -> 0 | U29: ='II-DEM RESULTADOS'!Y42 -> 0 | V29: ='II-DEM RESULTADOS'!Z42 -> 0 | W29: ='II-DEM RESULTADOS'!AA42 -> 0 | X29: ='II-DEM RESULTADOS'!AB42 -> 0
A30: =+'dados I'!$A$2 -> 20008838749 | B30: =+'dados I'!$B$2 -> 502065591 | C30: =+'II-DEM RESULTADOS'!C49 -> 61 | D30: =+'II-DEM RESULTADOS'!F49 -> CUSTO MERCADORIAS E MATÉRIAS CONSUMIDAS | E30: =+'II-DEM RESULTADOS'!I49 -> 38500 | F30: =+'II-DEM RESULTADOS'!J49 -> 13090 | G30: =+'II-DEM RESULTADOS'!K49 -> 16170 | H30: =+'II-DEM RESULTADOS'!L49 -> 6160 | I30: =+'II-DEM RESULTADOS'!M49 -> 3080 | J30: =+'II-DEM RESULTADOS'!N49 -> 0 | K30: =+'II-DEM RESULTADOS'!O49 -> 0 | L30: =+'II-DEM RESULTADOS'!P49 -> 0 | M30: =+'II-DEM RESULTADOS'!Q49 -> 0 | N30: =+'II-DEM RESULTADOS'!R49 -> 0 | O30: =+'II-DEM RESULTADOS'!S49 -> 0 | P30: =+'II-DEM RESULTADOS'!T49 -> 0 | Q30: =+'II-DEM RESULTADOS'!U49 -> 0 | R30: =+'II-DEM RESULTADOS'!V49 -> 0 | S30: =+'II-DEM RESULTADOS'!W49 -> 0 | T30: =+'II-DEM RESULTADOS'!X49 -> 0 | U30: =+'II-DEM RESULTADOS'!Y49 -> 0 | V30: =+'II-DEM RESULTADOS'!Z49 -> 0 | W30: =+'II-DEM RESULTADOS'!AA49 -> 0 | X30: =+'II-DEM RESULTADOS'!AB49 -> 0
A31: =+'dados I'!$A$2 -> 20008838749 | B31: =+'dados I'!$B$2 -> 502065591 | C31: =+'II-DEM RESULTADOS'!C50 -> 62 | D31: =+'II-DEM RESULTADOS'!F50 -> FORNECIMENTOS E SERVIÇOS EXTERNOS | E31: =+'II-DEM RESULTADOS'!I50 -> 42150 | F31: =+'II-DEM RESULTADOS'!J50 -> 11844.5 | G31: =+'II-DEM RESULTADOS'!K50 -> 13514.5 | H31: =+'II-DEM RESULTADOS'!L50 -> 9636 | I31: =+'II-DEM RESULTADOS'!M50 -> 7155 | J31: =+'II-DEM RESULTADOS'!N50 -> 0 | K31: =+'II-DEM RESULTADOS'!O50 -> 0 | L31: =+'II-DEM RESULTADOS'!P50 -> 0 | M31: =+'II-DEM RESULTADOS'!Q50 -> 0 | N31: =+'II-DEM RESULTADOS'!R50 -> 0 | O31: =+'II-DEM RESULTADOS'!S50 -> 0 | P31: =+'II-DEM RESULTADOS'!T50 -> 0 | Q31: =+'II-DEM RESULTADOS'!U50 -> 0 | R31: =+'II-DEM RESULTADOS'!V50 -> 0 | S31: =+'II-DEM RESULTADOS'!W50 -> 0 | T31: =+'II-DEM RESULTADOS'!X50 -> 0 | U31: =+'II-DEM RESULTADOS'!Y50 -> 0 | V31: =+'II-DEM RESULTADOS'!Z50 -> 0 | W31: =+'II-DEM RESULTADOS'!AA50 -> 0 | X31: =+'II-DEM RESULTADOS'!AB50 -> 0
A32: =+'dados I'!$A$2 -> 20008838749 | B32: =+'dados I'!$B$2 -> 502065591 | C32: =+'II-DEM RESULTADOS'!C51 -> 621 | D32: =+'II-DEM RESULTADOS'!F51 -> SUBCONTRATOS | E32: =+'II-DEM RESULTADOS'!I51 -> 0 | F32: =+'II-DEM RESULTADOS'!J51 -> 0 | G32: =+'II-DEM RESULTADOS'!K51 -> 0 | H32: =+'II-DEM RESULTADOS'!L51 -> 0 | I32: =+'II-DEM RESULTADOS'!M51 -> 0 | J32: =+'II-DEM RESULTADOS'!N51 -> 0 | K32: =+'II-DEM RESULTADOS'!O51 -> 0 | L32: =+'II-DEM RESULTADOS'!P51 -> 0 | M32: =+'II-DEM RESULTADOS'!Q51 -> 0 | N32: =+'II-DEM RESULTADOS'!R51 -> 0 | O32: =+'II-DEM RESULTADOS'!S51 -> 0 | P32: =+'II-DEM RESULTADOS'!T51 -> 0 | Q32: =+'II-DEM RESULTADOS'!U51 -> 0 | R32: =+'II-DEM RESULTADOS'!V51 -> 0 | S32: =+'II-DEM RESULTADOS'!W51 -> 0 | T32: =+'II-DEM RESULTADOS'!X51 -> 0 | U32: =+'II-DEM RESULTADOS'!Y51 -> 0 | V32: =+'II-DEM RESULTADOS'!Z51 -> 0 | W32: =+'II-DEM RESULTADOS'!AA51 -> 0 | X32: =+'II-DEM RESULTADOS'!AB51 -> 0
A33: =+'dados I'!$A$2 -> 20008838749 | B33: =+'dados I'!$B$2 -> 502065591 | C33: =+'II-DEM RESULTADOS'!C52 -> 622 | D33: =+'II-DEM RESULTADOS'!F52 -> SERVIÇOS ESPECIALIZADOS | E33: =+'II-DEM RESULTADOS'!I52 -> 6900 | F33: =+'II-DEM RESULTADOS'!J52 -> 2075 | G33: =+'II-DEM RESULTADOS'!K52 -> 2075 | H33: =+'II-DEM RESULTADOS'!L52 -> 2075 | I33: =+'II-DEM RESULTADOS'!M52 -> 675 | J33: =+'II-DEM RESULTADOS'!N52 -> 0 | K33: =+'II-DEM RESULTADOS'!O52 -> 0 | L33: =+'II-DEM RESULTADOS'!P52 -> 0 | M33: =+'II-DEM RESULTADOS'!Q52 -> 0 | N33: =+'II-DEM RESULTADOS'!R52 -> 0 | O33: =+'II-DEM RESULTADOS'!S52 -> 0 | P33: =+'II-DEM RESULTADOS'!T52 -> 0 | Q33: =+'II-DEM RESULTADOS'!U52 -> 0 | R33: =+'II-DEM RESULTADOS'!V52 -> 0 | S33: =+'II-DEM RESULTADOS'!W52 -> 0 | T33: =+'II-DEM RESULTADOS'!X52 -> 0 | U33: =+'II-DEM RESULTADOS'!Y52 -> 0 | V33: =+'II-DEM RESULTADOS'!Z52 -> 0 | W33: =+'II-DEM RESULTADOS'!AA52 -> 0 | X33: =+'II-DEM RESULTADOS'!AB52 -> 0
A34: =+'dados I'!$A$2 -> 20008838749 | B34: =+'dados I'!$B$2 -> 502065591 | C34: =+'II-DEM RESULTADOS'!C53 -> 6221 | D34: =+'II-DEM RESULTADOS'!F53 -> TRABALHOS ESPECIALIZADOS | E34: =+'II-DEM RESULTADOS'!I53 -> 0 | F34: =+'II-DEM RESULTADOS'!J53 -> 0 | G34: =+'II-DEM RESULTADOS'!K53 -> 0 | H34: =+'II-DEM RESULTADOS'!L53 -> 0 | I34: =+'II-DEM RESULTADOS'!M53 -> 0 | J34: =+'II-DEM RESULTADOS'!N53 -> 0 | K34: =+'II-DEM RESULTADOS'!O53 -> 0 | L34: =+'II-DEM RESULTADOS'!P53 -> 0 | M34: =+'II-DEM RESULTADOS'!Q53 -> 0 | N34: =+'II-DEM RESULTADOS'!R53 -> 0 | O34: =+'II-DEM RESULTADOS'!S53 -> 0 | P34: =+'II-DEM RESULTADOS'!T53 -> 0 | Q34: =+'II-DEM RESULTADOS'!U53 -> 0 | R34: =+'II-DEM RESULTADOS'!V53 -> 0 | S34: =+'II-DEM RESULTADOS'!W53 -> 0 | T34: =+'II-DEM RESULTADOS'!X53 -> 0 | U34: =+'II-DEM RESULTADOS'!Y53 -> 0 | V34: =+'II-DEM RESULTADOS'!Z53 -> 0 | W34: =+'II-DEM RESULTADOS'!AA53 -> 0 | X34: =+'II-DEM RESULTADOS'!AB53 -> 0
A35: =+'dados I'!$A$2 -> 20008838749 | B35: =+'dados I'!$B$2 -> 502065591 | C35: =+'II-DEM RESULTADOS'!C54 -> 6222 | D35: =+'II-DEM RESULTADOS'!F54 -> PUBLICIDADE E PROPAGANDA | E35: =+'II-DEM RESULTADOS'!I54 -> 0 | F35: =+'II-DEM RESULTADOS'!J54 -> 0 | G35: =+'II-DEM RESULTADOS'!K54 -> 0 | H35: =+'II-DEM RESULTADOS'!L54 -> 0 | I35: =+'II-DEM RESULTADOS'!M54 -> 0 | J35: =+'II-DEM RESULTADOS'!N54 -> 0 | K35: =+'II-DEM RESULTADOS'!O54 -> 0 | L35: =+'II-DEM RESULTADOS'!P54 -> 0 | M35: =+'II-DEM RESULTADOS'!Q54 -> 0 | N35: =+'II-DEM RESULTADOS'!R54 -> 0 | O35: =+'II-DEM RESULTADOS'!S54 -> 0 | P35: =+'II-DEM RESULTADOS'!T54 -> 0 | Q35: =+'II-DEM RESULTADOS'!U54 -> 0 | R35: =+'II-DEM RESULTADOS'!V54 -> 0 | S35: =+'II-DEM RESULTADOS'!W54 -> 0 | T35: =+'II-DEM RESULTADOS'!X54 -> 0 | U35: =+'II-DEM RESULTADOS'!Y54 -> 0 | V35: =+'II-DEM RESULTADOS'!Z54 -> 0 | W35: =+'II-DEM RESULTADOS'!AA54 -> 0 | X35: =+'II-DEM RESULTADOS'!AB54 -> 0
A36: =+'dados I'!$A$2 -> 20008838749 | B36: =+'dados I'!$B$2 -> 502065591 | C36: =+'II-DEM RESULTADOS'!C55 -> 6223 | D36: =+'II-DEM RESULTADOS'!F55 -> VIGILÂNCIA E SEGURANÇA | E36: =+'II-DEM RESULTADOS'!I55 -> 700 | F36: =+'II-DEM RESULTADOS'!J55 -> 175 | G36: =+'II-DEM RESULTADOS'!K55 -> 175 | H36: =+'II-DEM RESULTADOS'!L55 -> 175 | I36: =+'II-DEM RESULTADOS'!M55 -> 175 | J36: =+'II-DEM RESULTADOS'!N55 -> 0 | K36: =+'II-DEM RESULTADOS'!O55 -> 0 | L36: =+'II-DEM RESULTADOS'!P55 -> 0 | M36: =+'II-DEM RESULTADOS'!Q55 -> 0 | N36: =+'II-DEM RESULTADOS'!R55 -> 0 | O36: =+'II-DEM RESULTADOS'!S55 -> 0 | P36: =+'II-DEM RESULTADOS'!T55 -> 0 | Q36: =+'II-DEM RESULTADOS'!U55 -> 0 | R36: =+'II-DEM RESULTADOS'!V55 -> 0 | S36: =+'II-DEM RESULTADOS'!W55 -> 0 | T36: =+'II-DEM RESULTADOS'!X55 -> 0 | U36: =+'II-DEM RESULTADOS'!Y55 -> 0 | V36: =+'II-DEM RESULTADOS'!Z55 -> 0 | W36: =+'II-DEM RESULTADOS'!AA55 -> 0 | X36: =+'II-DEM RESULTADOS'!AB55 -> 0
A37: =+'dados I'!$A$2 -> 20008838749 | B37: =+'dados I'!$B$2 -> 502065591 | C37: =+'II-DEM RESULTADOS'!C56 -> 6224 | D37: =+'II-DEM RESULTADOS'!F56 -> HONORÁRIOS | E37: =+'II-DEM RESULTADOS'!I56 -> 0 | F37: =+'II-DEM RESULTADOS'!J56 -> 0 | G37: =+'II-DEM RESULTADOS'!K56 -> 0 | H37: =+'II-DEM RESULTADOS'!L56 -> 0 | I37: =+'II-DEM RESULTADOS'!M56 -> 0 | J37: =+'II-DEM RESULTADOS'!N56 -> 0 | K37: =+'II-DEM RESULTADOS'!O56 -> 0 | L37: =+'II-DEM RESULTADOS'!P56 -> 0 | M37: =+'II-DEM RESULTADOS'!Q56 -> 0 | N37: =+'II-DEM RESULTADOS'!R56 -> 0 | O37: =+'II-DEM RESULTADOS'!S56 -> 0 | P37: =+'II-DEM RESULTADOS'!T56 -> 0 | Q37: =+'II-DEM RESULTADOS'!U56 -> 0 | R37: =+'II-DEM RESULTADOS'!V56 -> 0 | S37: =+'II-DEM RESULTADOS'!W56 -> 0 | T37: =+'II-DEM RESULTADOS'!X56 -> 0 | U37: =+'II-DEM RESULTADOS'!Y56 -> 0 | V37: =+'II-DEM RESULTADOS'!Z56 -> 0 | W37: =+'II-DEM RESULTADOS'!AA56 -> 0 | X37: =+'II-DEM RESULTADOS'!AB56 -> 0
A38: =+'dados I'!$A$2 -> 20008838749 | B38: =+'dados I'!$B$2 -> 502065591 | C38: =+'II-DEM RESULTADOS'!C57 -> 6225 | D38: =+'II-DEM RESULTADOS'!F57 -> COMISSÕES | E38: =+'II-DEM RESULTADOS'!I57 -> 0 | F38: =+'II-DEM RESULTADOS'!J57 -> 0 | G38: =+'II-DEM RESULTADOS'!K57 -> 0 | H38: =+'II-DEM RESULTADOS'!L57 -> 0 | I38: =+'II-DEM RESULTADOS'!M57 -> 0 | J38: =+'II-DEM RESULTADOS'!N57 -> 0 | K38: =+'II-DEM RESULTADOS'!O57 -> 0 | L38: =+'II-DEM RESULTADOS'!P57 -> 0 | M38: =+'II-DEM RESULTADOS'!Q57 -> 0 | N38: =+'II-DEM RESULTADOS'!R57 -> 0 | O38: =+'II-DEM RESULTADOS'!S57 -> 0 | P38: =+'II-DEM RESULTADOS'!T57 -> 0 | Q38: =+'II-DEM RESULTADOS'!U57 -> 0 | R38: =+'II-DEM RESULTADOS'!V57 -> 0 | S38: =+'II-DEM RESULTADOS'!W57 -> 0 | T38: =+'II-DEM RESULTADOS'!X57 -> 0 | U38: =+'II-DEM RESULTADOS'!Y57 -> 0 | V38: =+'II-DEM RESULTADOS'!Z57 -> 0 | W38: =+'II-DEM RESULTADOS'!AA57 -> 0 | X38: =+'II-DEM RESULTADOS'!AB57 -> 0
A39: =+'dados I'!$A$2 -> 20008838749 | B39: =+'dados I'!$B$2 -> 502065591 | C39: =+'II-DEM RESULTADOS'!C58 -> 6226 | D39: =+'II-DEM RESULTADOS'!F58 -> CONSERVAÇÃO E REPARAÇÃO | E39: =+'II-DEM RESULTADOS'!I58 -> 4200 | F39: =+'II-DEM RESULTADOS'!J58 -> 1400 | G39: =+'II-DEM RESULTADOS'!K58 -> 1400 | H39: =+'II-DEM RESULTADOS'!L58 -> 1400 | I39: =+'II-DEM RESULTADOS'!M58 -> 0 | J39: =+'II-DEM RESULTADOS'!N58 -> 0 | K39: =+'II-DEM RESULTADOS'!O58 -> 0 | L39: =+'II-DEM RESULTADOS'!P58 -> 0 | M39: =+'II-DEM RESULTADOS'!Q58 -> 0 | N39: =+'II-DEM RESULTADOS'!R58 -> 0 | O39: =+'II-DEM RESULTADOS'!S58 -> 0 | P39: =+'II-DEM RESULTADOS'!T58 -> 0 | Q39: =+'II-DEM RESULTADOS'!U58 -> 0 | R39: =+'II-DEM RESULTADOS'!V58 -> 0 | S39: =+'II-DEM RESULTADOS'!W58 -> 0 | T39: =+'II-DEM RESULTADOS'!X58 -> 0 | U39: =+'II-DEM RESULTADOS'!Y58 -> 0 | V39: =+'II-DEM RESULTADOS'!Z58 -> 0 | W39: =+'II-DEM RESULTADOS'!AA58 -> 0 | X39: =+'II-DEM RESULTADOS'!AB58 -> 0
A40: =+'dados I'!$A$2 -> 20008838749 | B40: =+'dados I'!$B$2 -> 502065591 | C40: =+'II-DEM RESULTADOS'!C59 -> 6228 | D40: =+'II-DEM RESULTADOS'!F59 -> OUTROS | E40: =+'II-DEM RESULTADOS'!I59 -> 2000 | F40: =+'II-DEM RESULTADOS'!J59 -> 500 | G40: =+'II-DEM RESULTADOS'!K59 -> 500 | H40: =+'II-DEM RESULTADOS'!L59 -> 500 | I40: =+'II-DEM RESULTADOS'!M59 -> 500 | J40: =+'II-DEM RESULTADOS'!N59 -> 0 | K40: =+'II-DEM RESULTADOS'!O59 -> 0 | L40: =+'II-DEM RESULTADOS'!P59 -> 0 | M40: =+'II-DEM RESULTADOS'!Q59 -> 0 | N40: =+'II-DEM RESULTADOS'!R59 -> 0 | O40: =+'II-DEM RESULTADOS'!S59 -> 0 | P40: =+'II-DEM RESULTADOS'!T59 -> 0 | Q40: =+'II-DEM RESULTADOS'!U59 -> 0 | R40: =+'II-DEM RESULTADOS'!V59 -> 0 | S40: =+'II-DEM RESULTADOS'!W59 -> 0 | T40: =+'II-DEM RESULTADOS'!X59 -> 0 | U40: =+'II-DEM RESULTADOS'!Y59 -> 0 | V40: =+'II-DEM RESULTADOS'!Z59 -> 0 | W40: =+'II-DEM RESULTADOS'!AA59 -> 0 | X40: =+'II-DEM RESULTADOS'!AB59 -> 0
A41: =+'dados I'!$A$2 -> 20008838749 | B41: =+'dados I'!$B$2 -> 502065591 | C41: =+'II-DEM RESULTADOS'!C60 -> 623 | D41: =+'II-DEM RESULTADOS'!F60 -> MATERIAIS | E41: =+'II-DEM RESULTADOS'!I60 -> 11750 | F41: =+'II-DEM RESULTADOS'!J60 -> 2742.5 | G41: =+'II-DEM RESULTADOS'!K60 -> 4082.5 | H41: =+'II-DEM RESULTADOS'!L60 -> 2712.5 | I41: =+'II-DEM RESULTADOS'!M60 -> 2212.5 | J41: =+'II-DEM RESULTADOS'!N60 -> 0 | K41: =+'II-DEM RESULTADOS'!O60 -> 0 | L41: =+'II-DEM RESULTADOS'!P60 -> 0 | M41: =+'II-DEM RESULTADOS'!Q60 -> 0 | N41: =+'II-DEM RESULTADOS'!R60 -> 0 | O41: =+'II-DEM RESULTADOS'!S60 -> 0 | P41: =+'II-DEM RESULTADOS'!T60 -> 0 | Q41: =+'II-DEM RESULTADOS'!U60 -> 0 | R41: =+'II-DEM RESULTADOS'!V60 -> 0 | S41: =+'II-DEM RESULTADOS'!W60 -> 0 | T41: =+'II-DEM RESULTADOS'!X60 -> 0 | U41: =+'II-DEM RESULTADOS'!Y60 -> 0 | V41: =+'II-DEM RESULTADOS'!Z60 -> 0 | W41: =+'II-DEM RESULTADOS'!AA60 -> 0 | X41: =+'II-DEM RESULTADOS'!AB60 -> 0
A42: =+'dados I'!$A$2 -> 20008838749 | B42: =+'dados I'!$B$2 -> 502065591 | C42: =+'II-DEM RESULTADOS'!C61 -> 6231 | D42: =+'II-DEM RESULTADOS'!F61 -> FERRAMENTAS E UTENSÍLIOS DE DESGATE RÁPIDO | E42: =+'II-DEM RESULTADOS'!I61 -> 6500 | F42: =+'II-DEM RESULTADOS'!J61 -> 1625 | G42: =+'II-DEM RESULTADOS'!K61 -> 1625 | H42: =+'II-DEM RESULTADOS'!L61 -> 1625 | I42: =+'II-DEM RESULTADOS'!M61 -> 1625 | J42: =+'II-DEM RESULTADOS'!N61 -> 0 | K42: =+'II-DEM RESULTADOS'!O61 -> 0 | L42: =+'II-DEM RESULTADOS'!P61 -> 0 | M42: =+'II-DEM RESULTADOS'!Q61 -> 0 | N42: =+'II-DEM RESULTADOS'!R61 -> 0 | O42: =+'II-DEM RESULTADOS'!S61 -> 0 | P42: =+'II-DEM RESULTADOS'!T61 -> 0 | Q42: =+'II-DEM RESULTADOS'!U61 -> 0 | R42: =+'II-DEM RESULTADOS'!V61 -> 0 | S42: =+'II-DEM RESULTADOS'!W61 -> 0 | T42: =+'II-DEM RESULTADOS'!X61 -> 0 | U42: =+'II-DEM RESULTADOS'!Y61 -> 0 | V42: =+'II-DEM RESULTADOS'!Z61 -> 0 | W42: =+'II-DEM RESULTADOS'!AA61 -> 0 | X42: =+'II-DEM RESULTADOS'!AB61 -> 0
A43: =+'dados I'!$A$2 -> 20008838749 | B43: =+'dados I'!$B$2 -> 502065591 | C43: =+'II-DEM RESULTADOS'!C62 -> 6232 | D43: =+'II-DEM RESULTADOS'!F62 -> LIVROS E DOCUMENTAÇÃO TÉCNICA | E43: =+'II-DEM RESULTADOS'!I62 -> 0 | F43: =+'II-DEM RESULTADOS'!J62 -> 0 | G43: =+'II-DEM RESULTADOS'!K62 -> 0 | H43: =+'II-DEM RESULTADOS'!L62 -> 0 | I43: =+'II-DEM RESULTADOS'!M62 -> 0 | J43: =+'II-DEM RESULTADOS'!N62 -> 0 | K43: =+'II-DEM RESULTADOS'!O62 -> 0 | L43: =+'II-DEM RESULTADOS'!P62 -> 0 | M43: =+'II-DEM RESULTADOS'!Q62 -> 0 | N43: =+'II-DEM RESULTADOS'!R62 -> 0 | O43: =+'II-DEM RESULTADOS'!S62 -> 0 | P43: =+'II-DEM RESULTADOS'!T62 -> 0 | Q43: =+'II-DEM RESULTADOS'!U62 -> 0 | R43: =+'II-DEM RESULTADOS'!V62 -> 0 | S43: =+'II-DEM RESULTADOS'!W62 -> 0 | T43: =+'II-DEM RESULTADOS'!X62 -> 0 | U43: =+'II-DEM RESULTADOS'!Y62 -> 0 | V43: =+'II-DEM RESULTADOS'!Z62 -> 0 | W43: =+'II-DEM RESULTADOS'!AA62 -> 0 | X43: =+'II-DEM RESULTADOS'!AB62 -> 0
A44: =+'dados I'!$A$2 -> 20008838749 | B44: =+'dados I'!$B$2 -> 502065591 | C44: =+'II-DEM RESULTADOS'!C63 -> 6233 | D44: =+'II-DEM RESULTADOS'!F63 -> MATERIAL DE ESCRITÓRIO | E44: =+'II-DEM RESULTADOS'!I63 -> 2000 | F44: =+'II-DEM RESULTADOS'!J63 -> 500 | G44: =+'II-DEM RESULTADOS'!K63 -> 880 | H44: =+'II-DEM RESULTADOS'!L63 -> 500 | I44: =+'II-DEM RESULTADOS'!M63 -> 120 | J44: =+'II-DEM RESULTADOS'!N63 -> 0 | K44: =+'II-DEM RESULTADOS'!O63 -> 0 | L44: =+'II-DEM RESULTADOS'!P63 -> 0 | M44: =+'II-DEM RESULTADOS'!Q63 -> 0 | N44: =+'II-DEM RESULTADOS'!R63 -> 0 | O44: =+'II-DEM RESULTADOS'!S63 -> 0 | P44: =+'II-DEM RESULTADOS'!T63 -> 0 | Q44: =+'II-DEM RESULTADOS'!U63 -> 0 | R44: =+'II-DEM RESULTADOS'!V63 -> 0 | S44: =+'II-DEM RESULTADOS'!W63 -> 0 | T44: =+'II-DEM RESULTADOS'!X63 -> 0 | U44: =+'II-DEM RESULTADOS'!Y63 -> 0 | V44: =+'II-DEM RESULTADOS'!Z63 -> 0 | W44: =+'II-DEM RESULTADOS'!AA63 -> 0 | X44: =+'II-DEM RESULTADOS'!AB63 -> 0
A45: =+'dados I'!$A$2 -> 20008838749 | B45: =+'dados I'!$B$2 -> 502065591 | C45: =+'II-DEM RESULTADOS'!C64 -> 6234 | D45: =+'II-DEM RESULTADOS'!F64 -> ARTIGOS PARA OFERTA | E45: =+'II-DEM RESULTADOS'!I64 -> 1750 | F45: =+'II-DEM RESULTADOS'!J64 -> 437.5 | G45: =+'II-DEM RESULTADOS'!K64 -> 437.5 | H45: =+'II-DEM RESULTADOS'!L64 -> 437.5 | I45: =+'II-DEM RESULTADOS'!M64 -> 437.5 | J45: =+'II-DEM RESULTADOS'!N64 -> 0 | K45: =+'II-DEM RESULTADOS'!O64 -> 0 | L45: =+'II-DEM RESULTADOS'!P64 -> 0 | M45: =+'II-DEM RESULTADOS'!Q64 -> 0 | N45: =+'II-DEM RESULTADOS'!R64 -> 0 | O45: =+'II-DEM RESULTADOS'!S64 -> 0 | P45: =+'II-DEM RESULTADOS'!T64 -> 0 | Q45: =+'II-DEM RESULTADOS'!U64 -> 0 | R45: =+'II-DEM RESULTADOS'!V64 -> 0 | S45: =+'II-DEM RESULTADOS'!W64 -> 0 | T45: =+'II-DEM RESULTADOS'!X64 -> 0 | U45: =+'II-DEM RESULTADOS'!Y64 -> 0 | V45: =+'II-DEM RESULTADOS'!Z64 -> 0 | W45: =+'II-DEM RESULTADOS'!AA64 -> 0 | X45: =+'II-DEM RESULTADOS'!AB64 -> 0
A46: =+'dados I'!$A$2 -> 20008838749 | B46: =+'dados I'!$B$2 -> 502065591 | C46: =+'II-DEM RESULTADOS'!C65 -> 6235/6238 | D46: =+'II-DEM RESULTADOS'!F65 -> OUTROS | E46: =+'II-DEM RESULTADOS'!I65 -> 1500 | F46: =+'II-DEM RESULTADOS'!J65 -> 180 | G46: =+'II-DEM RESULTADOS'!K65 -> 1140 | H46: =+'II-DEM RESULTADOS'!L65 -> 150 | I46: =+'II-DEM RESULTADOS'!M65 -> 30 | J46: =+'II-DEM RESULTADOS'!N65 -> 0 | K46: =+'II-DEM RESULTADOS'!O65 -> 0 | L46: =+'II-DEM RESULTADOS'!P65 -> 0 | M46: =+'II-DEM RESULTADOS'!Q65 -> 0 | N46: =+'II-DEM RESULTADOS'!R65 -> 0 | O46: =+'II-DEM RESULTADOS'!S65 -> 0 | P46: =+'II-DEM RESULTADOS'!T65 -> 0 | Q46: =+'II-DEM RESULTADOS'!U65 -> 0 | R46: =+'II-DEM RESULTADOS'!V65 -> 0 | S46: =+'II-DEM RESULTADOS'!W65 -> 0 | T46: =+'II-DEM RESULTADOS'!X65 -> 0 | U46: =+'II-DEM RESULTADOS'!Y65 -> 0 | V46: =+'II-DEM RESULTADOS'!Z65 -> 0 | W46: =+'II-DEM RESULTADOS'!AA65 -> 0 | X46: =+'II-DEM RESULTADOS'!AB65 -> 0
A47: =+'dados I'!$A$2 -> 20008838749 | B47: =+'dados I'!$B$2 -> 502065591 | C47: =+'II-DEM RESULTADOS'!C66 -> 624 | D47: =+'II-DEM RESULTADOS'!F66 -> ENERGIA E FLUIDOS | E47: =+'II-DEM RESULTADOS'!I66 -> 11950 | F47: =+'II-DEM RESULTADOS'!J66 -> 3584.5 | G47: =+'II-DEM RESULTADOS'!K66 -> 4164.5 | H47: =+'II-DEM RESULTADOS'!L66 -> 1896 | I47: =+'II-DEM RESULTADOS'!M66 -> 2305 | J47: =+'II-DEM RESULTADOS'!N66 -> 0 | K47: =+'II-DEM RESULTADOS'!O66 -> 0 | L47: =+'II-DEM RESULTADOS'!P66 -> 0 | M47: =+'II-DEM RESULTADOS'!Q66 -> 0 | N47: =+'II-DEM RESULTADOS'!R66 -> 0 | O47: =+'II-DEM RESULTADOS'!S66 -> 0 | P47: =+'II-DEM RESULTADOS'!T66 -> 0 | Q47: =+'II-DEM RESULTADOS'!U66 -> 0 | R47: =+'II-DEM RESULTADOS'!V66 -> 0 | S47: =+'II-DEM RESULTADOS'!W66 -> 0 | T47: =+'II-DEM RESULTADOS'!X66 -> 0 | U47: =+'II-DEM RESULTADOS'!Y66 -> 0 | V47: =+'II-DEM RESULTADOS'!Z66 -> 0 | W47: =+'II-DEM RESULTADOS'!AA66 -> 0 | X47: =+'II-DEM RESULTADOS'!AB66 -> 0
A48: =+'dados I'!$A$2 -> 20008838749 | B48: =+'dados I'!$B$2 -> 502065591 | C48: =+'II-DEM RESULTADOS'!C67 -> 6241 | D48: =+'II-DEM RESULTADOS'!F67 -> ELETRICIDADE | E48: =+'II-DEM RESULTADOS'!I67 -> 7500 | F48: =+'II-DEM RESULTADOS'!J67 -> 2532 | G48: =+'II-DEM RESULTADOS'!K67 -> 2532 | H48: =+'II-DEM RESULTADOS'!L67 -> 1291 | I48: =+'II-DEM RESULTADOS'!M67 -> 1145 | J48: =+'II-DEM RESULTADOS'!N67 -> 0 | K48: =+'II-DEM RESULTADOS'!O67 -> 0 | L48: =+'II-DEM RESULTADOS'!P67 -> 0 | M48: =+'II-DEM RESULTADOS'!Q67 -> 0 | N48: =+'II-DEM RESULTADOS'!R67 -> 0 | O48: =+'II-DEM RESULTADOS'!S67 -> 0 | P48: =+'II-DEM RESULTADOS'!T67 -> 0 | Q48: =+'II-DEM RESULTADOS'!U67 -> 0 | R48: =+'II-DEM RESULTADOS'!V67 -> 0 | S48: =+'II-DEM RESULTADOS'!W67 -> 0 | T48: =+'II-DEM RESULTADOS'!X67 -> 0 | U48: =+'II-DEM RESULTADOS'!Y67 -> 0 | V48: =+'II-DEM RESULTADOS'!Z67 -> 0 | W48: =+'II-DEM RESULTADOS'!AA67 -> 0 | X48: =+'II-DEM RESULTADOS'!AB67 -> 0
A49: =+'dados I'!$A$2 -> 20008838749 | B49: =+'dados I'!$B$2 -> 502065591 | C49: =+'II-DEM RESULTADOS'!C68 -> 6242 | D49: =+'II-DEM RESULTADOS'!F68 -> COMBUSTÍVEIS | E49: =+'II-DEM RESULTADOS'!I68 -> 1200 | F49: =+'II-DEM RESULTADOS'!J68 -> 240 | G49: =+'II-DEM RESULTADOS'!K68 -> 240 | H49: =+'II-DEM RESULTADOS'!L68 -> 240 | I49: =+'II-DEM RESULTADOS'!M68 -> 480 | J49: =+'II-DEM RESULTADOS'!N68 -> 0 | K49: =+'II-DEM RESULTADOS'!O68 -> 0 | L49: =+'II-DEM RESULTADOS'!P68 -> 0 | M49: =+'II-DEM RESULTADOS'!Q68 -> 0 | N49: =+'II-DEM RESULTADOS'!R68 -> 0 | O49: =+'II-DEM RESULTADOS'!S68 -> 0 | P49: =+'II-DEM RESULTADOS'!T68 -> 0 | Q49: =+'II-DEM RESULTADOS'!U68 -> 0 | R49: =+'II-DEM RESULTADOS'!V68 -> 0 | S49: =+'II-DEM RESULTADOS'!W68 -> 0 | T49: =+'II-DEM RESULTADOS'!X68 -> 0 | U49: =+'II-DEM RESULTADOS'!Y68 -> 0 | V49: =+'II-DEM RESULTADOS'!Z68 -> 0 | W49: =+'II-DEM RESULTADOS'!AA68 -> 0 | X49: =+'II-DEM RESULTADOS'!AB68 -> 0
A50: =+'dados I'!$A$2 -> 20008838749 | B50: =+'dados I'!$B$2 -> 502065591 | C50: =+'II-DEM RESULTADOS'!C69 -> 6243 | D50: =+'II-DEM RESULTADOS'!F69 -> ÁGUA | E50: =+'II-DEM RESULTADOS'!I69 -> 1250 | F50: =+'II-DEM RESULTADOS'!J69 -> 312.5 | G50: =+'II-DEM RESULTADOS'!K69 -> 312.5 | H50: =+'II-DEM RESULTADOS'!L69 -> 225 | I50: =+'II-DEM RESULTADOS'!M69 -> 400 | J50: =+'II-DEM RESULTADOS'!N69 -> 0 | K50: =+'II-DEM RESULTADOS'!O69 -> 0 | L50: =+'II-DEM RESULTADOS'!P69 -> 0 | M50: =+'II-DEM RESULTADOS'!Q69 -> 0 | N50: =+'II-DEM RESULTADOS'!R69 -> 0 | O50: =+'II-DEM RESULTADOS'!S69 -> 0 | P50: =+'II-DEM RESULTADOS'!T69 -> 0 | Q50: =+'II-DEM RESULTADOS'!U69 -> 0 | R50: =+'II-DEM RESULTADOS'!V69 -> 0 | S50: =+'II-DEM RESULTADOS'!W69 -> 0 | T50: =+'II-DEM RESULTADOS'!X69 -> 0 | U50: =+'II-DEM RESULTADOS'!Y69 -> 0 | V50: =+'II-DEM RESULTADOS'!Z69 -> 0 | W50: =+'II-DEM RESULTADOS'!AA69 -> 0 | X50: =+'II-DEM RESULTADOS'!AB69 -> 0
A51: =+'dados I'!$A$2 -> 20008838749 | B51: =+'dados I'!$B$2 -> 502065591 | C51: =+'II-DEM RESULTADOS'!C70 -> 6248 | D51: =+'II-DEM RESULTADOS'!F70 -> OUTROS | E51: =+'II-DEM RESULTADOS'!I70 -> 2000 | F51: =+'II-DEM RESULTADOS'!J70 -> 500 | G51: =+'II-DEM RESULTADOS'!K70 -> 1080 | H51: =+'II-DEM RESULTADOS'!L70 -> 140 | I51: =+'II-DEM RESULTADOS'!M70 -> 280 | J51: =+'II-DEM RESULTADOS'!N70 -> 0 | K51: =+'II-DEM RESULTADOS'!O70 -> 0 | L51: =+'II-DEM RESULTADOS'!P70 -> 0 | M51: =+'II-DEM RESULTADOS'!Q70 -> 0 | N51: =+'II-DEM RESULTADOS'!R70 -> 0 | O51: =+'II-DEM RESULTADOS'!S70 -> 0 | P51: =+'II-DEM RESULTADOS'!T70 -> 0 | Q51: =+'II-DEM RESULTADOS'!U70 -> 0 | R51: =+'II-DEM RESULTADOS'!V70 -> 0 | S51: =+'II-DEM RESULTADOS'!W70 -> 0 | T51: =+'II-DEM RESULTADOS'!X70 -> 0 | U51: =+'II-DEM RESULTADOS'!Y70 -> 0 | V51: =+'II-DEM RESULTADOS'!Z70 -> 0 | W51: =+'II-DEM RESULTADOS'!AA70 -> 0 | X51: =+'II-DEM RESULTADOS'!AB70 -> 0
A52: =+'dados I'!$A$2 -> 20008838749 | B52: =+'dados I'!$B$2 -> 502065591 | C52: =+'II-DEM RESULTADOS'!C71 -> 625 | D52: =+'II-DEM RESULTADOS'!F71 -> DESLOCAÇÕES, ESTADAS E TRANSPORTES | E52: =+'II-DEM RESULTADOS'!I71 -> 1500 | F52: =+'II-DEM RESULTADOS'!J71 -> 375 | G52: =+'II-DEM RESULTADOS'!K71 -> 375 | H52: =+'II-DEM RESULTADOS'!L71 -> 375 | I52: =+'II-DEM RESULTADOS'!M71 -> 375 | J52: =+'II-DEM RESULTADOS'!N71 -> 0 | K52: =+'II-DEM RESULTADOS'!O71 -> 0 | L52: =+'II-DEM RESULTADOS'!P71 -> 0 | M52: =+'II-DEM RESULTADOS'!Q71 -> 0 | N52: =+'II-DEM RESULTADOS'!R71 -> 0 | O52: =+'II-DEM RESULTADOS'!S71 -> 0 | P52: =+'II-DEM RESULTADOS'!T71 -> 0 | Q52: =+'II-DEM RESULTADOS'!U71 -> 0 | R52: =+'II-DEM RESULTADOS'!V71 -> 0 | S52: =+'II-DEM RESULTADOS'!W71 -> 0 | T52: =+'II-DEM RESULTADOS'!X71 -> 0 | U52: =+'II-DEM RESULTADOS'!Y71 -> 0 | V52: =+'II-DEM RESULTADOS'!Z71 -> 0 | W52: =+'II-DEM RESULTADOS'!AA71 -> 0 | X52: =+'II-DEM RESULTADOS'!AB71 -> 0
A53: =+'dados I'!$A$2 -> 20008838749 | B53: =+'dados I'!$B$2 -> 502065591 | C53: =+'II-DEM RESULTADOS'!C72 -> 6251 | D53: =+'II-DEM RESULTADOS'!F72 -> DESLOCAÇÕES E ESTADAS | E53: =+'II-DEM RESULTADOS'!I72 -> 1500 | F53: =+'II-DEM RESULTADOS'!J72 -> 375 | G53: =+'II-DEM RESULTADOS'!K72 -> 375 | H53: =+'II-DEM RESULTADOS'!L72 -> 375 | I53: =+'II-DEM RESULTADOS'!M72 -> 375 | J53: =+'II-DEM RESULTADOS'!N72 -> 0 | K53: =+'II-DEM RESULTADOS'!O72 -> 0 | L53: =+'II-DEM RESULTADOS'!P72 -> 0 | M53: =+'II-DEM RESULTADOS'!Q72 -> 0 | N53: =+'II-DEM RESULTADOS'!R72 -> 0 | O53: =+'II-DEM RESULTADOS'!S72 -> 0 | P53: =+'II-DEM RESULTADOS'!T72 -> 0 | Q53: =+'II-DEM RESULTADOS'!U72 -> 0 | R53: =+'II-DEM RESULTADOS'!V72 -> 0 | S53: =+'II-DEM RESULTADOS'!W72 -> 0 | T53: =+'II-DEM RESULTADOS'!X72 -> 0 | U53: =+'II-DEM RESULTADOS'!Y72 -> 0 | V53: =+'II-DEM RESULTADOS'!Z72 -> 0 | W53: =+'II-DEM RESULTADOS'!AA72 -> 0 | X53: =+'II-DEM RESULTADOS'!AB72 -> 0
A54: =+'dados I'!$A$2 -> 20008838749 | B54: =+'dados I'!$B$2 -> 502065591 | C54: =+'II-DEM RESULTADOS'!C73 -> 6252 | D54: =+'II-DEM RESULTADOS'!F73 -> TRANSPORTES DE PESSOAL | E54: =+'II-DEM RESULTADOS'!I73 -> 0 | F54: =+'II-DEM RESULTADOS'!J73 -> 0 | G54: =+'II-DEM RESULTADOS'!K73 -> 0 | H54: =+'II-DEM RESULTADOS'!L73 -> 0 | I54: =+'II-DEM RESULTADOS'!M73 -> 0 | J54: =+'II-DEM RESULTADOS'!N73 -> 0 | K54: =+'II-DEM RESULTADOS'!O73 -> 0 | L54: =+'II-DEM RESULTADOS'!P73 -> 0 | M54: =+'II-DEM RESULTADOS'!Q73 -> 0 | N54: =+'II-DEM RESULTADOS'!R73 -> 0 | O54: =+'II-DEM RESULTADOS'!S73 -> 0 | P54: =+'II-DEM RESULTADOS'!T73 -> 0 | Q54: =+'II-DEM RESULTADOS'!U73 -> 0 | R54: =+'II-DEM RESULTADOS'!V73 -> 0 | S54: =+'II-DEM RESULTADOS'!W73 -> 0 | T54: =+'II-DEM RESULTADOS'!X73 -> 0 | U54: =+'II-DEM RESULTADOS'!Y73 -> 0 | V54: =+'II-DEM RESULTADOS'!Z73 -> 0 | W54: =+'II-DEM RESULTADOS'!AA73 -> 0 | X54: =+'II-DEM RESULTADOS'!AB73 -> 0
A55: =+'dados I'!$A$2 -> 20008838749 | B55: =+'dados I'!$B$2 -> 502065591 | C55: =+'II-DEM RESULTADOS'!C74 -> 6253 | D55: =+'II-DEM RESULTADOS'!F74 -> TRANSPORTES DE MERCADORIAS | E55: =+'II-DEM RESULTADOS'!I74 -> 0 | F55: =+'II-DEM RESULTADOS'!J74 -> 0 | G55: =+'II-DEM RESULTADOS'!K74 -> 0 | H55: =+'II-DEM RESULTADOS'!L74 -> 0 | I55: =+'II-DEM RESULTADOS'!M74 -> 0 | J55: =+'II-DEM RESULTADOS'!N74 -> 0 | K55: =+'II-DEM RESULTADOS'!O74 -> 0 | L55: =+'II-DEM RESULTADOS'!P74 -> 0 | M55: =+'II-DEM RESULTADOS'!Q74 -> 0 | N55: =+'II-DEM RESULTADOS'!R74 -> 0 | O55: =+'II-DEM RESULTADOS'!S74 -> 0 | P55: =+'II-DEM RESULTADOS'!T74 -> 0 | Q55: =+'II-DEM RESULTADOS'!U74 -> 0 | R55: =+'II-DEM RESULTADOS'!V74 -> 0 | S55: =+'II-DEM RESULTADOS'!W74 -> 0 | T55: =+'II-DEM RESULTADOS'!X74 -> 0 | U55: =+'II-DEM RESULTADOS'!Y74 -> 0 | V55: =+'II-DEM RESULTADOS'!Z74 -> 0 | W55: =+'II-DEM RESULTADOS'!AA74 -> 0 | X55: =+'II-DEM RESULTADOS'!AB74 -> 0
A56: =+'dados I'!$A$2 -> 20008838749 | B56: =+'dados I'!$B$2 -> 502065591 | C56: =+'II-DEM RESULTADOS'!C75 -> 6258 | D56: =+'II-DEM RESULTADOS'!F75 -> OUTROS | E56: =+'II-DEM RESULTADOS'!I75 -> 0 | F56: =+'II-DEM RESULTADOS'!J75 -> 0 | G56: =+'II-DEM RESULTADOS'!K75 -> 0 | H56: =+'II-DEM RESULTADOS'!L75 -> 0 | I56: =+'II-DEM RESULTADOS'!M75 -> 0 | J56: =+'II-DEM RESULTADOS'!N75 -> 0 | K56: =+'II-DEM RESULTADOS'!O75 -> 0 | L56: =+'II-DEM RESULTADOS'!P75 -> 0 | M56: =+'II-DEM RESULTADOS'!Q75 -> 0 | N56: =+'II-DEM RESULTADOS'!R75 -> 0 | O56: =+'II-DEM RESULTADOS'!S75 -> 0 | P56: =+'II-DEM RESULTADOS'!T75 -> 0 | Q56: =+'II-DEM RESULTADOS'!U75 -> 0 | R56: =+'II-DEM RESULTADOS'!V75 -> 0 | S56: =+'II-DEM RESULTADOS'!W75 -> 0 | T56: =+'II-DEM RESULTADOS'!X75 -> 0 | U56: =+'II-DEM RESULTADOS'!Y75 -> 0 | V56: =+'II-DEM RESULTADOS'!Z75 -> 0 | W56: =+'II-DEM RESULTADOS'!AA75 -> 0 | X56: =+'II-DEM RESULTADOS'!AB75 -> 0
A57: =+'dados I'!$A$2 -> 20008838749 | B57: =+'dados I'!$B$2 -> 502065591 | C57: =+'II-DEM RESULTADOS'!C76 -> 626 | D57: =+'II-DEM RESULTADOS'!F76 -> SERVIÇOS DIVERSOS | E57: =+'II-DEM RESULTADOS'!I76 -> 10050 | F57: =+'II-DEM RESULTADOS'!J76 -> 3067.5 | G57: =+'II-DEM RESULTADOS'!K76 -> 2817.5 | H57: =+'II-DEM RESULTADOS'!L76 -> 2577.5 | I57: =+'II-DEM RESULTADOS'!M76 -> 1587.5 | J57: =+'II-DEM RESULTADOS'!N76 -> 0 | K57: =+'II-DEM RESULTADOS'!O76 -> 0 | L57: =+'II-DEM RESULTADOS'!P76 -> 0 | M57: =+'II-DEM RESULTADOS'!Q76 -> 0 | N57: =+'II-DEM RESULTADOS'!R76 -> 0 | O57: =+'II-DEM RESULTADOS'!S76 -> 0 | P57: =+'II-DEM RESULTADOS'!T76 -> 0 | Q57: =+'II-DEM RESULTADOS'!U76 -> 0 | R57: =+'II-DEM RESULTADOS'!V76 -> 0 | S57: =+'II-DEM RESULTADOS'!W76 -> 0 | T57: =+'II-DEM RESULTADOS'!X76 -> 0 | U57: =+'II-DEM RESULTADOS'!Y76 -> 0 | V57: =+'II-DEM RESULTADOS'!Z76 -> 0 | W57: =+'II-DEM RESULTADOS'!AA76 -> 0 | X57: =+'II-DEM RESULTADOS'!AB76 -> 0
A58: =+'dados I'!$A$2 -> 20008838749 | B58: =+'dados I'!$B$2 -> 502065591 | C58: =+'II-DEM RESULTADOS'!C77 -> 6261 | D58: =+'II-DEM RESULTADOS'!F77 -> RENDAS E ALUGUERES | E58: =+'II-DEM RESULTADOS'!I77 -> 0 | F58: =+'II-DEM RESULTADOS'!J77 -> 0 | G58: =+'II-DEM RESULTADOS'!K77 -> 0 | H58: =+'II-DEM RESULTADOS'!L77 -> 0 | I58: =+'II-DEM RESULTADOS'!M77 -> 0 | J58: =+'II-DEM RESULTADOS'!N77 -> 0 | K58: =+'II-DEM RESULTADOS'!O77 -> 0 | L58: =+'II-DEM RESULTADOS'!P77 -> 0 | M58: =+'II-DEM RESULTADOS'!Q77 -> 0 | N58: =+'II-DEM RESULTADOS'!R77 -> 0 | O58: =+'II-DEM RESULTADOS'!S77 -> 0 | P58: =+'II-DEM RESULTADOS'!T77 -> 0 | Q58: =+'II-DEM RESULTADOS'!U77 -> 0 | R58: =+'II-DEM RESULTADOS'!V77 -> 0 | S58: =+'II-DEM RESULTADOS'!W77 -> 0 | T58: =+'II-DEM RESULTADOS'!X77 -> 0 | U58: =+'II-DEM RESULTADOS'!Y77 -> 0 | V58: =+'II-DEM RESULTADOS'!Z77 -> 0 | W58: =+'II-DEM RESULTADOS'!AA77 -> 0 | X58: =+'II-DEM RESULTADOS'!AB77 -> 0
A59: =+'dados I'!$A$2 -> 20008838749 | B59: =+'dados I'!$B$2 -> 502065591 | C59: =+'II-DEM RESULTADOS'!C78 -> 6262 | D59: =+'II-DEM RESULTADOS'!F78 -> COMUNICAÇÃO | E59: =+'II-DEM RESULTADOS'!I78 -> 3000 | F59: =+'II-DEM RESULTADOS'!J78 -> 840 | G59: =+'II-DEM RESULTADOS'!K78 -> 840 | H59: =+'II-DEM RESULTADOS'!L78 -> 840 | I59: =+'II-DEM RESULTADOS'!M78 -> 480 | J59: =+'II-DEM RESULTADOS'!N78 -> 0 | K59: =+'II-DEM RESULTADOS'!O78 -> 0 | L59: =+'II-DEM RESULTADOS'!P78 -> 0 | M59: =+'II-DEM RESULTADOS'!Q78 -> 0 | N59: =+'II-DEM RESULTADOS'!R78 -> 0 | O59: =+'II-DEM RESULTADOS'!S78 -> 0 | P59: =+'II-DEM RESULTADOS'!T78 -> 0 | Q59: =+'II-DEM RESULTADOS'!U78 -> 0 | R59: =+'II-DEM RESULTADOS'!V78 -> 0 | S59: =+'II-DEM RESULTADOS'!W78 -> 0 | T59: =+'II-DEM RESULTADOS'!X78 -> 0 | U59: =+'II-DEM RESULTADOS'!Y78 -> 0 | V59: =+'II-DEM RESULTADOS'!Z78 -> 0 | W59: =+'II-DEM RESULTADOS'!AA78 -> 0 | X59: =+'II-DEM RESULTADOS'!AB78 -> 0
A60: =+'dados I'!$A$2 -> 20008838749 | B60: =+'dados I'!$B$2 -> 502065591 | C60: =+'II-DEM RESULTADOS'!C79 -> 6263 | D60: =+'II-DEM RESULTADOS'!F79 -> SEGUROS | E60: =+'II-DEM RESULTADOS'!I79 -> 750 | F60: =+'II-DEM RESULTADOS'!J79 -> 187.5 | G60: =+'II-DEM RESULTADOS'!K79 -> 187.5 | H60: =+'II-DEM RESULTADOS'!L79 -> 187.5 | I60: =+'II-DEM RESULTADOS'!M79 -> 187.5 | J60: =+'II-DEM RESULTADOS'!N79 -> 0 | K60: =+'II-DEM RESULTADOS'!O79 -> 0 | L60: =+'II-DEM RESULTADOS'!P79 -> 0 | M60: =+'II-DEM RESULTADOS'!Q79 -> 0 | N60: =+'II-DEM RESULTADOS'!R79 -> 0 | O60: =+'II-DEM RESULTADOS'!S79 -> 0 | P60: =+'II-DEM RESULTADOS'!T79 -> 0 | Q60: =+'II-DEM RESULTADOS'!U79 -> 0 | R60: =+'II-DEM RESULTADOS'!V79 -> 0 | S60: =+'II-DEM RESULTADOS'!W79 -> 0 | T60: =+'II-DEM RESULTADOS'!X79 -> 0 | U60: =+'II-DEM RESULTADOS'!Y79 -> 0 | V60: =+'II-DEM RESULTADOS'!Z79 -> 0 | W60: =+'II-DEM RESULTADOS'!AA79 -> 0 | X60: =+'II-DEM RESULTADOS'!AB79 -> 0
A61: =+'dados I'!$A$2 -> 20008838749 | B61: =+'dados I'!$B$2 -> 502065591 | C61: =+'II-DEM RESULTADOS'!C80 -> 6264 | D61: =+'II-DEM RESULTADOS'!F80 -> ROYALTIES | E61: =+'II-DEM RESULTADOS'!I80 -> 0 | F61: =+'II-DEM RESULTADOS'!J80 -> 0 | G61: =+'II-DEM RESULTADOS'!K80 -> 0 | H61: =+'II-DEM RESULTADOS'!L80 -> 0 | I61: =+'II-DEM RESULTADOS'!M80 -> 0 | J61: =+'II-DEM RESULTADOS'!N80 -> 0 | K61: =+'II-DEM RESULTADOS'!O80 -> 0 | L61: =+'II-DEM RESULTADOS'!P80 -> 0 | M61: =+'II-DEM RESULTADOS'!Q80 -> 0 | N61: =+'II-DEM RESULTADOS'!R80 -> 0 | O61: =+'II-DEM RESULTADOS'!S80 -> 0 | P61: =+'II-DEM RESULTADOS'!T80 -> 0 | Q61: =+'II-DEM RESULTADOS'!U80 -> 0 | R61: =+'II-DEM RESULTADOS'!V80 -> 0 | S61: =+'II-DEM RESULTADOS'!W80 -> 0 | T61: =+'II-DEM RESULTADOS'!X80 -> 0 | U61: =+'II-DEM RESULTADOS'!Y80 -> 0 | V61: =+'II-DEM RESULTADOS'!Z80 -> 0 | W61: =+'II-DEM RESULTADOS'!AA80 -> 0 | X61: =+'II-DEM RESULTADOS'!AB80 -> 0
A62: =+'dados I'!$A$2 -> 20008838749 | B62: =+'dados I'!$B$2 -> 502065591 | C62: =+'II-DEM RESULTADOS'!C81 -> 6265 | D62: =+'II-DEM RESULTADOS'!F81 -> CONTENCIOSO E NOTARIADO | E62: =+'II-DEM RESULTADOS'!I81 -> 250 | F62: =+'II-DEM RESULTADOS'!J81 -> 250 | G62: =+'II-DEM RESULTADOS'!K81 -> 0 | H62: =+'II-DEM RESULTADOS'!L81 -> 0 | I62: =+'II-DEM RESULTADOS'!M81 -> 0 | J62: =+'II-DEM RESULTADOS'!N81 -> 0 | K62: =+'II-DEM RESULTADOS'!O81 -> 0 | L62: =+'II-DEM RESULTADOS'!P81 -> 0 | M62: =+'II-DEM RESULTADOS'!Q81 -> 0 | N62: =+'II-DEM RESULTADOS'!R81 -> 0 | O62: =+'II-DEM RESULTADOS'!S81 -> 0 | P62: =+'II-DEM RESULTADOS'!T81 -> 0 | Q62: =+'II-DEM RESULTADOS'!U81 -> 0 | R62: =+'II-DEM RESULTADOS'!V81 -> 0 | S62: =+'II-DEM RESULTADOS'!W81 -> 0 | T62: =+'II-DEM RESULTADOS'!X81 -> 0 | U62: =+'II-DEM RESULTADOS'!Y81 -> 0 | V62: =+'II-DEM RESULTADOS'!Z81 -> 0 | W62: =+'II-DEM RESULTADOS'!AA81 -> 0 | X62: =+'II-DEM RESULTADOS'!AB81 -> 0
A63: =+'dados I'!$A$2 -> 20008838749 | B63: =+'dados I'!$B$2 -> 502065591 | C63: =+'II-DEM RESULTADOS'!C82 -> 6266 | D63: =+'II-DEM RESULTADOS'!F82 -> DESPESAS DE REPRESENTAÇÃO | E63: =+'II-DEM RESULTADOS'!I82 -> 500 | F63: =+'II-DEM RESULTADOS'!J82 -> 125 | G63: =+'II-DEM RESULTADOS'!K82 -> 125 | H63: =+'II-DEM RESULTADOS'!L82 -> 125 | I63: =+'II-DEM RESULTADOS'!M82 -> 125 | J63: =+'II-DEM RESULTADOS'!N82 -> 0 | K63: =+'II-DEM RESULTADOS'!O82 -> 0 | L63: =+'II-DEM RESULTADOS'!P82 -> 0 | M63: =+'II-DEM RESULTADOS'!Q82 -> 0 | N63: =+'II-DEM RESULTADOS'!R82 -> 0 | O63: =+'II-DEM RESULTADOS'!S82 -> 0 | P63: =+'II-DEM RESULTADOS'!T82 -> 0 | Q63: =+'II-DEM RESULTADOS'!U82 -> 0 | R63: =+'II-DEM RESULTADOS'!V82 -> 0 | S63: =+'II-DEM RESULTADOS'!W82 -> 0 | T63: =+'II-DEM RESULTADOS'!X82 -> 0 | U63: =+'II-DEM RESULTADOS'!Y82 -> 0 | V63: =+'II-DEM RESULTADOS'!Z82 -> 0 | W63: =+'II-DEM RESULTADOS'!AA82 -> 0 | X63: =+'II-DEM RESULTADOS'!AB82 -> 0
A64: =+'dados I'!$A$2 -> 20008838749 | B64: =+'dados I'!$B$2 -> 502065591 | C64: =+'II-DEM RESULTADOS'!C83 -> 6267 | D64: =+'II-DEM RESULTADOS'!F83 -> LIMPEZA, HIGIENE E CONFORTO | E64: =+'II-DEM RESULTADOS'!I83 -> 4800 | F64: =+'II-DEM RESULTADOS'!J83 -> 1440 | G64: =+'II-DEM RESULTADOS'!K83 -> 1440 | H64: =+'II-DEM RESULTADOS'!L83 -> 1200 | I64: =+'II-DEM RESULTADOS'!M83 -> 720 | J64: =+'II-DEM RESULTADOS'!N83 -> 0 | K64: =+'II-DEM RESULTADOS'!O83 -> 0 | L64: =+'II-DEM RESULTADOS'!P83 -> 0 | M64: =+'II-DEM RESULTADOS'!Q83 -> 0 | N64: =+'II-DEM RESULTADOS'!R83 -> 0 | O64: =+'II-DEM RESULTADOS'!S83 -> 0 | P64: =+'II-DEM RESULTADOS'!T83 -> 0 | Q64: =+'II-DEM RESULTADOS'!U83 -> 0 | R64: =+'II-DEM RESULTADOS'!V83 -> 0 | S64: =+'II-DEM RESULTADOS'!W83 -> 0 | T64: =+'II-DEM RESULTADOS'!X83 -> 0 | U64: =+'II-DEM RESULTADOS'!Y83 -> 0 | V64: =+'II-DEM RESULTADOS'!Z83 -> 0 | W64: =+'II-DEM RESULTADOS'!AA83 -> 0 | X64: =+'II-DEM RESULTADOS'!AB83 -> 0
A65: =+'dados I'!$A$2 -> 20008838749 | B65: =+'dados I'!$B$2 -> 502065591 | C65: =+'II-DEM RESULTADOS'!C84 -> 6268 | D65: =+'II-DEM RESULTADOS'!F84 -> OUTROS SERVIÇOS | E65: =+'II-DEM RESULTADOS'!I84 -> 750 | F65: =+'II-DEM RESULTADOS'!J84 -> 225 | G65: =+'II-DEM RESULTADOS'!K84 -> 225 | H65: =+'II-DEM RESULTADOS'!L84 -> 225 | I65: =+'II-DEM RESULTADOS'!M84 -> 75 | J65: =+'II-DEM RESULTADOS'!N84 -> 0 | K65: =+'II-DEM RESULTADOS'!O84 -> 0 | L65: =+'II-DEM RESULTADOS'!P84 -> 0 | M65: =+'II-DEM RESULTADOS'!Q84 -> 0 | N65: =+'II-DEM RESULTADOS'!R84 -> 0 | O65: =+'II-DEM RESULTADOS'!S84 -> 0 | P65: =+'II-DEM RESULTADOS'!T84 -> 0 | Q65: =+'II-DEM RESULTADOS'!U84 -> 0 | R65: =+'II-DEM RESULTADOS'!V84 -> 0 | S65: =+'II-DEM RESULTADOS'!W84 -> 0 | T65: =+'II-DEM RESULTADOS'!X84 -> 0 | U65: =+'II-DEM RESULTADOS'!Y84 -> 0 | V65: =+'II-DEM RESULTADOS'!Z84 -> 0 | W65: =+'II-DEM RESULTADOS'!AA84 -> 0 | X65: =+'II-DEM RESULTADOS'!AB84 -> 0
A66: =+'dados I'!$A$2 -> 20008838749 | B66: =+'dados I'!$B$2 -> 502065591 | C66: =+'II-DEM RESULTADOS'!C85 -> 63 | D66: =+'II-DEM RESULTADOS'!F85 -> GASTOS COM PESSOAL | E66: =+'II-DEM RESULTADOS'!I85 -> 257380.84 | F66: =+'II-DEM RESULTADOS'!J85 -> 97466.72 | G66: =+'II-DEM RESULTADOS'!K85 -> 117849.18 | H66: =+'II-DEM RESULTADOS'!L85 -> 23580.27 | I66: =+'II-DEM RESULTADOS'!M85 -> 18484.67 | J66: =+'II-DEM RESULTADOS'!N85 -> 0 | K66: =+'II-DEM RESULTADOS'!O85 -> 0 | L66: =+'II-DEM RESULTADOS'!P85 -> 0 | M66: =+'II-DEM RESULTADOS'!Q85 -> 0 | N66: =+'II-DEM RESULTADOS'!R85 -> 0 | O66: =+'II-DEM RESULTADOS'!S85 -> 0 | P66: =+'II-DEM RESULTADOS'!T85 -> 0 | Q66: =+'II-DEM RESULTADOS'!U85 -> 0 | R66: =+'II-DEM RESULTADOS'!V85 -> 0 | S66: =+'II-DEM RESULTADOS'!W85 -> 0 | T66: =+'II-DEM RESULTADOS'!X85 -> 0 | U66: =+'II-DEM RESULTADOS'!Y85 -> 0 | V66: =+'II-DEM RESULTADOS'!Z85 -> 0 | W66: =+'II-DEM RESULTADOS'!AA85 -> 0 | X66: =+'II-DEM RESULTADOS'!AB85 -> 0
A67: =+'dados I'!$A$2 -> 20008838749 | B67: =+'dados I'!$B$2 -> 502065591 | C67: =+'II-DEM RESULTADOS'!C86 -> 631 | D67: =+'II-DEM RESULTADOS'!F86 -> REMUNERAÇÕES DOS ÓRGÃOS SOCIAIS | E67: =+'II-DEM RESULTADOS'!I86 -> 0 | F67: =+'II-DEM RESULTADOS'!J86 -> 0 | G67: =+'II-DEM RESULTADOS'!K86 -> 0 | H67: =+'II-DEM RESULTADOS'!L86 -> 0 | I67: =+'II-DEM RESULTADOS'!M86 -> 0 | J67: =+'II-DEM RESULTADOS'!N86 -> 0 | K67: =+'II-DEM RESULTADOS'!O86 -> 0 | L67: =+'II-DEM RESULTADOS'!P86 -> 0 | M67: =+'II-DEM RESULTADOS'!Q86 -> 0 | N67: =+'II-DEM RESULTADOS'!R86 -> 0 | O67: =+'II-DEM RESULTADOS'!S86 -> 0 | P67: =+'II-DEM RESULTADOS'!T86 -> 0 | Q67: =+'II-DEM RESULTADOS'!U86 -> 0 | R67: =+'II-DEM RESULTADOS'!V86 -> 0 | S67: =+'II-DEM RESULTADOS'!W86 -> 0 | T67: =+'II-DEM RESULTADOS'!X86 -> 0 | U67: =+'II-DEM RESULTADOS'!Y86 -> 0 | V67: =+'II-DEM RESULTADOS'!Z86 -> 0 | W67: =+'II-DEM RESULTADOS'!AA86 -> 0 | X67: =+'II-DEM RESULTADOS'!AB86 -> 0
A68: =+'dados I'!$A$2 -> 20008838749 | B68: =+'dados I'!$B$2 -> 502065591 | C68: =+'II-DEM RESULTADOS'!C87 -> 6311 | D68: =+'II-DEM RESULTADOS'!F87 -> REMUNERAÇÕES CERTAS | E68: =+'II-DEM RESULTADOS'!I87 -> 0 | F68: =+'II-DEM RESULTADOS'!J87 -> 0 | G68: =+'II-DEM RESULTADOS'!K87 -> 0 | H68: =+'II-DEM RESULTADOS'!L87 -> 0 | I68: =+'II-DEM RESULTADOS'!M87 -> 0 | J68: =+'II-DEM RESULTADOS'!N87 -> 0 | K68: =+'II-DEM RESULTADOS'!O87 -> 0 | L68: =+'II-DEM RESULTADOS'!P87 -> 0 | M68: =+'II-DEM RESULTADOS'!Q87 -> 0 | N68: =+'II-DEM RESULTADOS'!R87 -> 0 | O68: =+'II-DEM RESULTADOS'!S87 -> 0 | P68: =+'II-DEM RESULTADOS'!T87 -> 0 | Q68: =+'II-DEM RESULTADOS'!U87 -> 0 | R68: =+'II-DEM RESULTADOS'!V87 -> 0 | S68: =+'II-DEM RESULTADOS'!W87 -> 0 | T68: =+'II-DEM RESULTADOS'!X87 -> 0 | U68: =+'II-DEM RESULTADOS'!Y87 -> 0 | V68: =+'II-DEM RESULTADOS'!Z87 -> 0 | W68: =+'II-DEM RESULTADOS'!AA87 -> 0 | X68: =+'II-DEM RESULTADOS'!AB87 -> 0
A69: =+'dados I'!$A$2 -> 20008838749 | B69: =+'dados I'!$B$2 -> 502065591 | C69: =+'II-DEM RESULTADOS'!C88 -> 6312 | D69: =+'II-DEM RESULTADOS'!F88 -> REMUNERAÇÕES ADICIONAIS | E69: =+'II-DEM RESULTADOS'!I88 -> 0 | F69: =+'II-DEM RESULTADOS'!J88 -> 0 | G69: =+'II-DEM RESULTADOS'!K88 -> 0 | H69: =+'II-DEM RESULTADOS'!L88 -> 0 | I69: =+'II-DEM RESULTADOS'!M88 -> 0 | J69: =+'II-DEM RESULTADOS'!N88 -> 0 | K69: =+'II-DEM RESULTADOS'!O88 -> 0 | L69: =+'II-DEM RESULTADOS'!P88 -> 0 | M69: =+'II-DEM RESULTADOS'!Q88 -> 0 | N69: =+'II-DEM RESULTADOS'!R88 -> 0 | O69: =+'II-DEM RESULTADOS'!S88 -> 0 | P69: =+'II-DEM RESULTADOS'!T88 -> 0 | Q69: =+'II-DEM RESULTADOS'!U88 -> 0 | R69: =+'II-DEM RESULTADOS'!V88 -> 0 | S69: =+'II-DEM RESULTADOS'!W88 -> 0 | T69: =+'II-DEM RESULTADOS'!X88 -> 0 | U69: =+'II-DEM RESULTADOS'!Y88 -> 0 | V69: =+'II-DEM RESULTADOS'!Z88 -> 0 | W69: =+'II-DEM RESULTADOS'!AA88 -> 0 | X69: =+'II-DEM RESULTADOS'!AB88 -> 0
A70: =+'dados I'!$A$2 -> 20008838749 | B70: =+'dados I'!$B$2 -> 502065591 | C70: =+'II-DEM RESULTADOS'!C89 -> 632 | D70: =+'II-DEM RESULTADOS'!F89 -> REMUNERAÇÕES DO PESSOAL | E70: =+'II-DEM RESULTADOS'!I89 -> 208324.48 | F70: =+'II-DEM RESULTADOS'!J89 -> 79163.3 | G70: =+'II-DEM RESULTADOS'!K89 -> 95829.26 | H70: =+'II-DEM RESULTADOS'!L89 -> 18749.2 | I70: =+'II-DEM RESULTADOS'!M89 -> 14582.72 | J70: =+'II-DEM RESULTADOS'!N89 -> 0 | K70: =+'II-DEM RESULTADOS'!O89 -> 0 | L70: =+'II-DEM RESULTADOS'!P89 -> 0 | M70: =+'II-DEM RESULTADOS'!Q89 -> 0 | N70: =+'II-DEM RESULTADOS'!R89 -> 0 | O70: =+'II-DEM RESULTADOS'!S89 -> 0 | P70: =+'II-DEM RESULTADOS'!T89 -> 0 | Q70: =+'II-DEM RESULTADOS'!U89 -> 0 | R70: =+'II-DEM RESULTADOS'!V89 -> 0 | S70: =+'II-DEM RESULTADOS'!W89 -> 0 | T70: =+'II-DEM RESULTADOS'!X89 -> 0 | U70: =+'II-DEM RESULTADOS'!Y89 -> 0 | V70: =+'II-DEM RESULTADOS'!Z89 -> 0 | W70: =+'II-DEM RESULTADOS'!AA89 -> 0 | X70: =+'II-DEM RESULTADOS'!AB89 -> 0
A71: =+'dados I'!$A$2 -> 20008838749 | B71: =+'dados I'!$B$2 -> 502065591 | C71: =+'II-DEM RESULTADOS'!C90 -> 6321 | D71: =+'II-DEM RESULTADOS'!F90 -> REMUNERAÇÕES CERTAS | E71: =+'II-DEM RESULTADOS'!I90 -> 208324.48 | F71: =+'II-DEM RESULTADOS'!J90 -> 79163.3 | G71: =+'II-DEM RESULTADOS'!K90 -> 95829.26 | H71: =+'II-DEM RESULTADOS'!L90 -> 18749.2 | I71: =+'II-DEM RESULTADOS'!M90 -> 14582.72 | J71: =+'II-DEM RESULTADOS'!N90 -> 0 | K71: =+'II-DEM RESULTADOS'!O90 -> 0 | L71: =+'II-DEM RESULTADOS'!P90 -> 0 | M71: =+'II-DEM RESULTADOS'!Q90 -> 0 | N71: =+'II-DEM RESULTADOS'!R90 -> 0 | O71: =+'II-DEM RESULTADOS'!S90 -> 0 | P71: =+'II-DEM RESULTADOS'!T90 -> 0 | Q71: =+'II-DEM RESULTADOS'!U90 -> 0 | R71: =+'II-DEM RESULTADOS'!V90 -> 0 | S71: =+'II-DEM RESULTADOS'!W90 -> 0 | T71: =+'II-DEM RESULTADOS'!X90 -> 0 | U71: =+'II-DEM RESULTADOS'!Y90 -> 0 | V71: =+'II-DEM RESULTADOS'!Z90 -> 0 | W71: =+'II-DEM RESULTADOS'!AA90 -> 0 | X71: =+'II-DEM RESULTADOS'!AB90 -> 0
A72: =+'dados I'!$A$2 -> 20008838749 | B72: =+'dados I'!$B$2 -> 502065591 | C72: =+'II-DEM RESULTADOS'!C91 -> 6322 | D72: =+'II-DEM RESULTADOS'!F91 -> REMUNERAÇÕES ADICIONAIS | E72: =+'II-DEM RESULTADOS'!I91 -> 0 | F72: =+'II-DEM RESULTADOS'!J91 -> 0 | G72: =+'II-DEM RESULTADOS'!K91 -> 0 | H72: =+'II-DEM RESULTADOS'!L91 -> 0 | I72: =+'II-DEM RESULTADOS'!M91 -> 0 | J72: =+'II-DEM RESULTADOS'!N91 -> 0 | K72: =+'II-DEM RESULTADOS'!O91 -> 0 | L72: =+'II-DEM RESULTADOS'!P91 -> 0 | M72: =+'II-DEM RESULTADOS'!Q91 -> 0 | N72: =+'II-DEM RESULTADOS'!R91 -> 0 | O72: =+'II-DEM RESULTADOS'!S91 -> 0 | P72: =+'II-DEM RESULTADOS'!T91 -> 0 | Q72: =+'II-DEM RESULTADOS'!U91 -> 0 | R72: =+'II-DEM RESULTADOS'!V91 -> 0 | S72: =+'II-DEM RESULTADOS'!W91 -> 0 | T72: =+'II-DEM RESULTADOS'!X91 -> 0 | U72: =+'II-DEM RESULTADOS'!Y91 -> 0 | V72: =+'II-DEM RESULTADOS'!Z91 -> 0 | W72: =+'II-DEM RESULTADOS'!AA91 -> 0 | X72: =+'II-DEM RESULTADOS'!AB91 -> 0
A73: =+'dados I'!$A$2 -> 20008838749 | B73: =+'dados I'!$B$2 -> 502065591 | C73: =+'II-DEM RESULTADOS'!C92 -> 633 | D73: =+'II-DEM RESULTADOS'!F92 -> BENEFÍCIOS PÓS-EMPREGO | E73: =+'II-DEM RESULTADOS'!I92 -> 0 | F73: =+'II-DEM RESULTADOS'!J92 -> 0 | G73: =+'II-DEM RESULTADOS'!K92 -> 0 | H73: =+'II-DEM RESULTADOS'!L92 -> 0 | I73: =+'II-DEM RESULTADOS'!M92 -> 0 | J73: =+'II-DEM RESULTADOS'!N92 -> 0 | K73: =+'II-DEM RESULTADOS'!O92 -> 0 | L73: =+'II-DEM RESULTADOS'!P92 -> 0 | M73: =+'II-DEM RESULTADOS'!Q92 -> 0 | N73: =+'II-DEM RESULTADOS'!R92 -> 0 | O73: =+'II-DEM RESULTADOS'!S92 -> 0 | P73: =+'II-DEM RESULTADOS'!T92 -> 0 | Q73: =+'II-DEM RESULTADOS'!U92 -> 0 | R73: =+'II-DEM RESULTADOS'!V92 -> 0 | S73: =+'II-DEM RESULTADOS'!W92 -> 0 | T73: =+'II-DEM RESULTADOS'!X92 -> 0 | U73: =+'II-DEM RESULTADOS'!Y92 -> 0 | V73: =+'II-DEM RESULTADOS'!Z92 -> 0 | W73: =+'II-DEM RESULTADOS'!AA92 -> 0 | X73: =+'II-DEM RESULTADOS'!AB92 -> 0
A74: =+'dados I'!$A$2 -> 20008838749 | B74: =+'dados I'!$B$2 -> 502065591 | C74: =+'II-DEM RESULTADOS'!C93 -> 6331 | D74: =+'II-DEM RESULTADOS'!F93 -> ÓRGÃOS SOCIAIS | E74: =+'II-DEM RESULTADOS'!I93 -> 0 | F74: =+'II-DEM RESULTADOS'!J93 -> 0 | G74: =+'II-DEM RESULTADOS'!K93 -> 0 | H74: =+'II-DEM RESULTADOS'!L93 -> 0 | I74: =+'II-DEM RESULTADOS'!M93 -> 0 | J74: =+'II-DEM RESULTADOS'!N93 -> 0 | K74: =+'II-DEM RESULTADOS'!O93 -> 0 | L74: =+'II-DEM RESULTADOS'!P93 -> 0 | M74: =+'II-DEM RESULTADOS'!Q93 -> 0 | N74: =+'II-DEM RESULTADOS'!R93 -> 0 | O74: =+'II-DEM RESULTADOS'!S93 -> 0 | P74: =+'II-DEM RESULTADOS'!T93 -> 0 | Q74: =+'II-DEM RESULTADOS'!U93 -> 0 | R74: =+'II-DEM RESULTADOS'!V93 -> 0 | S74: =+'II-DEM RESULTADOS'!W93 -> 0 | T74: =+'II-DEM RESULTADOS'!X93 -> 0 | U74: =+'II-DEM RESULTADOS'!Y93 -> 0 | V74: =+'II-DEM RESULTADOS'!Z93 -> 0 | W74: =+'II-DEM RESULTADOS'!AA93 -> 0 | X74: =+'II-DEM RESULTADOS'!AB93 -> 0
A75: =+'dados I'!$A$2 -> 20008838749 | B75: =+'dados I'!$B$2 -> 502065591 | C75: =+'II-DEM RESULTADOS'!C94 -> 6332 | D75: =+'II-DEM RESULTADOS'!F94 -> PESSOAL | E75: =+'II-DEM RESULTADOS'!I94 -> 0 | F75: =+'II-DEM RESULTADOS'!J94 -> 0 | G75: =+'II-DEM RESULTADOS'!K94 -> 0 | H75: =+'II-DEM RESULTADOS'!L94 -> 0 | I75: =+'II-DEM RESULTADOS'!M94 -> 0 | J75: =+'II-DEM RESULTADOS'!N94 -> 0 | K75: =+'II-DEM RESULTADOS'!O94 -> 0 | L75: =+'II-DEM RESULTADOS'!P94 -> 0 | M75: =+'II-DEM RESULTADOS'!Q94 -> 0 | N75: =+'II-DEM RESULTADOS'!R94 -> 0 | O75: =+'II-DEM RESULTADOS'!S94 -> 0 | P75: =+'II-DEM RESULTADOS'!T94 -> 0 | Q75: =+'II-DEM RESULTADOS'!U94 -> 0 | R75: =+'II-DEM RESULTADOS'!V94 -> 0 | S75: =+'II-DEM RESULTADOS'!W94 -> 0 | T75: =+'II-DEM RESULTADOS'!X94 -> 0 | U75: =+'II-DEM RESULTADOS'!Y94 -> 0 | V75: =+'II-DEM RESULTADOS'!Z94 -> 0 | W75: =+'II-DEM RESULTADOS'!AA94 -> 0 | X75: =+'II-DEM RESULTADOS'!AB94 -> 0
A76: =+'dados I'!$A$2 -> 20008838749 | B76: =+'dados I'!$B$2 -> 502065591 | C76: =+'II-DEM RESULTADOS'!C95 -> 634 | D76: =+'II-DEM RESULTADOS'!F95 -> INDEMNIZAÇÕES | E76: =+'II-DEM RESULTADOS'!I95 -> 0 | F76: =+'II-DEM RESULTADOS'!J95 -> 0 | G76: =+'II-DEM RESULTADOS'!K95 -> 0 | H76: =+'II-DEM RESULTADOS'!L95 -> 0 | I76: =+'II-DEM RESULTADOS'!M95 -> 0 | J76: =+'II-DEM RESULTADOS'!N95 -> 0 | K76: =+'II-DEM RESULTADOS'!O95 -> 0 | L76: =+'II-DEM RESULTADOS'!P95 -> 0 | M76: =+'II-DEM RESULTADOS'!Q95 -> 0 | N76: =+'II-DEM RESULTADOS'!R95 -> 0 | O76: =+'II-DEM RESULTADOS'!S95 -> 0 | P76: =+'II-DEM RESULTADOS'!T95 -> 0 | Q76: =+'II-DEM RESULTADOS'!U95 -> 0 | R76: =+'II-DEM RESULTADOS'!V95 -> 0 | S76: =+'II-DEM RESULTADOS'!W95 -> 0 | T76: =+'II-DEM RESULTADOS'!X95 -> 0 | U76: =+'II-DEM RESULTADOS'!Y95 -> 0 | V76: =+'II-DEM RESULTADOS'!Z95 -> 0 | W76: =+'II-DEM RESULTADOS'!AA95 -> 0 | X76: =+'II-DEM RESULTADOS'!AB95 -> 0
A77: =+'dados I'!$A$2 -> 20008838749 | B77: =+'dados I'!$B$2 -> 502065591 | C77: =+'II-DEM RESULTADOS'!C96 -> 6341 | D77: =+'II-DEM RESULTADOS'!F96 -> ÓRGÃOS SOCIAIS | E77: =+'II-DEM RESULTADOS'!I96 -> 0 | F77: =+'II-DEM RESULTADOS'!J96 -> 0 | G77: =+'II-DEM RESULTADOS'!K96 -> 0 | H77: =+'II-DEM RESULTADOS'!L96 -> 0 | I77: =+'II-DEM RESULTADOS'!M96 -> 0 | J77: =+'II-DEM RESULTADOS'!N96 -> 0 | K77: =+'II-DEM RESULTADOS'!O96 -> 0 | L77: =+'II-DEM RESULTADOS'!P96 -> 0 | M77: =+'II-DEM RESULTADOS'!Q96 -> 0 | N77: =+'II-DEM RESULTADOS'!R96 -> 0 | O77: =+'II-DEM RESULTADOS'!S96 -> 0 | P77: =+'II-DEM RESULTADOS'!T96 -> 0 | Q77: =+'II-DEM RESULTADOS'!U96 -> 0 | R77: =+'II-DEM RESULTADOS'!V96 -> 0 | S77: =+'II-DEM RESULTADOS'!W96 -> 0 | T77: =+'II-DEM RESULTADOS'!X96 -> 0 | U77: =+'II-DEM RESULTADOS'!Y96 -> 0 | V77: =+'II-DEM RESULTADOS'!Z96 -> 0 | W77: =+'II-DEM RESULTADOS'!AA96 -> 0 | X77: =+'II-DEM RESULTADOS'!AB96 -> 0
A78: =+'dados I'!$A$2 -> 20008838749 | B78: =+'dados I'!$B$2 -> 502065591 | C78: =+'II-DEM RESULTADOS'!C97 -> 6342 | D78: =+'II-DEM RESULTADOS'!F97 -> PESSOAL | E78: =+'II-DEM RESULTADOS'!I97 -> 0 | F78: =+'II-DEM RESULTADOS'!J97 -> 0 | G78: =+'II-DEM RESULTADOS'!K97 -> 0 | H78: =+'II-DEM RESULTADOS'!L97 -> 0 | I78: =+'II-DEM RESULTADOS'!M97 -> 0 | J78: =+'II-DEM RESULTADOS'!N97 -> 0 | K78: =+'II-DEM RESULTADOS'!O97 -> 0 | L78: =+'II-DEM RESULTADOS'!P97 -> 0 | M78: =+'II-DEM RESULTADOS'!Q97 -> 0 | N78: =+'II-DEM RESULTADOS'!R97 -> 0 | O78: =+'II-DEM RESULTADOS'!S97 -> 0 | P78: =+'II-DEM RESULTADOS'!T97 -> 0 | Q78: =+'II-DEM RESULTADOS'!U97 -> 0 | R78: =+'II-DEM RESULTADOS'!V97 -> 0 | S78: =+'II-DEM RESULTADOS'!W97 -> 0 | T78: =+'II-DEM RESULTADOS'!X97 -> 0 | U78: =+'II-DEM RESULTADOS'!Y97 -> 0 | V78: =+'II-DEM RESULTADOS'!Z97 -> 0 | W78: =+'II-DEM RESULTADOS'!AA97 -> 0 | X78: =+'II-DEM RESULTADOS'!AB97 -> 0
A79: =+'dados I'!$A$2 -> 20008838749 | B79: =+'dados I'!$B$2 -> 502065591 | C79: =+'II-DEM RESULTADOS'!C98 -> 635 | D79: =+'II-DEM RESULTADOS'!F98 -> ENCARGOS SOBRE REMUNERAÇÕES | E79: =+'II-DEM RESULTADOS'!I98 -> 46456.36 | F79: =+'II-DEM RESULTADOS'!J98 -> 17653.42 | G79: =+'II-DEM RESULTADOS'!K98 -> 21369.92 | H79: =+'II-DEM RESULTADOS'!L98 -> 4181.07 | I79: =+'II-DEM RESULTADOS'!M98 -> 3251.95 | J79: =+'II-DEM RESULTADOS'!N98 -> 0 | K79: =+'II-DEM RESULTADOS'!O98 -> 0 | L79: =+'II-DEM RESULTADOS'!P98 -> 0 | M79: =+'II-DEM RESULTADOS'!Q98 -> 0 | N79: =+'II-DEM RESULTADOS'!R98 -> 0 | O79: =+'II-DEM RESULTADOS'!S98 -> 0 | P79: =+'II-DEM RESULTADOS'!T98 -> 0 | Q79: =+'II-DEM RESULTADOS'!U98 -> 0 | R79: =+'II-DEM RESULTADOS'!V98 -> 0 | S79: =+'II-DEM RESULTADOS'!W98 -> 0 | T79: =+'II-DEM RESULTADOS'!X98 -> 0 | U79: =+'II-DEM RESULTADOS'!Y98 -> 0 | V79: =+'II-DEM RESULTADOS'!Z98 -> 0 | W79: =+'II-DEM RESULTADOS'!AA98 -> 0 | X79: =+'II-DEM RESULTADOS'!AB98 -> 0
A80: =+'dados I'!$A$2 -> 20008838749 | B80: =+'dados I'!$B$2 -> 502065591 | C80: =+'II-DEM RESULTADOS'!C99 -> 6351 | D80: =+'II-DEM RESULTADOS'!F99 -> ÓRGÃOS SOCIAIS | E80: =+'II-DEM RESULTADOS'!I99 -> 0 | F80: =+'II-DEM RESULTADOS'!J99 -> 0 | G80: =+'II-DEM RESULTADOS'!K99 -> 0 | H80: =+'II-DEM RESULTADOS'!L99 -> 0 | I80: =+'II-DEM RESULTADOS'!M99 -> 0 | J80: =+'II-DEM RESULTADOS'!N99 -> 0 | K80: =+'II-DEM RESULTADOS'!O99 -> 0 | L80: =+'II-DEM RESULTADOS'!P99 -> 0 | M80: =+'II-DEM RESULTADOS'!Q99 -> 0 | N80: =+'II-DEM RESULTADOS'!R99 -> 0 | O80: =+'II-DEM RESULTADOS'!S99 -> 0 | P80: =+'II-DEM RESULTADOS'!T99 -> 0 | Q80: =+'II-DEM RESULTADOS'!U99 -> 0 | R80: =+'II-DEM RESULTADOS'!V99 -> 0 | S80: =+'II-DEM RESULTADOS'!W99 -> 0 | T80: =+'II-DEM RESULTADOS'!X99 -> 0 | U80: =+'II-DEM RESULTADOS'!Y99 -> 0 | V80: =+'II-DEM RESULTADOS'!Z99 -> 0 | W80: =+'II-DEM RESULTADOS'!AA99 -> 0 | X80: =+'II-DEM RESULTADOS'!AB99 -> 0
A81: =+'dados I'!$A$2 -> 20008838749 | B81: =+'dados I'!$B$2 -> 502065591 | C81: =+'II-DEM RESULTADOS'!C100 -> 6352 | D81: =+'II-DEM RESULTADOS'!F100 -> PESSOAL | E81: =+'II-DEM RESULTADOS'!I100 -> 46456.36 | F81: =+'II-DEM RESULTADOS'!J100 -> 17653.42 | G81: =+'II-DEM RESULTADOS'!K100 -> 21369.92 | H81: =+'II-DEM RESULTADOS'!L100 -> 4181.07 | I81: =+'II-DEM RESULTADOS'!M100 -> 3251.95 | J81: =+'II-DEM RESULTADOS'!N100 -> 0 | K81: =+'II-DEM RESULTADOS'!O100 -> 0 | L81: =+'II-DEM RESULTADOS'!P100 -> 0 | M81: =+'II-DEM RESULTADOS'!Q100 -> 0 | N81: =+'II-DEM RESULTADOS'!R100 -> 0 | O81: =+'II-DEM RESULTADOS'!S100 -> 0 | P81: =+'II-DEM RESULTADOS'!T100 -> 0 | Q81: =+'II-DEM RESULTADOS'!U100 -> 0 | R81: =+'II-DEM RESULTADOS'!V100 -> 0 | S81: =+'II-DEM RESULTADOS'!W100 -> 0 | T81: =+'II-DEM RESULTADOS'!X100 -> 0 | U81: =+'II-DEM RESULTADOS'!Y100 -> 0 | V81: =+'II-DEM RESULTADOS'!Z100 -> 0 | W81: =+'II-DEM RESULTADOS'!AA100 -> 0 | X81: =+'II-DEM RESULTADOS'!AB100 -> 0
A82: =+'dados I'!$A$2 -> 20008838749 | B82: =+'dados I'!$B$2 -> 502065591 | C82: =+'II-DEM RESULTADOS'!C101 -> 636 | D82: =+'II-DEM RESULTADOS'!F101 -> SEGUROS ACIDENTES TRABALHO E DOENÇAS PROFISSIONAIS | E82: =+'II-DEM RESULTADOS'!I101 -> 1850 | F82: =+'II-DEM RESULTADOS'!J101 -> 462.5 | G82: =+'II-DEM RESULTADOS'!K101 -> 462.5 | H82: =+'II-DEM RESULTADOS'!L101 -> 462.5 | I82: =+'II-DEM RESULTADOS'!M101 -> 462.5 | J82: =+'II-DEM RESULTADOS'!N101 -> 0 | K82: =+'II-DEM RESULTADOS'!O101 -> 0 | L82: =+'II-DEM RESULTADOS'!P101 -> 0 | M82: =+'II-DEM RESULTADOS'!Q101 -> 0 | N82: =+'II-DEM RESULTADOS'!R101 -> 0 | O82: =+'II-DEM RESULTADOS'!S101 -> 0 | P82: =+'II-DEM RESULTADOS'!T101 -> 0 | Q82: =+'II-DEM RESULTADOS'!U101 -> 0 | R82: =+'II-DEM RESULTADOS'!V101 -> 0 | S82: =+'II-DEM RESULTADOS'!W101 -> 0 | T82: =+'II-DEM RESULTADOS'!X101 -> 0 | U82: =+'II-DEM RESULTADOS'!Y101 -> 0 | V82: =+'II-DEM RESULTADOS'!Z101 -> 0 | W82: =+'II-DEM RESULTADOS'!AA101 -> 0 | X82: =+'II-DEM RESULTADOS'!AB101 -> 0
A83: =+'dados I'!$A$2 -> 20008838749 | B83: =+'dados I'!$B$2 -> 502065591 | C83: =+'II-DEM RESULTADOS'!C102 -> 6361 | D83: =+'II-DEM RESULTADOS'!F102 -> ÓRGÃOS SOCIAIS | E83: =+'II-DEM RESULTADOS'!I102 -> 0 | F83: =+'II-DEM RESULTADOS'!J102 -> 0 | G83: =+'II-DEM RESULTADOS'!K102 -> 0 | H83: =+'II-DEM RESULTADOS'!L102 -> 0 | I83: =+'II-DEM RESULTADOS'!M102 -> 0 | J83: =+'II-DEM RESULTADOS'!N102 -> 0 | K83: =+'II-DEM RESULTADOS'!O102 -> 0 | L83: =+'II-DEM RESULTADOS'!P102 -> 0 | M83: =+'II-DEM RESULTADOS'!Q102 -> 0 | N83: =+'II-DEM RESULTADOS'!R102 -> 0 | O83: =+'II-DEM RESULTADOS'!S102 -> 0 | P83: =+'II-DEM RESULTADOS'!T102 -> 0 | Q83: =+'II-DEM RESULTADOS'!U102 -> 0 | R83: =+'II-DEM RESULTADOS'!V102 -> 0 | S83: =+'II-DEM RESULTADOS'!W102 -> 0 | T83: =+'II-DEM RESULTADOS'!X102 -> 0 | U83: =+'II-DEM RESULTADOS'!Y102 -> 0 | V83: =+'II-DEM RESULTADOS'!Z102 -> 0 | W83: =+'II-DEM RESULTADOS'!AA102 -> 0 | X83: =+'II-DEM RESULTADOS'!AB102 -> 0
A84: =+'dados I'!$A$2 -> 20008838749 | B84: =+'dados I'!$B$2 -> 502065591 | C84: =+'II-DEM RESULTADOS'!C103 -> 6362 | D84: =+'II-DEM RESULTADOS'!F103 -> PESSOAL | E84: =+'II-DEM RESULTADOS'!I103 -> 1850 | F84: =+'II-DEM RESULTADOS'!J103 -> 462.5 | G84: =+'II-DEM RESULTADOS'!K103 -> 462.5 | H84: =+'II-DEM RESULTADOS'!L103 -> 462.5 | I84: =+'II-DEM RESULTADOS'!M103 -> 462.5 | J84: =+'II-DEM RESULTADOS'!N103 -> 0 | K84: =+'II-DEM RESULTADOS'!O103 -> 0 | L84: =+'II-DEM RESULTADOS'!P103 -> 0 | M84: =+'II-DEM RESULTADOS'!Q103 -> 0 | N84: =+'II-DEM RESULTADOS'!R103 -> 0 | O84: =+'II-DEM RESULTADOS'!S103 -> 0 | P84: =+'II-DEM RESULTADOS'!T103 -> 0 | Q84: =+'II-DEM RESULTADOS'!U103 -> 0 | R84: =+'II-DEM RESULTADOS'!V103 -> 0 | S84: =+'II-DEM RESULTADOS'!W103 -> 0 | T84: =+'II-DEM RESULTADOS'!X103 -> 0 | U84: =+'II-DEM RESULTADOS'!Y103 -> 0 | V84: =+'II-DEM RESULTADOS'!Z103 -> 0 | W84: =+'II-DEM RESULTADOS'!AA103 -> 0 | X84: =+'II-DEM RESULTADOS'!AB103 -> 0
A85: =+'dados I'!$A$2 -> 20008838749 | B85: =+'dados I'!$B$2 -> 502065591 | C85: =+'II-DEM RESULTADOS'!C104 -> 637 | D85: =+'II-DEM RESULTADOS'!F104 -> GASTOS DE AÇÃO SOCIAL | E85: =+'II-DEM RESULTADOS'!I104 -> 0 | F85: =+'II-DEM RESULTADOS'!J104 -> 0 | G85: =+'II-DEM RESULTADOS'!K104 -> 0 | H85: =+'II-DEM RESULTADOS'!L104 -> 0 | I85: =+'II-DEM RESULTADOS'!M104 -> 0 | J85: =+'II-DEM RESULTADOS'!N104 -> 0 | K85: =+'II-DEM RESULTADOS'!O104 -> 0 | L85: =+'II-DEM RESULTADOS'!P104 -> 0 | M85: =+'II-DEM RESULTADOS'!Q104 -> 0 | N85: =+'II-DEM RESULTADOS'!R104 -> 0 | O85: =+'II-DEM RESULTADOS'!S104 -> 0 | P85: =+'II-DEM RESULTADOS'!T104 -> 0 | Q85: =+'II-DEM RESULTADOS'!U104 -> 0 | R85: =+'II-DEM RESULTADOS'!V104 -> 0 | S85: =+'II-DEM RESULTADOS'!W104 -> 0 | T85: =+'II-DEM RESULTADOS'!X104 -> 0 | U85: =+'II-DEM RESULTADOS'!Y104 -> 0 | V85: =+'II-DEM RESULTADOS'!Z104 -> 0 | W85: =+'II-DEM RESULTADOS'!AA104 -> 0 | X85: =+'II-DEM RESULTADOS'!AB104 -> 0
A86: =+'dados I'!$A$2 -> 20008838749 | B86: =+'dados I'!$B$2 -> 502065591 | C86: =+'II-DEM RESULTADOS'!C105 -> 6371 | D86: =+'II-DEM RESULTADOS'!F105 -> ÓRGÃOS SOCIAIS | E86: =+'II-DEM RESULTADOS'!I105 -> 0 | F86: =+'II-DEM RESULTADOS'!J105 -> 0 | G86: =+'II-DEM RESULTADOS'!K105 -> 0 | H86: =+'II-DEM RESULTADOS'!L105 -> 0 | I86: =+'II-DEM RESULTADOS'!M105 -> 0 | J86: =+'II-DEM RESULTADOS'!N105 -> 0 | K86: =+'II-DEM RESULTADOS'!O105 -> 0 | L86: =+'II-DEM RESULTADOS'!P105 -> 0 | M86: =+'II-DEM RESULTADOS'!Q105 -> 0 | N86: =+'II-DEM RESULTADOS'!R105 -> 0 | O86: =+'II-DEM RESULTADOS'!S105 -> 0 | P86: =+'II-DEM RESULTADOS'!T105 -> 0 | Q86: =+'II-DEM RESULTADOS'!U105 -> 0 | R86: =+'II-DEM RESULTADOS'!V105 -> 0 | S86: =+'II-DEM RESULTADOS'!W105 -> 0 | T86: =+'II-DEM RESULTADOS'!X105 -> 0 | U86: =+'II-DEM RESULTADOS'!Y105 -> 0 | V86: =+'II-DEM RESULTADOS'!Z105 -> 0 | W86: =+'II-DEM RESULTADOS'!AA105 -> 0 | X86: =+'II-DEM RESULTADOS'!AB105 -> 0
A87: =+'dados I'!$A$2 -> 20008838749 | B87: =+'dados I'!$B$2 -> 502065591 | C87: =+'II-DEM RESULTADOS'!C106 -> 6372 | D87: =+'II-DEM RESULTADOS'!F106 -> PESSOAL | E87: =+'II-DEM RESULTADOS'!I106 -> 0 | F87: =+'II-DEM RESULTADOS'!J106 -> 0 | G87: =+'II-DEM RESULTADOS'!K106 -> 0 | H87: =+'II-DEM RESULTADOS'!L106 -> 0 | I87: =+'II-DEM RESULTADOS'!M106 -> 0 | J87: =+'II-DEM RESULTADOS'!N106 -> 0 | K87: =+'II-DEM RESULTADOS'!O106 -> 0 | L87: =+'II-DEM RESULTADOS'!P106 -> 0 | M87: =+'II-DEM RESULTADOS'!Q106 -> 0 | N87: =+'II-DEM RESULTADOS'!R106 -> 0 | O87: =+'II-DEM RESULTADOS'!S106 -> 0 | P87: =+'II-DEM RESULTADOS'!T106 -> 0 | Q87: =+'II-DEM RESULTADOS'!U106 -> 0 | R87: =+'II-DEM RESULTADOS'!V106 -> 0 | S87: =+'II-DEM RESULTADOS'!W106 -> 0 | T87: =+'II-DEM RESULTADOS'!X106 -> 0 | U87: =+'II-DEM RESULTADOS'!Y106 -> 0 | V87: =+'II-DEM RESULTADOS'!Z106 -> 0 | W87: =+'II-DEM RESULTADOS'!AA106 -> 0 | X87: =+'II-DEM RESULTADOS'!AB106 -> 0
A88: =+'dados I'!$A$2 -> 20008838749 | B88: =+'dados I'!$B$2 -> 502065591 | C88: =+'II-DEM RESULTADOS'!C107 -> 638 | D88: =+'II-DEM RESULTADOS'!F107 -> OUTROS GASTOS COM O PESSOAL | E88: =+'II-DEM RESULTADOS'!I107 -> 750 | F88: =+'II-DEM RESULTADOS'!J107 -> 187.5 | G88: =+'II-DEM RESULTADOS'!K107 -> 187.5 | H88: =+'II-DEM RESULTADOS'!L107 -> 187.5 | I88: =+'II-DEM RESULTADOS'!M107 -> 187.5 | J88: =+'II-DEM RESULTADOS'!N107 -> 0 | K88: =+'II-DEM RESULTADOS'!O107 -> 0 | L88: =+'II-DEM RESULTADOS'!P107 -> 0 | M88: =+'II-DEM RESULTADOS'!Q107 -> 0 | N88: =+'II-DEM RESULTADOS'!R107 -> 0 | O88: =+'II-DEM RESULTADOS'!S107 -> 0 | P88: =+'II-DEM RESULTADOS'!T107 -> 0 | Q88: =+'II-DEM RESULTADOS'!U107 -> 0 | R88: =+'II-DEM RESULTADOS'!V107 -> 0 | S88: =+'II-DEM RESULTADOS'!W107 -> 0 | T88: =+'II-DEM RESULTADOS'!X107 -> 0 | U88: =+'II-DEM RESULTADOS'!Y107 -> 0 | V88: =+'II-DEM RESULTADOS'!Z107 -> 0 | W88: =+'II-DEM RESULTADOS'!AA107 -> 0 | X88: =+'II-DEM RESULTADOS'!AB107 -> 0
A89: =+'dados I'!$A$2 -> 20008838749 | B89: =+'dados I'!$B$2 -> 502065591 | C89: =+'II-DEM RESULTADOS'!C108 -> 6381 | D89: =+'II-DEM RESULTADOS'!F108 -> ÓRGÃOS SOCIAIS | E89: =+'II-DEM RESULTADOS'!I108 -> 0 | F89: =+'II-DEM RESULTADOS'!J108 -> 0 | G89: =+'II-DEM RESULTADOS'!K108 -> 0 | H89: =+'II-DEM RESULTADOS'!L108 -> 0 | I89: =+'II-DEM RESULTADOS'!M108 -> 0 | J89: =+'II-DEM RESULTADOS'!N108 -> 0 | K89: =+'II-DEM RESULTADOS'!O108 -> 0 | L89: =+'II-DEM RESULTADOS'!P108 -> 0 | M89: =+'II-DEM RESULTADOS'!Q108 -> 0 | N89: =+'II-DEM RESULTADOS'!R108 -> 0 | O89: =+'II-DEM RESULTADOS'!S108 -> 0 | P89: =+'II-DEM RESULTADOS'!T108 -> 0 | Q89: =+'II-DEM RESULTADOS'!U108 -> 0 | R89: =+'II-DEM RESULTADOS'!V108 -> 0 | S89: =+'II-DEM RESULTADOS'!W108 -> 0 | T89: =+'II-DEM RESULTADOS'!X108 -> 0 | U89: =+'II-DEM RESULTADOS'!Y108 -> 0 | V89: =+'II-DEM RESULTADOS'!Z108 -> 0 | W89: =+'II-DEM RESULTADOS'!AA108 -> 0 | X89: =+'II-DEM RESULTADOS'!AB108 -> 0
A90: =+'dados I'!$A$2 -> 20008838749 | B90: =+'dados I'!$B$2 -> 502065591 | C90: =+'II-DEM RESULTADOS'!C109 -> 6382 | D90: =+'II-DEM RESULTADOS'!F109 -> PESSOAL | E90: =+'II-DEM RESULTADOS'!I109 -> 750 | F90: =+'II-DEM RESULTADOS'!J109 -> 187.5 | G90: =+'II-DEM RESULTADOS'!K109 -> 187.5 | H90: =+'II-DEM RESULTADOS'!L109 -> 187.5 | I90: =+'II-DEM RESULTADOS'!M109 -> 187.5 | J90: =+'II-DEM RESULTADOS'!N109 -> 0 | K90: =+'II-DEM RESULTADOS'!O109 -> 0 | L90: =+'II-DEM RESULTADOS'!P109 -> 0 | M90: =+'II-DEM RESULTADOS'!Q109 -> 0 | N90: =+'II-DEM RESULTADOS'!R109 -> 0 | O90: =+'II-DEM RESULTADOS'!S109 -> 0 | P90: =+'II-DEM RESULTADOS'!T109 -> 0 | Q90: =+'II-DEM RESULTADOS'!U109 -> 0 | R90: =+'II-DEM RESULTADOS'!V109 -> 0 | S90: =+'II-DEM RESULTADOS'!W109 -> 0 | T90: =+'II-DEM RESULTADOS'!X109 -> 0 | U90: =+'II-DEM RESULTADOS'!Y109 -> 0 | V90: =+'II-DEM RESULTADOS'!Z109 -> 0 | W90: =+'II-DEM RESULTADOS'!AA109 -> 0 | X90: =+'II-DEM RESULTADOS'!AB109 -> 0
A91: =+'dados I'!$A$2 -> 20008838749 | B91: =+'dados I'!$B$2 -> 502065591 | C91: =+'II-DEM RESULTADOS'!C110 -> 64 | D91: =+'II-DEM RESULTADOS'!F110 -> GASTOS DE DEPRECIAÇÃO E AMORTIZAÇÃO | E91: =+'II-DEM RESULTADOS'!I110 -> 10100 | F91: =+'II-DEM RESULTADOS'!J110 -> 2279 | G91: =+'II-DEM RESULTADOS'!K110 -> 3345 | H91: =+'II-DEM RESULTADOS'!L110 -> 1910 | I91: =+'II-DEM RESULTADOS'!M110 -> 2566 | J91: =+'II-DEM RESULTADOS'!N110 -> 0 | K91: =+'II-DEM RESULTADOS'!O110 -> 0 | L91: =+'II-DEM RESULTADOS'!P110 -> 0 | M91: =+'II-DEM RESULTADOS'!Q110 -> 0 | N91: =+'II-DEM RESULTADOS'!R110 -> 0 | O91: =+'II-DEM RESULTADOS'!S110 -> 0 | P91: =+'II-DEM RESULTADOS'!T110 -> 0 | Q91: =+'II-DEM RESULTADOS'!U110 -> 0 | R91: =+'II-DEM RESULTADOS'!V110 -> 0 | S91: =+'II-DEM RESULTADOS'!W110 -> 0 | T91: =+'II-DEM RESULTADOS'!X110 -> 0 | U91: =+'II-DEM RESULTADOS'!Y110 -> 0 | V91: =+'II-DEM RESULTADOS'!Z110 -> 0 | W91: =+'II-DEM RESULTADOS'!AA110 -> 0 | X91: =+'II-DEM RESULTADOS'!AB110 -> 0
A92: =+'dados I'!$A$2 -> 20008838749 | B92: =+'dados I'!$B$2 -> 502065591 | C92: =+'II-DEM RESULTADOS'!C111 -> 641 | D92: =+'II-DEM RESULTADOS'!F111 -> PROPRIEDADES DE INVESTIMENTO | E92: =+'II-DEM RESULTADOS'!I111 -> 0 | F92: =+'II-DEM RESULTADOS'!J111 -> 0 | G92: =+'II-DEM RESULTADOS'!K111 -> 0 | H92: =+'II-DEM RESULTADOS'!L111 -> 0 | I92: =+'II-DEM RESULTADOS'!M111 -> 0 | J92: =+'II-DEM RESULTADOS'!N111 -> 0 | K92: =+'II-DEM RESULTADOS'!O111 -> 0 | L92: =+'II-DEM RESULTADOS'!P111 -> 0 | M92: =+'II-DEM RESULTADOS'!Q111 -> 0 | N92: =+'II-DEM RESULTADOS'!R111 -> 0 | O92: =+'II-DEM RESULTADOS'!S111 -> 0 | P92: =+'II-DEM RESULTADOS'!T111 -> 0 | Q92: =+'II-DEM RESULTADOS'!U111 -> 0 | R92: =+'II-DEM RESULTADOS'!V111 -> 0 | S92: =+'II-DEM RESULTADOS'!W111 -> 0 | T92: =+'II-DEM RESULTADOS'!X111 -> 0 | U92: =+'II-DEM RESULTADOS'!Y111 -> 0 | V92: =+'II-DEM RESULTADOS'!Z111 -> 0 | W92: =+'II-DEM RESULTADOS'!AA111 -> 0 | X92: =+'II-DEM RESULTADOS'!AB111 -> 0
A93: =+'dados I'!$A$2 -> 20008838749 | B93: =+'dados I'!$B$2 -> 502065591 | C93: =+'II-DEM RESULTADOS'!C112 -> 642 | D93: =+'II-DEM RESULTADOS'!F112 -> ATIVOS FIXOS TANGÍVEIS | E93: =+'II-DEM RESULTADOS'!I112 -> 10100 | F93: =+'II-DEM RESULTADOS'!J112 -> 2279 | G93: =+'II-DEM RESULTADOS'!K112 -> 3345 | H93: =+'II-DEM RESULTADOS'!L112 -> 1910 | I93: =+'II-DEM RESULTADOS'!M112 -> 2566 | J93: =+'II-DEM RESULTADOS'!N112 -> 0 | K93: =+'II-DEM RESULTADOS'!O112 -> 0 | L93: =+'II-DEM RESULTADOS'!P112 -> 0 | M93: =+'II-DEM RESULTADOS'!Q112 -> 0 | N93: =+'II-DEM RESULTADOS'!R112 -> 0 | O93: =+'II-DEM RESULTADOS'!S112 -> 0 | P93: =+'II-DEM RESULTADOS'!T112 -> 0 | Q93: =+'II-DEM RESULTADOS'!U112 -> 0 | R93: =+'II-DEM RESULTADOS'!V112 -> 0 | S93: =+'II-DEM RESULTADOS'!W112 -> 0 | T93: =+'II-DEM RESULTADOS'!X112 -> 0 | U93: =+'II-DEM RESULTADOS'!Y112 -> 0 | V93: =+'II-DEM RESULTADOS'!Z112 -> 0 | W93: =+'II-DEM RESULTADOS'!AA112 -> 0 | X93: =+'II-DEM RESULTADOS'!AB112 -> 0
A94: =+'dados I'!$A$2 -> 20008838749 | B94: =+'dados I'!$B$2 -> 502065591 | C94: =+'II-DEM RESULTADOS'!C113 -> 643 | D94: =+'II-DEM RESULTADOS'!F113 -> ATIVOS INTANGÍVEIS | E94: =+'II-DEM RESULTADOS'!I113 -> 0 | F94: =+'II-DEM RESULTADOS'!J113 -> 0 | G94: =+'II-DEM RESULTADOS'!K113 -> 0 | H94: =+'II-DEM RESULTADOS'!L113 -> 0 | I94: =+'II-DEM RESULTADOS'!M113 -> 0 | J94: =+'II-DEM RESULTADOS'!N113 -> 0 | K94: =+'II-DEM RESULTADOS'!O113 -> 0 | L94: =+'II-DEM RESULTADOS'!P113 -> 0 | M94: =+'II-DEM RESULTADOS'!Q113 -> 0 | N94: =+'II-DEM RESULTADOS'!R113 -> 0 | O94: =+'II-DEM RESULTADOS'!S113 -> 0 | P94: =+'II-DEM RESULTADOS'!T113 -> 0 | Q94: =+'II-DEM RESULTADOS'!U113 -> 0 | R94: =+'II-DEM RESULTADOS'!V113 -> 0 | S94: =+'II-DEM RESULTADOS'!W113 -> 0 | T94: =+'II-DEM RESULTADOS'!X113 -> 0 | U94: =+'II-DEM RESULTADOS'!Y113 -> 0 | V94: =+'II-DEM RESULTADOS'!Z113 -> 0 | W94: =+'II-DEM RESULTADOS'!AA113 -> 0 | X94: =+'II-DEM RESULTADOS'!AB113 -> 0
A95: =+'dados I'!$A$2 -> 20008838749 | B95: =+'dados I'!$B$2 -> 502065591 | C95: =+'II-DEM RESULTADOS'!C114 -> 65 | D95: =+'II-DEM RESULTADOS'!F114 -> PERDAS POR IMPARIDADE | E95: =+'II-DEM RESULTADOS'!I114 -> 0 | F95: =+'II-DEM RESULTADOS'!J114 -> 0 | G95: =+'II-DEM RESULTADOS'!K114 -> 0 | H95: =+'II-DEM RESULTADOS'!L114 -> 0 | I95: =+'II-DEM RESULTADOS'!M114 -> 0 | J95: =+'II-DEM RESULTADOS'!N114 -> 0 | K95: =+'II-DEM RESULTADOS'!O114 -> 0 | L95: =+'II-DEM RESULTADOS'!P114 -> 0 | M95: =+'II-DEM RESULTADOS'!Q114 -> 0 | N95: =+'II-DEM RESULTADOS'!R114 -> 0 | O95: =+'II-DEM RESULTADOS'!S114 -> 0 | P95: =+'II-DEM RESULTADOS'!T114 -> 0 | Q95: =+'II-DEM RESULTADOS'!U114 -> 0 | R95: =+'II-DEM RESULTADOS'!V114 -> 0 | S95: =+'II-DEM RESULTADOS'!W114 -> 0 | T95: =+'II-DEM RESULTADOS'!X114 -> 0 | U95: =+'II-DEM RESULTADOS'!Y114 -> 0 | V95: =+'II-DEM RESULTADOS'!Z114 -> 0 | W95: =+'II-DEM RESULTADOS'!AA114 -> 0 | X95: =+'II-DEM RESULTADOS'!AB114 -> 0
A96: =+'dados I'!$A$2 -> 20008838749 | B96: =+'dados I'!$B$2 -> 502065591 | C96: =+'II-DEM RESULTADOS'!C115 -> 651 | D96: =+'II-DEM RESULTADOS'!F115 -> DE DÍVIDAS A RECEBER | E96: =+'II-DEM RESULTADOS'!I115 -> 0 | F96: =+'II-DEM RESULTADOS'!J115 -> 0 | G96: =+'II-DEM RESULTADOS'!K115 -> 0 | H96: =+'II-DEM RESULTADOS'!L115 -> 0 | I96: =+'II-DEM RESULTADOS'!M115 -> 0 | J96: =+'II-DEM RESULTADOS'!N115 -> 0 | K96: =+'II-DEM RESULTADOS'!O115 -> 0 | L96: =+'II-DEM RESULTADOS'!P115 -> 0 | M96: =+'II-DEM RESULTADOS'!Q115 -> 0 | N96: =+'II-DEM RESULTADOS'!R115 -> 0 | O96: =+'II-DEM RESULTADOS'!S115 -> 0 | P96: =+'II-DEM RESULTADOS'!T115 -> 0 | Q96: =+'II-DEM RESULTADOS'!U115 -> 0 | R96: =+'II-DEM RESULTADOS'!V115 -> 0 | S96: =+'II-DEM RESULTADOS'!W115 -> 0 | T96: =+'II-DEM RESULTADOS'!X115 -> 0 | U96: =+'II-DEM RESULTADOS'!Y115 -> 0 | V96: =+'II-DEM RESULTADOS'!Z115 -> 0 | W96: =+'II-DEM RESULTADOS'!AA115 -> 0 | X96: =+'II-DEM RESULTADOS'!AB115 -> 0
A97: =+'dados I'!$A$2 -> 20008838749 | B97: =+'dados I'!$B$2 -> 502065591 | C97: =+'II-DEM RESULTADOS'!C116 -> 652 | D97: =+'II-DEM RESULTADOS'!F116 -> DE INVENTÁRIOS | E97: =+'II-DEM RESULTADOS'!I116 -> 0 | F97: =+'II-DEM RESULTADOS'!J116 -> 0 | G97: =+'II-DEM RESULTADOS'!K116 -> 0 | H97: =+'II-DEM RESULTADOS'!L116 -> 0 | I97: =+'II-DEM RESULTADOS'!M116 -> 0 | J97: =+'II-DEM RESULTADOS'!N116 -> 0 | K97: =+'II-DEM RESULTADOS'!O116 -> 0 | L97: =+'II-DEM RESULTADOS'!P116 -> 0 | M97: =+'II-DEM RESULTADOS'!Q116 -> 0 | N97: =+'II-DEM RESULTADOS'!R116 -> 0 | O97: =+'II-DEM RESULTADOS'!S116 -> 0 | P97: =+'II-DEM RESULTADOS'!T116 -> 0 | Q97: =+'II-DEM RESULTADOS'!U116 -> 0 | R97: =+'II-DEM RESULTADOS'!V116 -> 0 | S97: =+'II-DEM RESULTADOS'!W116 -> 0 | T97: =+'II-DEM RESULTADOS'!X116 -> 0 | U97: =+'II-DEM RESULTADOS'!Y116 -> 0 | V97: =+'II-DEM RESULTADOS'!Z116 -> 0 | W97: =+'II-DEM RESULTADOS'!AA116 -> 0 | X97: =+'II-DEM RESULTADOS'!AB116 -> 0
A98: =+'dados I'!$A$2 -> 20008838749 | B98: =+'dados I'!$B$2 -> 502065591 | C98: =+'II-DEM RESULTADOS'!C117 -> 653/658 | D98: =+'II-DEM RESULTADOS'!F117 -> PERDAS EM OUTROS ATIVOS | E98: =+'II-DEM RESULTADOS'!I117 -> 0 | F98: =+'II-DEM RESULTADOS'!J117 -> 0 | G98: =+'II-DEM RESULTADOS'!K117 -> 0 | H98: =+'II-DEM RESULTADOS'!L117 -> 0 | I98: =+'II-DEM RESULTADOS'!M117 -> 0 | J98: =+'II-DEM RESULTADOS'!N117 -> 0 | K98: =+'II-DEM RESULTADOS'!O117 -> 0 | L98: =+'II-DEM RESULTADOS'!P117 -> 0 | M98: =+'II-DEM RESULTADOS'!Q117 -> 0 | N98: =+'II-DEM RESULTADOS'!R117 -> 0 | O98: =+'II-DEM RESULTADOS'!S117 -> 0 | P98: =+'II-DEM RESULTADOS'!T117 -> 0 | Q98: =+'II-DEM RESULTADOS'!U117 -> 0 | R98: =+'II-DEM RESULTADOS'!V117 -> 0 | S98: =+'II-DEM RESULTADOS'!W117 -> 0 | T98: =+'II-DEM RESULTADOS'!X117 -> 0 | U98: =+'II-DEM RESULTADOS'!Y117 -> 0 | V98: =+'II-DEM RESULTADOS'!Z117 -> 0 | W98: =+'II-DEM RESULTADOS'!AA117 -> 0 | X98: =+'II-DEM RESULTADOS'!AB117 -> 0
A99: =+'dados I'!$A$2 -> 20008838749 | B99: =+'dados I'!$B$2 -> 502065591 | C99: =+'II-DEM RESULTADOS'!C118 -> 66 | D99: =+'II-DEM RESULTADOS'!F118 -> PERDAS POR REDUÇÃO DE JUSTO VALOR | E99: =+'II-DEM RESULTADOS'!I118 -> 0 | F99: =+'II-DEM RESULTADOS'!J118 -> 0 | G99: =+'II-DEM RESULTADOS'!K118 -> 0 | H99: =+'II-DEM RESULTADOS'!L118 -> 0 | I99: =+'II-DEM RESULTADOS'!M118 -> 0 | J99: =+'II-DEM RESULTADOS'!N118 -> 0 | K99: =+'II-DEM RESULTADOS'!O118 -> 0 | L99: =+'II-DEM RESULTADOS'!P118 -> 0 | M99: =+'II-DEM RESULTADOS'!Q118 -> 0 | N99: =+'II-DEM RESULTADOS'!R118 -> 0 | O99: =+'II-DEM RESULTADOS'!S118 -> 0 | P99: =+'II-DEM RESULTADOS'!T118 -> 0 | Q99: =+'II-DEM RESULTADOS'!U118 -> 0 | R99: =+'II-DEM RESULTADOS'!V118 -> 0 | S99: =+'II-DEM RESULTADOS'!W118 -> 0 | T99: =+'II-DEM RESULTADOS'!X118 -> 0 | U99: =+'II-DEM RESULTADOS'!Y118 -> 0 | V99: =+'II-DEM RESULTADOS'!Z118 -> 0 | W99: =+'II-DEM RESULTADOS'!AA118 -> 0 | X99: =+'II-DEM RESULTADOS'!AB118 -> 0
A100: =+'dados I'!$A$2 -> 20008838749 | B100: =+'dados I'!$B$2 -> 502065591 | C100: =+'II-DEM RESULTADOS'!C119 -> 67 | D100: =+'II-DEM RESULTADOS'!F119 -> PROVISÕES DO PERÍODO | E100: =+'II-DEM RESULTADOS'!I119 -> 0 | F100: =+'II-DEM RESULTADOS'!J119 -> 0 | G100: =+'II-DEM RESULTADOS'!K119 -> 0 | H100: =+'II-DEM RESULTADOS'!L119 -> 0 | I100: =+'II-DEM RESULTADOS'!M119 -> 0 | J100: =+'II-DEM RESULTADOS'!N119 -> 0 | K100: =+'II-DEM RESULTADOS'!O119 -> 0 | L100: =+'II-DEM RESULTADOS'!P119 -> 0 | M100: =+'II-DEM RESULTADOS'!Q119 -> 0 | N100: =+'II-DEM RESULTADOS'!R119 -> 0 | O100: =+'II-DEM RESULTADOS'!S119 -> 0 | P100: =+'II-DEM RESULTADOS'!T119 -> 0 | Q100: =+'II-DEM RESULTADOS'!U119 -> 0 | R100: =+'II-DEM RESULTADOS'!V119 -> 0 | S100: =+'II-DEM RESULTADOS'!W119 -> 0 | T100: =+'II-DEM RESULTADOS'!X119 -> 0 | U100: =+'II-DEM RESULTADOS'!Y119 -> 0 | V100: =+'II-DEM RESULTADOS'!Z119 -> 0 | W100: =+'II-DEM RESULTADOS'!AA119 -> 0 | X100: =+'II-DEM RESULTADOS'!AB119 -> 0
A101: =+'dados I'!$A$2 -> 20008838749 | B101: =+'dados I'!$B$2 -> 502065591 | C101: =+'II-DEM RESULTADOS'!C120 -> 68 | D101: =+'II-DEM RESULTADOS'!F120 -> OUTROS GASTOS E PERDAS | E101: =+'II-DEM RESULTADOS'!I120 -> 180 | F101: =+'II-DEM RESULTADOS'!J120 -> 45 | G101: =+'II-DEM RESULTADOS'!K120 -> 45 | H101: =+'II-DEM RESULTADOS'!L120 -> 45 | I101: =+'II-DEM RESULTADOS'!M120 -> 45 | J101: =+'II-DEM RESULTADOS'!N120 -> 0 | K101: =+'II-DEM RESULTADOS'!O120 -> 0 | L101: =+'II-DEM RESULTADOS'!P120 -> 0 | M101: =+'II-DEM RESULTADOS'!Q120 -> 0 | N101: =+'II-DEM RESULTADOS'!R120 -> 0 | O101: =+'II-DEM RESULTADOS'!S120 -> 0 | P101: =+'II-DEM RESULTADOS'!T120 -> 0 | Q101: =+'II-DEM RESULTADOS'!U120 -> 0 | R101: =+'II-DEM RESULTADOS'!V120 -> 0 | S101: =+'II-DEM RESULTADOS'!W120 -> 0 | T101: =+'II-DEM RESULTADOS'!X120 -> 0 | U101: =+'II-DEM RESULTADOS'!Y120 -> 0 | V101: =+'II-DEM RESULTADOS'!Z120 -> 0 | W101: =+'II-DEM RESULTADOS'!AA120 -> 0 | X101: =+'II-DEM RESULTADOS'!AB120 -> 0
A102: =+'dados I'!$A$2 -> 20008838749 | B102: =+'dados I'!$B$2 -> 502065591 | C102: =+'II-DEM RESULTADOS'!C121 -> 681 | D102: =+'II-DEM RESULTADOS'!F121 -> IMPOSTOS | E102: =+'II-DEM RESULTADOS'!I121 -> 0 | F102: =+'II-DEM RESULTADOS'!J121 -> 0 | G102: =+'II-DEM RESULTADOS'!K121 -> 0 | H102: =+'II-DEM RESULTADOS'!L121 -> 0 | I102: =+'II-DEM RESULTADOS'!M121 -> 0 | J102: =+'II-DEM RESULTADOS'!N121 -> 0 | K102: =+'II-DEM RESULTADOS'!O121 -> 0 | L102: =+'II-DEM RESULTADOS'!P121 -> 0 | M102: =+'II-DEM RESULTADOS'!Q121 -> 0 | N102: =+'II-DEM RESULTADOS'!R121 -> 0 | O102: =+'II-DEM RESULTADOS'!S121 -> 0 | P102: =+'II-DEM RESULTADOS'!T121 -> 0 | Q102: =+'II-DEM RESULTADOS'!U121 -> 0 | R102: =+'II-DEM RESULTADOS'!V121 -> 0 | S102: =+'II-DEM RESULTADOS'!W121 -> 0 | T102: =+'II-DEM RESULTADOS'!X121 -> 0 | U102: =+'II-DEM RESULTADOS'!Y121 -> 0 | V102: =+'II-DEM RESULTADOS'!Z121 -> 0 | W102: =+'II-DEM RESULTADOS'!AA121 -> 0 | X102: =+'II-DEM RESULTADOS'!AB121 -> 0
A103: =+'dados I'!$A$2 -> 20008838749 | B103: =+'dados I'!$B$2 -> 502065591 | C103: =+'II-DEM RESULTADOS'!C122 -> 682/687 | D103: =+'II-DEM RESULTADOS'!F122 -> OUTROS GASTOS E PERDAS EM ATIVOS | E103: =+'II-DEM RESULTADOS'!I122 -> 0 | F103: =+'II-DEM RESULTADOS'!J122 -> 0 | G103: =+'II-DEM RESULTADOS'!K122 -> 0 | H103: =+'II-DEM RESULTADOS'!L122 -> 0 | I103: =+'II-DEM RESULTADOS'!M122 -> 0 | J103: =+'II-DEM RESULTADOS'!N122 -> 0 | K103: =+'II-DEM RESULTADOS'!O122 -> 0 | L103: =+'II-DEM RESULTADOS'!P122 -> 0 | M103: =+'II-DEM RESULTADOS'!Q122 -> 0 | N103: =+'II-DEM RESULTADOS'!R122 -> 0 | O103: =+'II-DEM RESULTADOS'!S122 -> 0 | P103: =+'II-DEM RESULTADOS'!T122 -> 0 | Q103: =+'II-DEM RESULTADOS'!U122 -> 0 | R103: =+'II-DEM RESULTADOS'!V122 -> 0 | S103: =+'II-DEM RESULTADOS'!W122 -> 0 | T103: =+'II-DEM RESULTADOS'!X122 -> 0 | U103: =+'II-DEM RESULTADOS'!Y122 -> 0 | V103: =+'II-DEM RESULTADOS'!Z122 -> 0 | W103: =+'II-DEM RESULTADOS'!AA122 -> 0 | X103: =+'II-DEM RESULTADOS'!AB122 -> 0
A104: =+'dados I'!$A$2 -> 20008838749 | B104: =+'dados I'!$B$2 -> 502065591 | C104: =+'II-DEM RESULTADOS'!C123 -> 688 | D104: =+'II-DEM RESULTADOS'!F123 -> OUTROS GASTOS E PERDAS | E104: =+'II-DEM RESULTADOS'!I123 -> 180 | F104: =+'II-DEM RESULTADOS'!J123 -> 45 | G104: =+'II-DEM RESULTADOS'!K123 -> 45 | H104: =+'II-DEM RESULTADOS'!L123 -> 45 | I104: =+'II-DEM RESULTADOS'!M123 -> 45 | J104: =+'II-DEM RESULTADOS'!N123 -> 0 | K104: =+'II-DEM RESULTADOS'!O123 -> 0 | L104: =+'II-DEM RESULTADOS'!P123 -> 0 | M104: =+'II-DEM RESULTADOS'!Q123 -> 0 | N104: =+'II-DEM RESULTADOS'!R123 -> 0 | O104: =+'II-DEM RESULTADOS'!S123 -> 0 | P104: =+'II-DEM RESULTADOS'!T123 -> 0 | Q104: =+'II-DEM RESULTADOS'!U123 -> 0 | R104: =+'II-DEM RESULTADOS'!V123 -> 0 | S104: =+'II-DEM RESULTADOS'!W123 -> 0 | T104: =+'II-DEM RESULTADOS'!X123 -> 0 | U104: =+'II-DEM RESULTADOS'!Y123 -> 0 | V104: =+'II-DEM RESULTADOS'!Z123 -> 0 | W104: =+'II-DEM RESULTADOS'!AA123 -> 0 | X104: =+'II-DEM RESULTADOS'!AB123 -> 0
A105: =+'dados I'!$A$2 -> 20008838749 | B105: =+'dados I'!$B$2 -> 502065591 | C105: =+'II-DEM RESULTADOS'!C124 -> 6881 | D105: =+'II-DEM RESULTADOS'!F124 -> CORREÇÕES DE PERÍODOS ANTERIORES | E105: =+'II-DEM RESULTADOS'!I124 -> 0 | F105: =+'II-DEM RESULTADOS'!J124 -> 0 | G105: =+'II-DEM RESULTADOS'!K124 -> 0 | H105: =+'II-DEM RESULTADOS'!L124 -> 0 | I105: =+'II-DEM RESULTADOS'!M124 -> 0 | J105: =+'II-DEM RESULTADOS'!N124 -> 0 | K105: =+'II-DEM RESULTADOS'!O124 -> 0 | L105: =+'II-DEM RESULTADOS'!P124 -> 0 | M105: =+'II-DEM RESULTADOS'!Q124 -> 0 | N105: =+'II-DEM RESULTADOS'!R124 -> 0 | O105: =+'II-DEM RESULTADOS'!S124 -> 0 | P105: =+'II-DEM RESULTADOS'!T124 -> 0 | Q105: =+'II-DEM RESULTADOS'!U124 -> 0 | R105: =+'II-DEM RESULTADOS'!V124 -> 0 | S105: =+'II-DEM RESULTADOS'!W124 -> 0 | T105: =+'II-DEM RESULTADOS'!X124 -> 0 | U105: =+'II-DEM RESULTADOS'!Y124 -> 0 | V105: =+'II-DEM RESULTADOS'!Z124 -> 0 | W105: =+'II-DEM RESULTADOS'!AA124 -> 0 | X105: =+'II-DEM RESULTADOS'!AB124 -> 0
A106: =+'dados I'!$A$2 -> 20008838749 | B106: =+'dados I'!$B$2 -> 502065591 | C106: =+'II-DEM RESULTADOS'!C125 -> 6882 | D106: =+'II-DEM RESULTADOS'!F125 -> DONATIVOS | E106: =+'II-DEM RESULTADOS'!I125 -> 0 | F106: =+'II-DEM RESULTADOS'!J125 -> 0 | G106: =+'II-DEM RESULTADOS'!K125 -> 0 | H106: =+'II-DEM RESULTADOS'!L125 -> 0 | I106: =+'II-DEM RESULTADOS'!M125 -> 0 | J106: =+'II-DEM RESULTADOS'!N125 -> 0 | K106: =+'II-DEM RESULTADOS'!O125 -> 0 | L106: =+'II-DEM RESULTADOS'!P125 -> 0 | M106: =+'II-DEM RESULTADOS'!Q125 -> 0 | N106: =+'II-DEM RESULTADOS'!R125 -> 0 | O106: =+'II-DEM RESULTADOS'!S125 -> 0 | P106: =+'II-DEM RESULTADOS'!T125 -> 0 | Q106: =+'II-DEM RESULTADOS'!U125 -> 0 | R106: =+'II-DEM RESULTADOS'!V125 -> 0 | S106: =+'II-DEM RESULTADOS'!W125 -> 0 | T106: =+'II-DEM RESULTADOS'!X125 -> 0 | U106: =+'II-DEM RESULTADOS'!Y125 -> 0 | V106: =+'II-DEM RESULTADOS'!Z125 -> 0 | W106: =+'II-DEM RESULTADOS'!AA125 -> 0 | X106: =+'II-DEM RESULTADOS'!AB125 -> 0
A107: =+'dados I'!$A$2 -> 20008838749 | B107: =+'dados I'!$B$2 -> 502065591 | C107: =+'II-DEM RESULTADOS'!C126 -> 6883 | D107: =+'II-DEM RESULTADOS'!F126 -> QUOTIZAÇÕES | E107: =+'II-DEM RESULTADOS'!I126 -> 180 | F107: =+'II-DEM RESULTADOS'!J126 -> 45 | G107: =+'II-DEM RESULTADOS'!K126 -> 45 | H107: =+'II-DEM RESULTADOS'!L126 -> 45 | I107: =+'II-DEM RESULTADOS'!M126 -> 45 | J107: =+'II-DEM RESULTADOS'!N126 -> 0 | K107: =+'II-DEM RESULTADOS'!O126 -> 0 | L107: =+'II-DEM RESULTADOS'!P126 -> 0 | M107: =+'II-DEM RESULTADOS'!Q126 -> 0 | N107: =+'II-DEM RESULTADOS'!R126 -> 0 | O107: =+'II-DEM RESULTADOS'!S126 -> 0 | P107: =+'II-DEM RESULTADOS'!T126 -> 0 | Q107: =+'II-DEM RESULTADOS'!U126 -> 0 | R107: =+'II-DEM RESULTADOS'!V126 -> 0 | S107: =+'II-DEM RESULTADOS'!W126 -> 0 | T107: =+'II-DEM RESULTADOS'!X126 -> 0 | U107: =+'II-DEM RESULTADOS'!Y126 -> 0 | V107: =+'II-DEM RESULTADOS'!Z126 -> 0 | W107: =+'II-DEM RESULTADOS'!AA126 -> 0 | X107: =+'II-DEM RESULTADOS'!AB126 -> 0
A108: =+'dados I'!$A$2 -> 20008838749 | B108: =+'dados I'!$B$2 -> 502065591 | C108: =+'II-DEM RESULTADOS'!C127 -> 6884/6888 | D108: =+'II-DEM RESULTADOS'!F127 -> OUTROS GASTOS E PERDAS | E108: =+'II-DEM RESULTADOS'!I127 -> 0 | F108: =+'II-DEM RESULTADOS'!J127 -> 0 | G108: =+'II-DEM RESULTADOS'!K127 -> 0 | H108: =+'II-DEM RESULTADOS'!L127 -> 0 | I108: =+'II-DEM RESULTADOS'!M127 -> 0 | J108: =+'II-DEM RESULTADOS'!N127 -> 0 | K108: =+'II-DEM RESULTADOS'!O127 -> 0 | L108: =+'II-DEM RESULTADOS'!P127 -> 0 | M108: =+'II-DEM RESULTADOS'!Q127 -> 0 | N108: =+'II-DEM RESULTADOS'!R127 -> 0 | O108: =+'II-DEM RESULTADOS'!S127 -> 0 | P108: =+'II-DEM RESULTADOS'!T127 -> 0 | Q108: =+'II-DEM RESULTADOS'!U127 -> 0 | R108: =+'II-DEM RESULTADOS'!V127 -> 0 | S108: =+'II-DEM RESULTADOS'!W127 -> 0 | T108: =+'II-DEM RESULTADOS'!X127 -> 0 | U108: =+'II-DEM RESULTADOS'!Y127 -> 0 | V108: =+'II-DEM RESULTADOS'!Z127 -> 0 | W108: =+'II-DEM RESULTADOS'!AA127 -> 0 | X108: =+'II-DEM RESULTADOS'!AB127 -> 0
A109: =+'dados I'!$A$2 -> 20008838749 | B109: =+'dados I'!$B$2 -> 502065591 | C109: =+'II-DEM RESULTADOS'!C128 -> 689 | D109: =+'II-DEM RESULTADOS'!F128 -> CUSTOS C/ APOIOS FIN. CONCEDIDOS A ASS. OU UTENTES | E109: =+'II-DEM RESULTADOS'!I128 -> 0 | F109: =+'II-DEM RESULTADOS'!J128 -> 0 | G109: =+'II-DEM RESULTADOS'!K128 -> 0 | H109: =+'II-DEM RESULTADOS'!L128 -> 0 | I109: =+'II-DEM RESULTADOS'!M128 -> 0 | J109: =+'II-DEM RESULTADOS'!N128 -> 0 | K109: =+'II-DEM RESULTADOS'!O128 -> 0 | L109: =+'II-DEM RESULTADOS'!P128 -> 0 | M109: =+'II-DEM RESULTADOS'!Q128 -> 0 | N109: =+'II-DEM RESULTADOS'!R128 -> 0 | O109: =+'II-DEM RESULTADOS'!S128 -> 0 | P109: =+'II-DEM RESULTADOS'!T128 -> 0 | Q109: =+'II-DEM RESULTADOS'!U128 -> 0 | R109: =+'II-DEM RESULTADOS'!V128 -> 0 | S109: =+'II-DEM RESULTADOS'!W128 -> 0 | T109: =+'II-DEM RESULTADOS'!X128 -> 0 | U109: =+'II-DEM RESULTADOS'!Y128 -> 0 | V109: =+'II-DEM RESULTADOS'!Z128 -> 0 | W109: =+'II-DEM RESULTADOS'!AA128 -> 0 | X109: =+'II-DEM RESULTADOS'!AB128 -> 0
A110: =+'dados I'!$A$2 -> 20008838749 | B110: =+'dados I'!$B$2 -> 502065591 | C110: =+'II-DEM RESULTADOS'!C129 -> 69 | D110: =+'II-DEM RESULTADOS'!F129 -> GASTOS E PERDAS DE FINANCIAMENTO | E110: =+'II-DEM RESULTADOS'!I129 -> 96 | F110: =+'II-DEM RESULTADOS'!J129 -> 24 | G110: =+'II-DEM RESULTADOS'!K129 -> 24 | H110: =+'II-DEM RESULTADOS'!L129 -> 24 | I110: =+'II-DEM RESULTADOS'!M129 -> 24 | J110: =+'II-DEM RESULTADOS'!N129 -> 0 | K110: =+'II-DEM RESULTADOS'!O129 -> 0 | L110: =+'II-DEM RESULTADOS'!P129 -> 0 | M110: =+'II-DEM RESULTADOS'!Q129 -> 0 | N110: =+'II-DEM RESULTADOS'!R129 -> 0 | O110: =+'II-DEM RESULTADOS'!S129 -> 0 | P110: =+'II-DEM RESULTADOS'!T129 -> 0 | Q110: =+'II-DEM RESULTADOS'!U129 -> 0 | R110: =+'II-DEM RESULTADOS'!V129 -> 0 | S110: =+'II-DEM RESULTADOS'!W129 -> 0 | T110: =+'II-DEM RESULTADOS'!X129 -> 0 | U110: =+'II-DEM RESULTADOS'!Y129 -> 0 | V110: =+'II-DEM RESULTADOS'!Z129 -> 0 | W110: =+'II-DEM RESULTADOS'!AA129 -> 0 | X110: =+'II-DEM RESULTADOS'!AB129 -> 0
A111: =+'dados I'!$A$2 -> 20008838749 | B111: =+'dados I'!$B$2 -> 502065591 | C111: =+'II-DEM RESULTADOS'!C130 -> 6 | D111: =+'II-DEM RESULTADOS'!F130 -> TOTAL GASTOS | E111: =+'II-DEM RESULTADOS'!I130 -> 348406.84 | F111: =+'II-DEM RESULTADOS'!J130 -> 124749.22 | G111: =+'II-DEM RESULTADOS'!K130 -> 150947.68 | H111: =+'II-DEM RESULTADOS'!L130 -> 41355.27 | I111: =+'II-DEM RESULTADOS'!M130 -> 31354.67 | J111: =+'II-DEM RESULTADOS'!N130 -> 0 | K111: =+'II-DEM RESULTADOS'!O130 -> 0 | L111: =+'II-DEM RESULTADOS'!P130 -> 0 | M111: =+'II-DEM RESULTADOS'!Q130 -> 0 | N111: =+'II-DEM RESULTADOS'!R130 -> 0 | O111: =+'II-DEM RESULTADOS'!S130 -> 0 | P111: =+'II-DEM RESULTADOS'!T130 -> 0 | Q111: =+'II-DEM RESULTADOS'!U130 -> 0 | R111: =+'II-DEM RESULTADOS'!V130 -> 0 | S111: =+'II-DEM RESULTADOS'!W130 -> 0 | T111: =+'II-DEM RESULTADOS'!X130 -> 0 | U111: =+'II-DEM RESULTADOS'!Y130 -> 0 | V111: =+'II-DEM RESULTADOS'!Z130 -> 0 | W111: =+'II-DEM RESULTADOS'!AA130 -> 0 | X111: =+'II-DEM RESULTADOS'!AB130 -> 0
A112: =+'dados I'!$A$2 -> 20008838749 | B112: =+'dados I'!$B$2 -> 502065591 | C112: =+'II-DEM RESULTADOS'!C136 -> 85 | D112: =+'II-DEM RESULTADOS'!F136 -> RESULTADOS ANTES IMPOSTOS | E112: =+'II-DEM RESULTADOS'!I136 -> 26063.04 | F112: =+'II-DEM RESULTADOS'!J136 -> 52955.3 | G112: =+'II-DEM RESULTADOS'!K136 -> -10535.7 | H112: =+'II-DEM RESULTADOS'!L136 -> -11373.07 | I112: =+'II-DEM RESULTADOS'!M136 -> -4983.49 | J112: =+'II-DEM RESULTADOS'!N136 -> 0 | K112: =+'II-DEM RESULTADOS'!O136 -> 0 | L112: =+'II-DEM RESULTADOS'!P136 -> 0 | M112: =+'II-DEM RESULTADOS'!Q136 -> 0 | N112: =+'II-DEM RESULTADOS'!R136 -> 0 | O112: =+'II-DEM RESULTADOS'!S136 -> 0 | P112: =+'II-DEM RESULTADOS'!T136 -> 0 | Q112: =+'II-DEM RESULTADOS'!U136 -> 0 | R112: =+'II-DEM RESULTADOS'!V136 -> 0 | S112: =+'II-DEM RESULTADOS'!W136 -> 0 | T112: =+'II-DEM RESULTADOS'!X136 -> 0 | U112: =+'II-DEM RESULTADOS'!Y136 -> 0 | V112: =+'II-DEM RESULTADOS'!Z136 -> 0 | W112: =+'II-DEM RESULTADOS'!AA136 -> 0 | X112: =+'II-DEM RESULTADOS'!AB136 -> 0
A113: =+'dados I'!$A$2 -> 20008838749 | B113: =+'dados I'!$B$2 -> 502065591 | C113: =+'II-DEM RESULTADOS'!C137 -> 86 | D113: =+'II-DEM RESULTADOS'!F137 -> IMPOSTO RENDIMENTO EXERCÍCIO | E113: =+'II-DEM RESULTADOS'!I137 -> 0 | F113: =+'II-DEM RESULTADOS'!J137 -> 0 | G113: =+'II-DEM RESULTADOS'!K137 -> 0 | H113: =+'II-DEM RESULTADOS'!L137 -> 0 | I113: =+'II-DEM RESULTADOS'!M137 -> 0 | J113: =+'II-DEM RESULTADOS'!N137 -> 0 | K113: =+'II-DEM RESULTADOS'!O137 -> 0 | L113: =+'II-DEM RESULTADOS'!P137 -> 0 | M113: =+'II-DEM RESULTADOS'!Q137 -> 0 | N113: =+'II-DEM RESULTADOS'!R137 -> 0 | O113: =+'II-DEM RESULTADOS'!S137 -> 0 | P113: =+'II-DEM RESULTADOS'!T137 -> 0 | Q113: =+'II-DEM RESULTADOS'!U137 -> 0 | R113: =+'II-DEM RESULTADOS'!V137 -> 0 | S113: =+'II-DEM RESULTADOS'!W137 -> 0 | T113: =+'II-DEM RESULTADOS'!X137 -> 0 | U113: =+'II-DEM RESULTADOS'!Y137 -> 0 | V113: =+'II-DEM RESULTADOS'!Z137 -> 0 | W113: =+'II-DEM RESULTADOS'!AA137 -> 0 | X113: =+'II-DEM RESULTADOS'!AB137 -> 0
A114: =+'dados I'!$A$2 -> 20008838749 | B114: =+'dados I'!$B$2 -> 502065591 | C114: =+'II-DEM RESULTADOS'!C138 -> 88 | D114: =+'II-DEM RESULTADOS'!F138 -> RESULTADO LÍQUIDO | E114: =+'II-DEM RESULTADOS'!I138 -> 26063.04 | F114: =+'II-DEM RESULTADOS'!J138 -> 52955.3 | G114: =+'II-DEM RESULTADOS'!K138 -> -10535.7 | H114: =+'II-DEM RESULTADOS'!L138 -> -11373.07 | I114: =+'II-DEM RESULTADOS'!M138 -> -4983.49 | J114: =+'II-DEM RESULTADOS'!N138 -> 0 | K114: =+'II-DEM RESULTADOS'!O138 -> 0 | L114: =+'II-DEM RESULTADOS'!P138 -> 0 | M114: =+'II-DEM RESULTADOS'!Q138 -> 0 | N114: =+'II-DEM RESULTADOS'!R138 -> 0 | O114: =+'II-DEM RESULTADOS'!S138 -> 0 | P114: =+'II-DEM RESULTADOS'!T138 -> 0 | Q114: =+'II-DEM RESULTADOS'!U138 -> 0 | R114: =+'II-DEM RESULTADOS'!V138 -> 0 | S114: =+'II-DEM RESULTADOS'!W138 -> 0 | T114: =+'II-DEM RESULTADOS'!X138 -> 0 | U114: =+'II-DEM RESULTADOS'!Y138 -> 0 | V114: =+'II-DEM RESULTADOS'!Z138 -> 0 | W114: =+'II-DEM RESULTADOS'!AA138 -> 0 | X114: =+'II-DEM RESULTADOS'!AB138 -> 0

Sheet dados III (hidden)
A1: NISS | B1: NIF | C1: ISS_AC_1101 | D1: ISS_AC_1102 | E1: ISS_AC_1103 | F1: ISS_AC_1104 | G1: ISS_AC_1105 | H1: ISS_AC_1201 | I1: ISS_AC_1202 | J1: ISS_AC_1203 | K1: ISS_AC_1301 | L1: ISS_AC_1302 | M1: ISS_AC_1303 | N1: ISS_AC_1304 | O1: ISS_AC_1305 | P1: ISS_AC_1306 | Q1: ISS_AC_2101 | R1: ISS_AC_2102 | S1: ISS_AC_2103 | T1: ISS_AC_2104 | U1: ISS_AC_2105 | V1: ISS_AC_2106 | W1: ISS_AC_2107 | X1: ISS_AC_2201 | Y1: ISS_AC_2202 | Z1: ISS_AC_2203 | AA1: ISS_AC_2204 | AB1: ISS_AC_2205 | AC1: ISS_AC_2206 | AD1: ISS_AC_2301 | AE1: ISS_AC_2302 | AF1: ISS_AC_2303 | AG1: ISS_AC_2401 | AH1: ISS_AC_2402 | AI1: ISS_AC_2403 | AJ1: ISS_AC_2404 | AK1: ISS_AC_2501 | AL1: ISS_AC_2502 | AM1: ISS_AC_3101 | AN1: ISS_AC_3102 | AO1: ISS_AC_3103 | AP1: ISS_AC_3104 | AQ1: ISS_AC_3105 | AR1: ISS_AC_3106 | AS1: ISS_AC_3107 | AT1: ISS_AC_3108 | AU1: ISS_AC_3109 | AV1: ISS_AC_3201 | AW1: ISS_AC_3202 | AX1: ISS_AC_3203 | AY1: ISS_AC_3301 | AZ1: ISS_AC_3302 | BA1: ISS_AC_3401 | BB1: ISS_AC_3402 | BC1: ISS_AC_4101 | BD1: ISS_AC_4102 | BE1: ISS_AC_4103 | BF1: ISS_AC_4104 | BG1: ISS_AC_4104 | BH1: ISS-OUTROS ACORDOS | BI1: ISS_P_SEREMAIS | BJ1: ISS_P_RSI | BK1: ISS_P_RNCCI | BL1: ISS_P_LNES | BM1: ISS_P_OUTROS | BN1: ISS_P_PIEF | BO1: =+'III- FINANCIAMENTO'!$H78 -> 0 | BP1: ISS_P_CLDS | BQ1: ISS_P_PAII | BR1: ISS_P_PILAR | BS1: ISS_P_PES | BT1: ISS_P_PAPI | BU1: ISS_P_PCACC | BV1: ISS_P_PARES | BW1: ISS_P_POPH | BX1: ISS_P_MASES | BY1: ISS_P_PCHI | BZ1: ISS_PR_OUTROS | CA1: ISS_F_RF | CB1: ISS_F_CSE | CC1: IGFSS_AC | CD1: IGFSS_PROT | CE1: IGFSS_PROG | CF1: IGFSS_F | CG1: IGFSS_O | CH1: IEFP_AC | CI1: IEFP_PROT | CJ1: IEFP_PROG | CK1: IEFP_F | CL1: IEFP_O | CM1: AUT_AC | CN1: AUT_PROT | CO1: AUT_PROG | CP1: AUT_F | CQ1: AUT_O | CR1: MEDUC_AC | CS1: MEDUC_PROT | CT1: MEDUC_PROG | CU1: MEDUC_F | CV1: MEDUC_O | CW1: MS_AC | CX1: MS_PROT | CY1: MS_PROG | CZ1: MS_F | DA1: MS_O | DB1: MECON_AC | DC1: MECON_PROT | DD1: MECON_PROG | DE1: MECON_F | DF1: MECON_O | DG1: OEP_AC | DH1: OEP_PROT | DI1: OEP_PROG | DJ1: OEP_F | DK1: OEP_O | DL1: TOTAL_COMP_PUB_EXP | DM1: COMP_INV_PROG_PIDDAC | DN1: COMP_INV_PROG_OUTROS | DO1: COMP_INV_FUNDOS_FSS | DP1: COMP_INV_FUNDOS_OUTROS | DQ1: COMP_INV_OUTROS_OUTROS | DR1: COMP_INV_IGFSS_PROG | DS1: COMP_INV_IGFSS_FUNDOS | DT1: COMP_INV_IGFSS_OUTROS | DU1: COMP_INV_IEFP_PROG | DV1: COMP_INV_IEFP_FUNDOS | DW1: COMP_INV_IEFP_OUTROS | DX1: COMP_INV_AUT_PROG | DY1: COMP_INV_AUT_FUNDOS | DZ1: COMP_INV_AUT_OUTROS | EA1: COMP_INV_MEDUC_PROG | EB1: COMP_INV_MEDUC_FUNDOS | EC1: COMP_INV_MEDUC_OUTROS | ED1: COMP_INV_MS_PROG | EE1: COMP_INV_MS_FUNDOS | EF1: COMP_INV_MS_OUTROS | EG1: COMP_INV_MECON_PROG | EH1: COMP_INV_MECON_FUNDOS | EI1: COMP_INV_MECON_OUTROS | EJ1: COMP_INV_OEP_PROG | EK1: COMP_INV_OEP_FUNDOS | EL1: COMP_INV_OEP_OUTROS | EM1: TOTAL_COMP_PUB_FIN | EN1: COMP_INV_PROG_PIDDAC_1 | EO1: COMP_INV_PROG_OUTROS_1 | EP1: COMP_INV_FUNDOS_FSS_1 | EQ1: COMP_INV_FUNDOS_OUTROS_1 | ER1: COMP_INV_OUTROS_OUTROS_1 | ES1: COMP_INV_IGFSS_PROG_1 | ET1: COMP_INV_IGFSS_FUNDOS_1 | EU1: COMP_INV_IGFSS_OUTROS_1 | EV1: COMP_INV_IEFP_PROG_1 | EW1: COMP_INV_IEFP_FUNDOS_1 | EX1: COMP_INV_IEFP_OUTROS_1 | EY1: COMP_INV_AUT_PROG_1 | EZ1: COMP_INV_AUT_FUNDOS_1 | FA1: COMP_INV_AUT_OUTROS_1 | FB1: COMP_INV_MEDUC_PROG_1 | FC1: COMP_INV_MEDUC_FUNDOS_1 | FD1: COMP_INV_MEDUC_OUTROS_1 | FE1: COMP_INV_MS_PROG_1 | FF1: COMP_INV_MS_FUNDOS_1 | FG1: COMP_INV_MS_OUTROS_1 | FH1: COMP_INV_MECON_PROG_1 | FI1: COMP_INV_MECON_FUNDOS_1 | FJ1: COMP_INV_MECON_OUTROS_1 | FK1: COMP_INV_OEP_PROG_1 | FL1: COMP_INV_OEP_FUNDOS_1 | FM1: COMP_INV_OEP_OUTROS_1 | FN1: TOTAL_COMP_PUB_FIN_1 | FO1: EF_1 | FP1: RB_1 | FQ1: E_1 | FR1: I_1 | FS1: FF_1 | FT1: EF_2 | FU1: RB_2 | FV1: E_2 | FW1: I_2 | FX1: FF_2 | FY1: EF_3 | FZ1: RB_3 | GA1: E_3 | GB1: I_3 | GC1: FF_3 | GD1: EF_4 | GE1: RB_4 | GF1: E_4 | GG1: I_4 | GH1: FF_4 | GI1: EF_5 | GJ1: RB_5 | GK1: E_5 | GL1: I_5 | GM1: FF_5 | GN1: EF_6 | GO1: RB_6 | GP1: E_6 | GQ1: I_6 | GR1: FF_6
A2: =+'I-DADOS GERAIS'!L14 -> 20008838749 | B2: =+'I-DADOS GERAIS'!G14 -> 502065591 | C2: =+'III- FINANCIAMENTO'!$H15 -> 0 | D2: =+'III- FINANCIAMENTO'!$H16 -> 0 | E2: =+'III- FINANCIAMENTO'!$H17 -> 175829.52 | F2: =+'III- FINANCIAMENTO'!$H18 -> 81941.98 | G2: =+'III- FINANCIAMENTO'!$H19 -> 10342.2 | H2: =+'III- FINANCIAMENTO'!$H20 -> 0 | I2: =+'III- FINANCIAMENTO'!$H21 -> 0 | J2: =+'III- FINANCIAMENTO'!$H22 -> 0 | K2: =+'III- FINANCIAMENTO'!$H23 -> 0 | L2: =+'III- FINANCIAMENTO'!$H24 -> 0 | M2: =+'III- FINANCIAMENTO'!$H25 -> 0 | N2: =+'III- FINANCIAMENTO'!$H26 -> 0 | O2: =+'III- FINANCIAMENTO'!$H27 -> 0 | P2: =+'III- FINANCIAMENTO'!$H28 -> 0 | Q2: =+'III- FINANCIAMENTO'!$H29 -> 0 | R2: =+'III- FINANCIAMENTO'!$H30 -> 0 | S2: =+'III- FINANCIAMENTO'!$H31 -> 0 | T2: =+'III- FINANCIAMENTO'!$H32 -> 0 | U2: =+'III- FINANCIAMENTO'!$H33 -> 0 | V2: =+'III- FINANCIAMENTO'!$H34 -> 0 | W2: =+'III- FINANCIAMENTO'!$H35 -> 0 | X2: =+'III- FINANCIAMENTO'!$H36 -> 0 | Y2: =+'III- FINANCIAMENTO'!$H37 -> 13049.64 | Z2: =+'III- FINANCIAMENTO'!$H38 -> 0 | AA2: =+'III- FINANCIAMENTO'!$H39 -> 0 | AB2: =+'III- FINANCIAMENTO'!$H40 -> 0 | AC2: =+'III- FINANCIAMENTO'!$H41 -> 0 | AD2: =+'III- FINANCIAMENTO'!$H42 -> 0 | AE2: =+'III- FINANCIAMENTO'!$H43 -> 0 | AF2: =+'III- FINANCIAMENTO'!$H44 -> 0 | AG2: =+'III- FINANCIAMENTO'!$H45 -> 0 | AH2: =+'III- FINANCIAMENTO'!$H46 -> 0 | AI2: =+'III- FINANCIAMENTO'!$H47 -> 0 | AJ2: =+'III- FINANCIAMENTO'!$H48 -> 0 | AK2: =+'III- FINANCIAMENTO'!$H49 -> 0 | AL2: =+'III- FINANCIAMENTO'!$H50 -> 0 | AM2: =+'III- FINANCIAMENTO'!$H51 -> 0 | AN2: =+'III- FINANCIAMENTO'!$H52 -> 0 | AO2: =+'III- FINANCIAMENTO'!$H53 -> 0 | AP2: =+'III- FINANCIAMENTO'!$H54 -> 0 | AQ2: =+'III- FINANCIAMENTO'!$H55 -> 0 | AR2: =+'III- FINANCIAMENTO'!$H56 -> 0 | AS2: =+'III- FINANCIAMENTO'!$H57 -> 0 | AT2: =+'III- FINANCIAMENTO'!$H58 -> 0 | AU2: =+'III- FINANCIAMENTO'!$H59 -> 0 | AV2: =+'III- FINANCIAMENTO'!$H60 -> 0 | AW2: =+'III- FINANCIAMENTO'!$H61 -> 0 | AX2: =+'III- FINANCIAMENTO'!$H62 -> 0 | AY2: =+'III- FINANCIAMENTO'!$H63 -> 0 | AZ2: =+'III- FINANCIAMENTO'!$H64 -> 0 | BA2: =+'III- FINANCIAMENTO'!$H65 -> 0 | BB2: =+'III- FINANCIAMENTO'!$H66 -> 0 | BC2: =+'III- FINANCIAMENTO'!$H67 -> 0 | BD2: =+'III- FINANCIAMENTO'!$H68 -> 0 | BE2: =+'III- FINANCIAMENTO'!$H69 -> 0 | BF2: =+'III- FINANCIAMENTO'!$H70 -> 0 | BG2: =+'III- FINANCIAMENTO'!#REF! ->  | BH2: =+'III- FINANCIAMENTO'!$H71 -> 0 | BI2: =+'III- FINANCIAMENTO'!$H73 -> 0 | BJ2: =+'III- FINANCIAMENTO'!$H74 -> 0 | BK2: =+'III- FINANCIAMENTO'!$H75 -> 0 | BL2: =+'III- FINANCIAMENTO'!$H76 -> 0 | BM2: =+'III- FINANCIAMENTO'!$H77 -> 0 | BN2: =+'III- FINANCIAMENTO'!$H79 -> 0 | BO2: =+'III- FINANCIAMENTO'!$H80 -> 0 | BP2: =+'III- FINANCIAMENTO'!$H81 -> 0 | BQ2: =+'III- FINANCIAMENTO'!$H82 -> 0 | BR2: =+'III- FINANCIAMENTO'!$H83 -> 0 | BS2: =+'III- FINANCIAMENTO'!$H84 -> 0 | BT2: =+'III- FINANCIAMENTO'!$H85 -> 0 | BU2: =+'III- FINANCIAMENTO'!$H86 -> 0 | BV2: =+'III- FINANCIAMENTO'!$H87 -> 0 | BW2: =+'III- FINANCIAMENTO'!$H88 -> 0 | BX2: =+'III- FINANCIAMENTO'!$H89 -> 0 | BY2: =+'III- FINANCIAMENTO'!$H90 -> 0 | BZ2: =+'III- FINANCIAMENTO'!$H92 -> 0 | CA2: =+'III- FINANCIAMENTO'!$H93 -> 0 | CB2: =+'III- FINANCIAMENTO'!$H94 -> 0 | CC2: =+'III- FINANCIAMENTO'!$H95 -> 0 | CD2: =+'III- FINANCIAMENTO'!$H96 -> 0 | CE2: =+'III- FINANCIAMENTO'!$H97 -> 0 | CF2: =+'III- FINANCIAMENTO'!$H98 -> 0 | CG2: =+'III- FINANCIAMENTO'!$H99 -> 0 | CH2: =+'III- FINANCIAMENTO'!$H100 -> 0 | CI2: =+'III- FINANCIAMENTO'!$H101 -> 0 | CJ2: =+'III- FINANCIAMENTO'!$H102 -> 0 | CK2: =+'III- FINANCIAMENTO'!$H103 -> 0 | CL2: =+'III- FINANCIAMENTO'!$H104 -> 0 | CM2: =+'III- FINANCIAMENTO'!$H105 -> 0 | CN2: =+'III- FINANCIAMENTO'!$H106 -> 0 | CO2: =+'III- FINANCIAMENTO'!$H107 -> 0 | CP2: =+'III- FINANCIAMENTO'!$H108 -> 0 | CQ2: =+'III- FINANCIAMENTO'!$H109 -> 5000 | CR2: =+'III- FINANCIAMENTO'!$H110 -> 0 | CS2: =+'III- FINANCIAMENTO'!$H111 -> 0 | CT2: =+'III- FINANCIAMENTO'!$H112 -> 0 | CU2: =+'III- FINANCIAMENTO'!$H113 -> 0 | CV2: =+'III- FINANCIAMENTO'!$H114 -> 0 | CW2: =+'III- FINANCIAMENTO'!$H115 -> 0 | CX2: =+'III- FINANCIAMENTO'!$H116 -> 0 | CY2: =+'III- FINANCIAMENTO'!$H117 -> 0 | CZ2: =+'III- FINANCIAMENTO'!$H118 -> 0 | DA2: =+'III- FINANCIAMENTO'!$H119 -> 0 | DB2: =+'III- FINANCIAMENTO'!$H120 -> 0 | DC2: =+'III- FINANCIAMENTO'!$H121 -> 0 | DD2: =+'III- FINANCIAMENTO'!$H122 -> 0 | DE2: =+'III- FINANCIAMENTO'!$H123 -> 0 | DF2: =+'III- FINANCIAMENTO'!$H124 -> 0 | DG2: =+'III- FINANCIAMENTO'!$H125 -> 0 | DH2: =+'III- FINANCIAMENTO'!$H126 -> 0 | DI2: =+'III- FINANCIAMENTO'!$H127 -> 0 | DJ2: =+'III- FINANCIAMENTO'!$H128 -> 0 | DK2: =+'III- FINANCIAMENTO'!$H129 -> 0 | DL2: =+'III- FINANCIAMENTO'!$H130 -> 286163.34 | DM2: =+'III- FINANCIAMENTO'!$H139 -> 0 | DN2: =+'III- FINANCIAMENTO'!$H140 -> 0 | DO2: =+'III- FINANCIAMENTO'!$H142 -> 0 | DP2: =+'III- FINANCIAMENTO'!$H143 -> 0 | DQ2: =+'III- FINANCIAMENTO'!$H145 -> 0 | DR2: =+'III- FINANCIAMENTO'!$H146 -> 0 | DS2: =+'III- FINANCIAMENTO'!$H147 -> 0 | DT2: =+'III- FINANCIAMENTO'!$H148 -> 0 | DU2: =+'III- FINANCIAMENTO'!$H149 -> 0 | DV2: =+'III- FINANCIAMENTO'!$H150 -> 0 | DW2: =+'III- FINANCIAMENTO'!$H151 -> 0 | DX2: =+'III- FINANCIAMENTO'!$H152 -> 0 | DY2: =+'III- FINANCIAMENTO'!$H153 -> 0 | DZ2: =+'III- FINANCIAMENTO'!$H154 -> 0 | EA2: =+'III- FINANCIAMENTO'!$H155 -> 0 | EB2: =+'III- FINANCIAMENTO'!$H156 -> 0 | EC2: =+'III- FINANCIAMENTO'!$H157 -> 0 | ED2: =+'III- FINANCIAMENTO'!$H158 -> 0 | EE2: =+'III- FINANCIAMENTO'!$H159 -> 0 | EF2: =+'III- FINANCIAMENTO'!$H160 -> 0 | EG2: =+'III- FINANCIAMENTO'!$H161 -> 0 | EH2: =+'III- FINANCIAMENTO'!$H162 -> 0 | EI2: =+'III- FINANCIAMENTO'!$H163 -> 0 | EJ2: =+'III- FINANCIAMENTO'!$H164 -> 0 | EK2: =+'III- FINANCIAMENTO'!$H165 -> 0 | EL2: =+'III- FINANCIAMENTO'!$H166 -> 0 | EM2: =+'III- FINANCIAMENTO'!$H167 -> 0 | EN2: =+'III- FINANCIAMENTO'!$I139 -> 0 | EO2: =+'III- FINANCIAMENTO'!$I140 -> 0 | EP2: =+'III- FINANCIAMENTO'!$I142 -> 0 | EQ2: =+'III- FINANCIAMENTO'!$I143 -> 0 | ER2: =+'III- FINANCIAMENTO'!$I145 -> 0 | ES2: =+'III- FINANCIAMENTO'!$I146 -> 0 | ET2: =+'III- FINANCIAMENTO'!$I147 -> 0 | EU2: =+'III- FINANCIAMENTO'!$I148 -> 0 | EV2: =+'III- FINANCIAMENTO'!$I149 -> 0 | EW2: =+'III- FINANCIAMENTO'!$I150 -> 0 | EX2: =+'III- FINANCIAMENTO'!$I151 -> 0 | EY2: =+'III- FINANCIAMENTO'!$I152 -> 0 | EZ2: =+'III- FINANCIAMENTO'!$I153 -> 0 | FA2: =+'III- FINANCIAMENTO'!$I154 -> 0 | FB2: =+'III- FINANCIAMENTO'!$I155 -> 0 | FC2: =+'III- FINANCIAMENTO'!$I156 -> 0 | FD2: =+'III- FINANCIAMENTO'!$I157 -> 0 | FE2: =+'III- FINANCIAMENTO'!$I158 -> 0 | FF2: =+'III- FINANCIAMENTO'!$I159 -> 0 | FG2: =+'III- FINANCIAMENTO'!$I160 -> 0 | FH2: =+'III- FINANCIAMENTO'!$I161 -> 0 | FI2: =+'III- FINANCIAMENTO'!$I162 -> 0 | FJ2: =+'III- FINANCIAMENTO'!$I163 -> 0 | FK2: =+'III- FINANCIAMENTO'!$I164 -> 0 | FL2: =+'III- FINANCIAMENTO'!$I165 -> 0 | FM2: =+'III- FINANCIAMENTO'!$I166 -> 0 | FN2: =+'III- FINANCIAMENTO'!$I167 -> 0 | FO2: =+'III- FINANCIAMENTO'!$C175 -> 0 | FP2: =+'III- FINANCIAMENTO'!$F175 -> 0 | FQ2: =+'III- FINANCIAMENTO'!$H175 -> 0 | FR2: =+'III- FINANCIAMENTO'!$I175 -> 0 | FS2: =+'III- FINANCIAMENTO'!$J175 -> 0 | FT2: =+'III- FINANCIAMENTO'!$C176 -> 0 | FU2: =+'III- FINANCIAMENTO'!$F176 -> 0 | FV2: =+'III- FINANCIAMENTO'!$H176 -> 0 | FW2: =+'III- FINANCIAMENTO'!$I176 -> 0 | FX2: =+'III- FINANCIAMENTO'!$J176 -> 0 | FY2: =+'III- FINANCIAMENTO'!$C177 -> 0 | FZ2: =+'III- FINANCIAMENTO'!$F177 -> 0 | GA2: =+'III- FINANCIAMENTO'!$H177 -> 0 | GB2: =+'III- FINANCIAMENTO'!$I177 -> 0 | GC2: =+'III- FINANCIAMENTO'!$J177 -> 0 | GD2: =+'III- FINANCIAMENTO'!$C178 -> 0 | GE2: =+'III- FINANCIAMENTO'!$F178 -> 0 | GF2: =+'III- FINANCIAMENTO'!$H178 -> 0 | GG2: =+'III- FINANCIAMENTO'!$I178 -> 0 | GH2: =+'III- FINANCIAMENTO'!$J178 -> 0 | GI2: =+'III- FINANCIAMENTO'!$C179 -> 0 | GJ2: =+'III- FINANCIAMENTO'!$F179 -> 0 | GK2: =+'III- FINANCIAMENTO'!$H179 -> 0 | GL2: =+'III- FINANCIAMENTO'!$I179 -> 0 | GM2: =+'III- FINANCIAMENTO'!$J179 -> 0 | GN2: =+'III- FINANCIAMENTO'!$C180 -> 0 | GO2: =+'III- FINANCIAMENTO'!$F180 -> 0 | GP2: =+'III- FINANCIAMENTO'!$H180 -> 0 | GQ2: =+'III- FINANCIAMENTO'!$I180 -> 0 | GR2: =+'III- FINANCIAMENTO'!$J180 -> 0

Sheet dados IV (hidden)
A1: NISS | B1: NIF | C1: =+'IV-INVESTIMENTO'!$C8 -> Ativos Intangíveis | D1: =+'IV-INVESTIMENTO'!$C9 -> Bens domínio público | E1: =+'IV-INVESTIMENTO'!$C10 -> Goodwill | F1: =+'IV-INVESTIMENTO'!$C11 -> Projetos de desenvolvimento | G1: =+'IV-INVESTIMENTO'!$C12 -> Programas de Computador | H1: =+'IV-INVESTIMENTO'!$C13 -> Propriedade Industrial | I1: =+'IV-INVESTIMENTO'!$C14 -> Outros Ativos intangíveis | J1: =+'IV-INVESTIMENTO'!$C15 -> Ativos Fixos Tangíveis | K1: =+'IV-INVESTIMENTO'!$C16 -> Bens domínio público | L1: =+'IV-INVESTIMENTO'!$C17 -> Bens do Património Histórico e Cultural | M1: =+'IV-INVESTIMENTO'!$C18 -> Terrenos e Recursos Naturais | N1: =+'IV-INVESTIMENTO'!$C19 -> Edifícios e Outras Construções | O1: =+'IV-INVESTIMENTO'!$C20 -> Equipamento Básico | P1: =+'IV-INVESTIMENTO'!$C21 -> Equipamento de Transporte | Q1: =+'IV-INVESTIMENTO'!$C22 -> Equipamento Administrativo | R1: =+'IV-INVESTIMENTO'!$C23 -> Equipamentos Biológicos | S1: =+'IV-INVESTIMENTO'!$C24 -> Outros ativos fixos tangíveis | T1: =+'IV-INVESTIMENTO'!$C25 -> Propriedades de Investimento | U1: =+'IV-INVESTIMENTO'!$C26 -> Investimentos Financeiros | V1: =+'IV-INVESTIMENTO'!$C27 -> Outros ativos Financeiros (não correntes detidos para venda) | W1: =+'IV-INVESTIMENTO'!C28 -> TOTAL INVESTIMENTO - MLP | X1: =+'IV-INVESTIMENTO'!H8 -> Novas aquisições (compras e prestações serviços) | Y1: =+'IV-INVESTIMENTO'!H9 -> Adiantamentos | Z1: =+'IV-INVESTIMENTO'!H10 -> Trabalhos própria Entidade | AA1: =+'IV-INVESTIMENTO'!H11 -> Transferência para Imobilizado pela conclusão obra (-) | AB1: =+'IV-INVESTIMENTO'!H12 -> TOTAL INVESTIMENTO EM CURSO | AC1: =+'IV-INVESTIMENTO'!H17 -> Outros ativos Financeiros | AD1: =+'IV-INVESTIMENTO'!H18 -> Outros passivos Financeiros | AE1: =+'IV-INVESTIMENTO'!H19 -> TOTAL INVESTIMENTO - CP | AF1: =+'IV-INVESTIMENTO'!H28 -> TOTAL NOVO INVESTIMENTO:
A2: =+'I-DADOS GERAIS'!L14 -> 20008838749 | B2: =+'I-DADOS GERAIS'!G14 -> 502065591 | C2: =+'IV-INVESTIMENTO'!$F8 -> 0 | D2: =+'IV-INVESTIMENTO'!$F9 -> 0 | E2: =+'IV-INVESTIMENTO'!$F10 -> 0 | F2: =+'IV-INVESTIMENTO'!$F11 -> 0 | G2: =+'IV-INVESTIMENTO'!$F12 -> 0 | H2: =+'IV-INVESTIMENTO'!$F13 -> 0 | I2: =+'IV-INVESTIMENTO'!$F14 -> 0 | J2: =+'IV-INVESTIMENTO'!$F15 -> 35000 | K2: =+'IV-INVESTIMENTO'!$F16 -> 0 | L2: =+'IV-INVESTIMENTO'!$F17 -> 0 | M2: =+'IV-INVESTIMENTO'!$F18 -> 0 | N2: =+'IV-INVESTIMENTO'!$F19 -> 0 | O2: =+'IV-INVESTIMENTO'!$F20 -> 0 | P2: =+'IV-INVESTIMENTO'!$F21 -> 35000 | Q2: =+'IV-INVESTIMENTO'!$F22 -> 0 | R2: =+'IV-INVESTIMENTO'!$F23 -> 0 | S2: =+'IV-INVESTIMENTO'!$F24 -> 0 | T2: =+'IV-INVESTIMENTO'!$F25 -> 0 | U2: =+'IV-INVESTIMENTO'!$F26 -> 0 | V2: =+'IV-INVESTIMENTO'!$F27 -> 0 | W2: =+'IV-INVESTIMENTO'!F28 -> 35000 | X2: =+'IV-INVESTIMENTO'!I8 -> 0 | Y2: =+'IV-INVESTIMENTO'!I9 -> 0 | Z2: =+'IV-INVESTIMENTO'!I10 -> 0 | AA2: =+'IV-INVESTIMENTO'!I11 -> 0 | AB2: =+'IV-INVESTIMENTO'!I12 -> 0 | AC2: =+'IV-INVESTIMENTO'!I17 -> 0 | AD2: =+'IV-INVESTIMENTO'!I18 -> 0 | AE2: =+'IV-INVESTIMENTO'!I19 -> 0 | AF2: =+'IV-INVESTIMENTO'!I28 -> 35000
